Workbook

Sheet Title Page
A1: U.S. EPA Office of Ground Water and Drinking Water
A2: Work Breakdown Structure (WBS) Model for NON-TREATMENT Treatment
A3: Release Date: March 2023
A4: · The primary purpose of this model is to assist EPA in estimating national compliance costs.
A5: · As such, the costs are intended to be representative of the central tendency of typical facilities.
A6: · The default settings, however, do not account for all of the site-specific factors that could affect the cost of any given individual facility or project.
A7: · Still, other uses of the model might be reasonable if sufficient care is taken by the user to account for site- or project-specific factors.
A8: · The model results are point estimates shown to the nearest $1, but this precision is not meant to imply that the results are accurate to $1.
A9: · Instead, users should review all documentation, modify inputs/assumptions as appropriate to their specific purpose, and form their own informed opinions about the accuracy and suitability of the results.
A10: · Use of this model requires Excel 2007 or later.
A11: · The model should be opened as Read-only, so that any changes you make are saved under a new file name.
A12: · To function properly, macros ("active content") must be enabled. If a security warning appears, click "options" and "enable this content."
A13: · For further information see the following document distributed with this file:
A14: USEPA. 2023. Work Breakdown Structure-Based Cost Model for NON-TREATMENT Drinking Water Treatment. Office of Water.
A15: · To begin using the model, go to the INPUT sheet.

Sheet Index
A1: INDEX
A2: This page provides an index to all user-adjustable inputs and assumptions. Click on a variable name to go directly to the adjustable cells.
A4: User-adjustable Input or Assumption | B4: Variable Name and Link
A5: Design Flow | B5: design_flow_I
A6: Average Flow | B6: average_flow_I
A7: Distance to Water Supply | B7: pipe_length_I
A8: Pressure at Supply Source | B8: buyer_pressure_I
A9: Elevation Difference from Supply Source | B9: elevation_diff_I
A10: Cost of Purchased Water | B10: water_cost_I
A11: Maxiumum Flow per Well | B11: wells_I
A12: Well Depth | B12: well_depth_I
A13: Distance from Well to Distribution System | B13: well_distance_I
A14: Component level | B14: component_level_I
A15: System automation | B15: manual_I
A16: Include buildings? | B16: include_buildings_I
A17: Include land? | B17: include_land_I
A18: Access space for pumps and PRVs | B18: space_pumps
A19: Asphalt thickness | B19: asphalt_thickness
A20: Cost estimating method | B20: curve
A21: Depth of grout seal | B21: seal_depth
A22: Fire Buffer for Buildings | B22: fire_buffer
A23: Flow meters for each well | B23: fm_well
A24: Flow meters for interconnect line | B24: fm_interconnect
A25: Footprint per well | B25: well_footprint
A26: Frost depth | B26: frost
A27: Include asphalt patch | B27: asphalt_patch_include
A28: Include well pump soft start? | B28: soft_start
A29: Interior hight of vault | B29: vault_interior_height
A30: Minimum average flow as percentage of design | B30: min_avg_flow
A31: Minimum number of PRVs | B31: min_num_PRVs
A32: Minimum number of valves (isolation PRV, street) | B32: min_valves
A33: Minimum pipe size for interconnection | B33: min_pipe_size_interconnect
A34: Minimum pipe size for new wells | B34: min_pipe_size
A35: Minimum trench depth to top of pipe | B35: min_trench_depth
A36: Minimum trench width on each side of pipe | B36: min_trench_width
A37: Minimum vault cover | B37: vault_min_cover
A38: Non fire Buffer for buildings | B38: non_fire_buffer
A39: Number of redundant booster pumps | B39: NRD_booster_pumps
A40: Number of redundant PRVs | B40: NRD_PRVs
A41: Safety factor for pumps | B41: pump_safety_factor
A42: Screen length to casing length ratio | B42: screen_ration
A43: Spacing for valves | B43: valve_spacing
A44: Thickness of gravel pack | B44: gravel_thickness
A45: Thickness of grout seal | B45: grout_thickness
A46: Valves per PRV | B46: valve_per_PRV
A47: Valves per pump (booster and well) | B47: valve_per_pump
A48: Vault concrete thickness | B48: vault_concrete_thickness
A49: water pressure at top of well (for distribution) | B49: supply_head
A50: I/O port table | B50: port_table
A51: City Index for Total Capital Cost | B51: City_Index
A52: City Index for Total O&M Cost | B52: OM_City_Index
A53: Mangerial LOE as a percent of average technical labor | B53: Manager_percent
A54: Administrative LOE as a percent of average technical labor | B54: Clerical_percent
A55: Minutes per valve per week | B55: uloe_valve
A56: Minutes per pump per day | B56: uloe_pump
A57: Minutes per 100 sf per day | B57: uloe_fp
A58: For valves | B58: uloe_valve_maint
A59: For pumps | B59: uloe_pump_maint
A60: Pump efficiency for booster pumps | B60: booster_pump_efficiency
A61: Cost for parts & maintenance for booster pumps | B61: booster_pump_maintenance
A62: Cost for parts & maintenance for well pumps | B62: well_pump_maintenance
A63: Builder's risk insurance percentage | B63: br_ins_pct
A64: Technology complexity factor | B64: complexity
A65: Electrical percentage | B65: elect_pct
A66: Engineering percentage for large systems | B66: eng_pct_large
A67: Engineering percentage for medium systems | B67: eng_pct_medium
A68: Engineering percentage for small systems | B68: eng_pct_small
A69: Financing percentage | B69: finance_pct
A70: Financing percentage for small systems | B70: finance_pct_small
A71: Instrumentation and control percentage | B71: i_c_pct
A72: Include architectural fee? | B72: include_arch
A73: Include architectural fee for small systems? | B73: include_arch_small
A74: Include performance bond cost? | B74: include_bond
A75: Include construction management cost? | B75: include_cm
A76: Include contingency costs for high cost systems? | B76: include_conting_high
A77: Include contingency costs for low cost systems? | B77: include_conting_low
A78: Include contingency costs for medium cost systems? | B78: include_conting_medium
A79: Include geotechnical costs for high cost systems? | B79: include_geo_high
A80: Include geotechnical costs for low cost systems? | B80: include_geo_low
A81: Include geotechnical costs for medium cost systems? | B81: include_geo_medium
A82: Include sitework costs? | B82: include_sitework
A83: Include standby power costs? | B83: include_standby
A84: Include standby power costs for small systems? | B84: include_standby_small
A85: Installation, Transportatation, and O&P percentage | B85: inst_pct
A86: Legal percentage | B86: legal_pct
A87: Minimum standby power generator size | B87: min_standby
A88: Miscellaneous allowance percentage | B88: misc_pct
A89: Mobilization percentage for large systems | B89: mob_pct_large
A90: Mobilization percentage for medium systems | B90: mob_pct_medium
A91: Mobilization percentage for small systems | B91: mob_pct_small
A92: Design safety factor for standby power | B92: std_safety_factor
A93: Sales tax percentage | B93: tax_pct

Sheet INPUT
A1: NON-TREATMENT SYSTEM DESIGN AND COST INPUT
E3: STEP 1
E4: Select Design Type
E7: STEP 2: | H7: =IF(OR('Standard Inputs'!S9,'Standard Inputs'!S14),"<- Using this design",IF(OR('Standard Inputs'!T9,'Standard Inputs'!T14,),"<- You modified this design","")) -> <- Using this design | I7: The standard design buttons are for EPA's use in estimating national costs, but other users might find them useful as a starting point. See documentation for more information
E8: Select one of the eight standard designs at right OR select "CLEAR FOR MANUAL ENTRY" | H8: =IF(OR('Standard Inputs'!S10,'Standard Inputs'!S15),"<- Using this design",IF(OR('Standard Inputs'!T10,'Standard Inputs'!T15,),"<- You modified this design","")) -> 
H9: =IF(OR('Standard Inputs'!S11,'Standard Inputs'!S16),"<- Using this design",IF(OR('Standard Inputs'!T11,'Standard Inputs'!T16,),"<- You modified this design","")) -> 
H10: =IF(OR('Standard Inputs'!S12,'Standard Inputs'!S17),"<- Using this design",IF(OR('Standard Inputs'!T12,'Standard Inputs'!T17,),"<- You modified this design","")) -> 
H11: =IF(OR('Standard Inputs'!S13,'Standard Inputs'!S18),"<- Using this design",IF(OR('Standard Inputs'!T13,'Standard Inputs'!T18,),"<- You modified this design","")) -> 
H12: =IF(OR('Standard Inputs'!S9:T18),"","Using a manual design") -> 
E13: STEP 3:
E14: (Optional for standard designs) | G14: =IF(C15,IF('Standard Inputs'!S21,"Input Complete -- Results Ready","Input Complete--Press 'Generate Results'"),"Input Incomplete--Check for Error Messages Below") -> Input Complete -- Results Ready
C15: =AND(C28,C36,C43,C44,C53) -> TRUE | E15: Enter or change values in the gold and blue cells below, under "Manual Inputs"
E17: STEP 4: | I17: ="Resulting Costs (in year "&TEXT(current_year_cl,0)&" dollars, see OUTPUT sheet for details)" -> Resulting Costs (in year 2021 dollars, see OUTPUT sheet for details)
E18: =IF(G14="input complete -- results ready","Results are ready (no need to click button)","Click here to generate results -->") -> Results are ready (no need to click button) | I18: ="Direct Capital Cost: " & IF(input_status<>"input complete -- results ready",input_status,IF(Missing_Cost,"Missing cost!",IF(cost_buildup_error,"Cost buildup error!",IF(ISERROR(direct_cost),"Calculation error!",TEXT(direct_cost,"$0,0"))))) -> Direct Capital Cost: $304,232
I19: ="Total Capital Cost: " & IF(input_status<>"input complete -- results ready",input_status,IF(Missing_Cost,"Missing cost!",IF(cost_buildup_error,"Cost buildup error!",IF(ISERROR(system_cost),"Calculation error!",TEXT(system_cost,"$0,0"))))) -> Total Capital Cost: $443,171
I20: ="Annualized Capital Cost: "&IF(input_status<>"Input Complete -- Results Ready",input_status,IF(Missing_Cost,"Missing Price!",IF(cost_buildup_error,"Cost buildup error!",IF(ISERROR(Annualized_Capital_Cost),"Calculation error!",TEXT(Annualized_Capital_Cost,"$0,0")&" per year"&" (over "&useful_life&" years at "&Discount_rate*100&"%)")))) -> Annualized Capital Cost: $45,392 per year (over 17 years at 7%)
I21: ="Annual O&M Cost: "&IF(input_status<>"input complete -- results ready",input_status,IF(ISERROR(om_cost),"Calculation error!",TEXT(om_cost,"$0,0")&" per year")) -> Annual O&M Cost: $8,641 per year
I22: ="Total Annualized Cost: "&IF(input_status<>"input complete -- results ready",input_status,IF(Missing_Cost,"Missing Price!",IF(cost_buildup_error,"Cost buildup error!",IF(ISERROR(Annualized_Cost),"Calculation error!",TEXT(Annualized_Cost,"$0,0")&" per year ("&TEXT(TAC_pct_cap,"0%")&" capital, "&TEXT(TAC_pct_OM,"0%")&" O&M)")))) -> Total Annualized Cost: $54,032 per year (84% capital, 16% O&M)
E23: MANUAL INPUTS | I23: =IF(Missing_Cost,"A price is not available for at least one required component. See Use? column on OUTPUT sheet.",IF(cost_buildup_error,"There is an Excel error in the price for at least one component. Please see the Use? column on OUTPUT sheet.","")) -> 
E24: Cells in gold are required; cells in blue are optional
B25: Used? | C25: Valid input? | D25: Invalid reason? | H25: Select units
E26: Design Flow | F26: design_flow_I | G26: 0.03 | H26: MGD
E27: Average Flow | F27: average_flow_I | G27: 0.007 | H27: MGD
C28: =IF(OR(df_units="",af_units=""),FALSE,IF(average_flow>design_flow,FALSE,IF(OR(design_flow_I=0,average_flow_I=0),FALSE,IF(average_flow<design_flow*min_avg_flow,FALSE,TRUE)))) -> TRUE | D28: =IF(OR(df_units="",af_units=""),"Choose units for design and average flow",IF(average_flow>design_flow,"The average flow should not be greater than the design flow",IF(OR(design_flow_I=0,average_flow_I=0),"Input incomplete",IF(average_flow<design_flow*min_avg_flow,"The average flow must be at least " & min_avg_flow & " times design flow","OK")))) -> OK | H28: =IF(C28,"System size inputs OK",D28) -> System size inputs OK
B30: =IF(design=1,TRUE,FALSE) -> TRUE | E30: Interconnection
C31: =IF(B30=TRUE,IF(pipe_length_I="",FALSE,TRUE),TRUE) -> TRUE | D31: =IF(B30=TRUE,IF(pipe_length_I="","Interconnection Inputs Incomplete",""),"") ->  | E31: Distance to Water Supply | F31: pipe_length_I | G31: 10000 | H31: feet
C32: =IF(B31=TRUE,IF(buyer_pressure_I="",FALSE,TRUE),TRUE) -> TRUE | D32: =IF(B31=TRUE,IF(buyer_pressure_I="","Interconnection Inputs Incomplete",""),"") ->  | E32: Pressure at Supply Source | F32: buyer_pressure_I | G32: correct pressure | H32: <-- select one
B33: =IF(AND(B30,buyer_pressure_I="pressure less than required"),TRUE,FALSE) -> FALSE | C33: =IF(AND(B30=TRUE,B33=TRUE),IF(elevation_diff_I="",FALSE,IF(booster_psi>500,FALSE,TRUE)),TRUE) -> TRUE | D33: =IF(AND(B30=TRUE,B33=TRUE),IF(elevation_diff_I="","Interconnection Inputs Incomplete",IF(booster_psi>500,"Elevation difference exceeds maximum available pump rating","")),"") ->  | E33: Elevation Difference from Supply Source | F33: elevation_diff_I | G33: 0 | H33: =IF(B33,"feet","") ->  | I33: =IF(AND(B30=TRUE,B33=TRUE),"Guidance: The elevation difference is used to size the booster pump.","") -> 
C34: TRUE | E34: Cost of Purchased Water | F34: water_cost_I | H34: $/1000 gal | I34: =IF(B30=TRUE,"The cost of purchased water appears as an O&M cost item. Leave blank to accept default cost; enter 0 to exclude","") -> The cost of purchased water appears as an O&M cost item. Leave blank to accept default cost; enter 0 to exclude
E35: For information: Cost of purchased water | G35: =IF(B30=TRUE,IF(ISERROR(water_cost),"",water_cost),"") -> 3.059529078
C36: =AND(C31:C34) -> TRUE | D36: =IF(C36,"OK",IF(C31=FALSE,D31,IF(C32=FALSE,D32,IF(C33=FALSE,D33,IF(C34=FALSE,D34))))) -> OK | H36: =IF(B30=TRUE,IF(C36,"Interconnection Inputs OK",D36),"") -> Interconnection Inputs OK
B38: =IF(design=2,TRUE,FALSE) -> FALSE | E38: New Well Construction
C39: =IF(B38=TRUE,IF(wells_I="",FALSE,TRUE),TRUE) -> TRUE | D39: =IF(B38=TRUE,IF(wells_I="","Well Inputs Incomplete",""),"") ->  | E39: Maxiumum Flow per Well | F39: wells_I | H39: gpm | I39: Guidance: Larger systems are typically made up of many smaller wells
C40: =IF(B39=TRUE,IF(wells_depth_I="",FALSE,TRUE),TRUE) -> TRUE | D40: =IF(B38=TRUE,IF(well_depth_I="","Well Inputs Incomplete",""),"") ->  | E40: Well Depth | F40: well_depth_I | H40: feet
C41: =IF(B38=TRUE,IF(well_distance_I="",FALSE,TRUE),TRUE) -> TRUE | D41: =IF(B38=TRUE,IF(well_distance_I="","Well Inputs Incomplete",""),"") ->  | E41: Distance from Well to Distribution System | F41: well_distance_I | H41: feet
E42: For information: Number of wells | G42: =IF(ISERROR(wells),"",wells) -> 0
C43: =IF(B38=TRUE,IF(ISERROR(well_pump_hp),FALSE,IF(well_pump_hp>well_pump_hp_max,FALSE,TRUE)),TRUE) -> TRUE | D43: =IF(B38=TRUE,IF(ISERROR(well_pump_hp),"Well Inputs Incomplete",IF(well_pump_hp>well_pump_hp_max,"design exceeds maximum available pump horsepower- reduce well depth","")),"") ->  | E43: Well pump horsepower | G43: =IF(OR(B38=FALSE,ISERROR(well_pump_hp)),"",well_pump_hp) ->  | H43: horsepower
C44: =AND(C39:C43) -> TRUE | D44: =IF(C44,"OK",IF(C39=FALSE,D39,IF(C40=FALSE,D40,IF(C41=FALSE,D41,IF(C43=FALSE,D43))))) -> OK | H44: =IF(B38=TRUE,IF(AND(C43,C44),"Well Inputs OK",D44),"") -> 
E47: Component level | F47: component_level_I | H47: <-- pick or leave blank | I47: Leave blank to use low cost components
E48: System automation | F48: manual_I | G48: fully automated | H48: <-- pick or leave blank | I48: Leave blank to allow model to pick based on component level
E49: Include buildings? | F49: include_buildings_I | H49: <-- pick or leave blank | I49: =IF(design=2,"Leave blank to include buildings","Interconnection designs never include buildings") -> Interconnection designs never include buildings
E50: Include land? | F50: include_land_I | H50: <-- pick or leave blank | I50: =IF(design=2,"Leave blank to include land","Interconnection designs never include land") -> Interconnection designs never include land
E51: For information: Component level | G51: =IF(component_level=2,"high cost",IF(component_level=1,"mid cost","low cost")) -> low cost
E52: Automation | G52: =IF(manual=1,"manual",IF(manual=2,"semi-automated",IF(manual=3,"fully automated"))) -> fully automated
C53: =NOT(ISERROR(manual)) -> TRUE | D53: =IF(ISERROR(manual),"Invalid system automation input","OK") -> OK | H53: =IF(C53,"System Automation Inputs OK",D53) -> System Automation Inputs OK

Sheet OUTPUT
A1: OUTPUT SUMMARY
B2: Parameter | C2: Value | D2: Units
B3: OUTPUT SUMMARY
B4: Technology | C4: ="Non-Treatment, "& IF(design=1,"interconection", "new well") -> Non-Treatment, interconection
B5: System Size Category | C5: =IF(design_flow<1,"small","large") -> small
B6: Design Flow | C6: =design_flow_I -> 0.03 | D6: =df_units -> MGD
B7: Average Flow | C7: =average_flow_I -> 0.007 | D7: =af_units -> MGD
B8: ="Distance "&IF(design=1,"to interconnected supply","to distribution system") -> Distance to interconnected supply | C8: =IF(design=1,pipe_length_I,well_distance_I) -> 10000 | D8: feet
B9: =IF(design=1,"Pressure at supply source","Well depth") -> Pressure at supply source | C9: =IF(design=1,buyer_pressure_I,well_depth_I) -> correct pressure | D9: =IF(design=1,"","feet") -> 
B10: Component level | C10: =IF(component_level_I="","low", component_level_I) -> low
B11: System automation | C11: =IF(manual=1,"manual",IF(manual=2,"semi-automated","fully automated")) -> fully automated
B12: ="Resulting Costs (in year "&TEXT(current_year_cl,0)&" dollars)" -> Resulting Costs (in year 2021 dollars)
B13: Direct Capital Cost | C13: =IF(input_status<>"input complete -- results ready","Action required",IF(Missing_Cost,"Missing cost!",IF(cost_buildup_error,"Error in buildup!",direct_cost))) -> 304231.9576 | D13: Details | E13: =IF(input_status<>"input complete -- results ready",IF(input_complete,"Press Generate Results","Check INPUT sheet for errors"),IF(Missing_Cost,"A price is not available for at least one required component. See Use? column below.",IF(cost_buildup_error,"There is an Excel error in the price for at least one component. See Use? column below.",""))) -> 
B14: Add-on Cost | C14: =IF(input_status<>"input complete -- results ready","Action required",addon_cost) -> 0 | D14: Details
B15: Indirect Capital Cost | C15: =IF(input_status<>"input complete -- results ready","Action required",indirect_cost) -> 138938.7696 | D15: Details
B16: Total Capital Cost | C16: =IF(input_status<>"input complete -- results ready","Action required",IF(Missing_Cost,"Missing cost!",IF(cost_buildup_error,"Error in buildup!",system_cost))) -> 443170.7272 | D16: Details
B17: ="Annualized Capital Cost "&IF(OR(input_status<>"input complete -- results ready",Missing_Cost,cost_buildup_error),"","(per year over "&useful_life&" years at "&Discount_rate*100&"%)") -> Annualized Capital Cost (per year over 17 years at 7%) | C17: =IF(input_status<>"input complete -- results ready","Action required",Annualized_Capital_Cost) -> 45391.84729 | D17: Details
B18: Annual O&M Cost (per year) | C18: =IF(input_status<>"input complete -- results ready","Action required",om_cost) -> 8640.532961 | D18: Details
B19: ="Total Annualized Cost (per year"&IF(OR(input_status<>"input complete -- results ready",ISERROR(OR(TAC_pct_cap,TAC_pct_OM))),"",", "&TEXT(TAC_pct_cap,"0%")&" capital, "&TEXT(TAC_pct_OM,"0%")&" O&M")&")" -> Total Annualized Cost (per year, 84% capital, 16% O&M) | C19: =IF(input_status<>"input complete -- results ready","Action required",IF(Missing_Cost,"Missing cost!",IF(cost_buildup_error,"Error in buildup!",Annualized_Cost))) -> 54032.38025 | D19: Details
B20: Annualized cost per 1,000 gallons average flow | C20: =IF(input_status<>"input complete -- results ready","Action required",IF(Missing_Cost,"Missing cost!",IF(cost_buildup_error,"Error in buildup!",C178))) -> 21.14770264
B21: Annualized cost per household per year | C21: =IF(input_status<>"input complete -- results ready","Action required",IF(Missing_Cost,"Missing cost!",IF(cost_buildup_error,"Error in buildup!",C179))) -> 2131.024931
E22: errornote
A23: Direct Capital Cost Details (items in italics, without a 1 in the "Use?" column, represent alternate costs and are excluded from total)
A24: WBS # | B24: Item | C24: Design Quanitity | E24: Design Size | G24: Size used in estimate | I24: Unit Cost | J24: Total Cost | K24: Useful Life | L24: Use? | M24: Full Line Item Name | N24: Priority selection | W24: Useful Life
N25: Small (<1 mgd) | Q25: Medium (1-10 mgd) | T25: Large (>10 mgd)
N26: Low | O26: Mid | P26: High | Q26: Low | R26: Mid | S26: High | T26: Low | U26: Mid | V26: High | W26: Count? | X26: Depreciation | Y26: Major component useful life
A27: 1 | B27: Well Items
A28: 1.1 | B28: Well Casing
A29: 1.1.1 | B29: PVC | C29: =wells*casing_len -> 0 | D29: lf | E29: =IF(C29>0,casing_diam,"NA") -> NA | F29: =IF(C29=0,"","in. diam") ->  | G29: =IF(C29=0,"NA",IF(curve=1,casing_diam,VLOOKUP(casing_diam,casing_pvc_cost_cl,2))) -> NA | H29: =IF(E29="NA","","in. diam") ->  | I29: =IF(C29=0,"NA",IF(curve=1,casing_pvc_eq,VLOOKUP(casing_diam,casing_pvc_cost_cl,3))) -> NA | J29: =IF(OR(I29="contact vendor",I29="NA"),0,C29*I29) -> 0 | K29: =IF(I29="NA","N/A",VLOOKUP(casing_diam,casing_pvc_cost_cl,IF(ss_cat="large",4,5))) -> N/A | M29: =$B$27&" - "&$B$28&" - "&B29 -> Well Items - Well Casing - PVC | N29: 1 | O29: 2 | P29: 2 | Q29: 1 | R29: 2 | S29: 2 | T29: 1 | U29: 2 | V29: 2 | W29: =IF(ISERROR(K29*L29),0,IF(K29<1,0,L29)) -> 0 | X29: =IF(W29,J29/K29,0) -> 0 | Y29: =IF(W29=1,K29,0) -> 0
A30: 1.1.1 | B30: Stainless Steel | C30: =wells*casing_len -> 0 | D30: lf | E30: =IF(C30>0,casing_diam,"NA") -> NA | F30: =IF(C30=0,"","in. diam") ->  | G30: =IF(C30=0,"NA",IF(curve=1,casing_diam,VLOOKUP(casing_diam,casing_ss_cost_cl,2))) -> NA | H30: =IF(E30="NA","","in. diam") ->  | I30: =IF(C30=0,"NA",IF(curve=1,casing_ss_eq,VLOOKUP(casing_diam,casing_ss_cost_cl,3))) -> NA | J30: =IF(OR(I30="contact vendor",I30="NA"),0,C30*I30) -> 0 | K30: =IF(I30="NA","N/A",VLOOKUP(casing_diam,casing_ss_cost_cl,IF(ss_cat="large",4,5))) -> N/A | M30: =$B$27&" - "&$B$28&" - "&B30 -> Well Items - Well Casing - Stainless Steel | N30: 2 | O30: 1 | P30: 1 | Q30: 2 | R30: 1 | S30: 1 | T30: 2 | U30: 1 | V30: 1 | W30: =IF(ISERROR(K30*L30),0,IF(K30<1,0,L30)) -> 0 | X30: =IF(W30,J30/K30,0) -> 0 | Y30: =IF(W30=1,K30,0) -> 0
A31: 1.2 | B31: Well screen | W31: =IF(ISERROR(K31*L31),0,IF(K31<1,0,L31)) -> 0 | X31: =IF(W31,J31/K31,0) -> 0
A32: 1.2.1 | B32: PVC Schedule 40 | C32: =wells*screen_len -> 0 | D32: lf | E32: =IF( C32>0,screen_diam,"NA") -> NA | F32: =IF(C32=0,"","in. diam") ->  | G32: =IF(C32=0,"NA",IF(curve=1,screen_diam,VLOOKUP(screen_diam,screen_pvc40_cost_cl,2))) -> NA | H32: =IF(E32="NA","","in. diam") ->  | I32: =IF(C32=0,"NA",IF(curve=1,screen_pvc40_eq,VLOOKUP(screen_diam,screen_pvc40_cost_cl,4))) -> NA | J32: =IF(OR(I32="contact vendor",I32="NA"),0,C32*I32) -> 0 | K32: =IF(I32="NA","N/A",VLOOKUP(screen_diam,screen_pvc40_cost_cl,IF(ss_cat="large",4,5))) -> N/A | M32: =$B$27&" - "&$B$31&" - "&B32 -> Well Items - Well screen - PVC Schedule 40 | N32: 1 | O32: 2 | P32: 2 | Q32: 1 | R32: 2 | S32: 2 | T32: 1 | U32: 2 | V32: 2 | W32: =IF(ISERROR(K32*L32),0,IF(K32<1,0,L32)) -> 0 | X32: =IF(W32,J32/K32,0) -> 0 | Y32: =IF(W32=1,K32,0) -> 0
A33: 1.2.1 | B33: PVC Schedule 80 | C33: =wells*screen_len -> 0 | D33: lf | E33: =IF( C33>0,screen_diam,"NA") -> NA | F33: =IF(C33=0,"","in. diam") ->  | G33: =IF(C33=0,"NA",IF(curve=1,screen_diam,VLOOKUP(screen_diam,screen_pvc80_cost_cl,2))) -> NA | H33: =IF(E33="NA","","in. diam") ->  | I33: =IF(C33=0,"NA",IF(curve=1,screen_pvc80_eq,VLOOKUP(screen_diam,screen_pvc80_cost_cl,4))) -> NA | J33: =IF(OR(I33="contact vendor",I33="NA"),0,C33*I33) -> 0 | K33: =IF(I33="NA","N/A",VLOOKUP(screen_diam,screen_pvc80_cost_cl,IF(ss_cat="large",4,5))) -> N/A | M33: =$B$27&" - "&$B$31&" - "&B33 -> Well Items - Well screen - PVC Schedule 80 | N33: 2 | O33: 1 | P33: 3 | Q33: 2 | R33: 1 | S33: 3 | T33: 2 | U33: 1 | V33: 3 | W33: =IF(ISERROR(K34*L34),0,IF(K34<1,0,L34)) -> 0 | X33: =IF(W33,J34/K34,0) -> 0 | Y33: =IF(W33=1,K33,0) -> 0
A34: 1.2.1 | B34: Stainless Steel | C34: =wells*screen_len -> 0 | D34: lf | E34: =IF( C34>0,screen_diam,"NA") -> NA | F34: =IF(C34=0,"","in. diam") ->  | G34: =IF(C34=0,"NA",IF(curve=1,screen_diam,VLOOKUP(screen_diam,screen_ss_cost_cl,2))) -> NA | H34: =IF(E34="NA","","in. diam") ->  | I34: =IF(C34=0,"NA",IF(curve=1,screen_ss_eq,VLOOKUP(screen_diam,screen_ss_cost_cl,4))) -> NA | J34: =IF(OR(I34="contact vendor",I34="NA"),0,C34*I34) -> 0 | K34: =IF(I34="NA","N/A",VLOOKUP(screen_diam,screen_ss_cost_cl,IF(ss_cat="large",4,5))) -> N/A | M34: =$B$27&" - "&$B$31&" - "&B34 -> Well Items - Well screen - Stainless Steel | N34: 3 | O34: 3 | P34: 1 | Q34: 3 | R34: 3 | S34: 1 | T34: 3 | U34: 3 | V34: 1 | W34: =IF(ISERROR(K35*L35),0,IF(K35<1,0,L35)) -> 0 | X34: =IF(W34,J35/K35,0) -> 0 | Y34: =IF(W34=1,K34,0) -> 0
A35: 1.3 | B35: Plugs | W35: =IF(ISERROR(K35*L35),0,IF(K35<1,0,L35)) -> 0 | X35: =IF(W35,J35/K35,0) -> 0
A36: 1.3.1 | B36: PVC | C36: =IF(design=2,wells,0) -> 0 | D36: units | E36: =IF( C36>0,plug_diam,"NA") -> NA | G36: =IF(C36=0,"NA",IF(curve=1,plug_diam,VLOOKUP(plug_diam,plug_pvc_cost_cl,2))) -> NA | H36: =IF(E36="NA","","in. diam") ->  | I36: =IF(C36=0,"NA",IF(curve=1,plug_pvc_eq,VLOOKUP(plug_diam,plug_pvc_cost_cl,3))) -> NA | J36: =IF(OR(I36="contact vendor",I36="NA"),0,C36*I36) -> 0 | K36: =IF(I36="NA","N/A",VLOOKUP(plug_diam,plug_pvc_cost_cl,IF(ss_cat="large",4,5))) -> N/A | M36: =$B$27&" - "&$B$35&" - "&B36 -> Well Items - Plugs - PVC | N36: 1 | O36: 1 | P36: 1 | Q36: 1 | R36: 1 | S36: 1 | T36: 1 | U36: 1 | V36: 1 | W36: =IF(ISERROR(K36*L36),0,IF(K36<1,0,L36)) -> 0 | X36: =IF(W36,J36/K36,0) -> 0 | Y36: =IF(W36=1,K36,0) -> 0
A37: 1.3.1 | B37: Stainless Steel | C37: =IF(design=2,wells,0) -> 0 | D37: units | E37: =IF( C37>0,plug_diam,"NA") -> NA | G37: =IF(C37=0,"NA",IF(curve=1,plug_diam,VLOOKUP(plug_diam,plug_ss_cost_cl,2))) -> NA | H37: =IF(E37="NA","","in. diam") ->  | I37: =IF(C37=0,"NA",IF(curve=1,plug_ss_eq,VLOOKUP(plug_diam,plug_ss_cost_cl,3))) -> NA | J37: 0 | K37: =IF(I37="NA","N/A",VLOOKUP(plug_diam,plug_ss_cost_cl,IF(ss_cat="large",4,5))) -> N/A | M37: =$B$27&" - "&$B$35&" - "&B37 -> Well Items - Plugs - Stainless Steel | N37: 2 | O37: 2 | P37: 2 | Q37: 2 | R37: 2 | S37: 2 | T37: 2 | U37: 2 | V37: 2 | W37: =IF(ISERROR(K37*L37),0,IF(K37<1,0,L37)) -> 0 | X37: =IF(W37,J37/K37,0) -> 0 | Y37: =IF(W37=1,K37,0) -> 0
A38: 1.4 | B38: Well Drilling | C38: =IF(design=2,well_depth*wells,0) -> 0 | D38: lf | E38: =IF(C38>0,borehole_diam,"NA") -> NA | G38: =IF(C38>0,borehole_diam,"NA") -> NA | H38: =IF(E38="NA","","in. diam") ->  | I38: =IF(C38=0,"NA",well_drill_cost) -> NA | J38: 0 | K38: =IF(I38="NA","N/A",VLOOKUP(0,drill_12_cost_cl,IF(ss_cat="large",4,5))) -> N/A | M38: =$B$27&" - "&B38 -> Well Items - Well Drilling | N38: 1 | O38: 1 | P38: 1 | Q38: 1 | R38: 1 | S38: 1 | T38: 1 | U38: 1 | V38: 1 | W38: =IF(ISERROR(K38*L38),0,IF(K38<1,0,L38)) -> 0 | X38: =IF(W38,J38/K38,0) -> 0
A39: 1.5 | B39: Gravel Pack | C39: =wells*gravel_len -> 0 | D39: lf | E39: =IF(C39>0,casing_diam,"NA") -> NA | G39: =IF(C39=0,"NA",IF(curve=1,casing_diam,VLOOKUP(casing_diam,gravel_pack_cost_cl,2))) -> NA | H39: =IF(E39="NA","","in. diam") ->  | I39: =IF(C39=0,"NA",IF(curve=1,gravel_pack_eq,VLOOKUP(casing_diam,gravel_pack_cost_cl,3))) -> NA | J39: 0 | K39: =IF(I39="NA","N/A",VLOOKUP(casing_diam,gravel_pack_cost_cl,IF(ss_cat="large",4,5))) -> N/A | M39: =$B$27&" - "&B39 -> Well Items - Gravel Pack | N39: 1 | O39: 1 | P39: 1 | Q39: 1 | R39: 1 | S39: 1 | T39: 1 | U39: 1 | V39: 1
A40: 1.6 | B40: Well Development | C40: =IF(design=2,wells,0) -> 0 | D40: units | E40: NA | G40: NA | I40: =IF(C40=0,"NA",VLOOKUP(0,develop_well_cost_cl,3)) -> NA | J40: 0 | K40: =IF(I40="NA","N/A",VLOOKUP(0,develop_well_cost_cl,IF(ss_cat="large",4,5))) -> N/A | M40: =$B$27&" - "&B40 -> Well Items - Well Development | N40: 1 | O40: 1 | P40: 1 | Q40: 1 | R40: 1 | S40: 1 | T40: 1 | U40: 1 | V40: 1 | W40: =IF(ISERROR(K40*L40),0,IF(K40<1,0,L40)) -> 0 | X40: =IF(W40,J40/K40,0) -> 0
A41: 1.7 | B41: Grout Seal | C41: =IF(design=2,grout_vol,0) -> 0 | D41: cf | E41: NA | G41: NA | I41: =IF(C41=0,"NA",VLOOKUP(0,grout_cost_cl,3)) -> NA | J41: 0 | K41: =IF(I41="NA","N/A",K38) -> N/A | M41: =$B$27&" - "&B41 -> Well Items - Grout Seal | N41: 1 | O41: 1 | P41: 1 | Q41: 1 | R41: 1 | S41: 1 | T41: 1 | U41: 1 | V41: 1 | W41: =IF(ISERROR(K41*L41),0,IF(K41<1,0,L41)) -> 0 | X41: =IF(W41,J41/K41,0) -> 0
A42: 2 | B42: Vaults | W42: =IF(ISERROR(K42*L42),0,IF(K42<1,0,L42)) -> 0 | X42: =IF(W42,J42/K42,0) -> 0
A43: 2.1 | B43: Booster Pump
A44: 2.1.1 | B44: Concrete | C44: =pump_vault_total_conc_vol -> 0 | D44: cy | E44: NA | G44: NA | I44: =IF(C44=0,"NA",VLOOKUP(0,conc_basin_cost_cl,3)) -> NA | J44: =IF(OR(I44="contact vendor",I44="NA"),0,C44*I44) -> 0 | K44: =IF(I44="NA","N/A",VLOOKUP(0,conc_basin_cost_cl,IF(ss_cat="large",4,5))) -> N/A | M44: =$B$42&" - "&$B43&" - "&B44 -> Vaults - Booster Pump - Concrete | N44: 1 | O44: 1 | P44: 1 | Q44: 1 | R44: 1 | S44: 1 | T44: 1 | U44: 1 | V44: 1 | W44: =IF(ISERROR(K44*L44),0,IF(K44<1,0,L44)) -> 0 | X44: =IF(W44,J44/K44,0) -> 0
A45: 2.1.2 | B45: Excavation | C45: =pump_vault_exc_volume -> 0 | D45: cy | E45: NA | G45: NA | I45: =IF(C45=0,"NA",VLOOKUP(0,excavate_cost_cl,3)) -> NA | J45: 0 | K45: =IF(I45="NA","N/A",VLOOKUP(0,conc_basin_cost_cl,IF(ss_cat="large",4,5))) -> N/A | M45: =$B$42&" - "&$B$43&" - "&B45 -> Vaults - Booster Pump - Excavation | N45: 1 | O45: 1 | P45: 1 | Q45: 1 | R45: 1 | S45: 1 | T45: 1 | U45: 1 | V45: 1 | W45: =IF(ISERROR(K45*L45),0,IF(K45<1,0,L45)) -> 0 | X45: =IF(W45,J45/K45,0) -> 0
A46: 2.1.3 | B46: Backfill and Compaction | C46: =pump_vault_backfill_volume -> 0 | D46: cy | E46: NA | G46: NA | I46: =IF(C46=0,"NA",VLOOKUP(0,backfill_cost_cl,3)) -> NA | J46: 0 | K46: =IF(I46="NA","N/A",VLOOKUP(0,conc_basin_cost_cl,IF(ss_cat="large",4,5))) -> N/A | M46: =$B$42&" - "&$B$43&" - "&B46 -> Vaults - Booster Pump - Backfill and Compaction | N46: 1 | O46: 1 | P46: 1 | Q46: 1 | R46: 1 | S46: 1 | T46: 1 | U46: 1 | V46: 1 | W46: =IF(ISERROR(K46*L46),0,IF(K46<1,0,L46)) -> 0 | X46: =IF(W46,J46/K46,0) -> 0
A47: 2.2 | B47: Pressure Reducing Valve
A48: 2.2.1 | B48: Concrete | C48: =prv_vault_total_conc_vol -> 0 | D48: cy | E48: NA | G48: NA | I48: =IF(C48=0,"NA",VLOOKUP(0,conc_basin_cost_cl,3)) -> NA | J48: =IF(OR(I48="contact vendor",I48="NA"),0,C48*I48) -> 0 | K48: =IF(I48="NA","N/A",VLOOKUP(0,conc_basin_cost_cl,IF(ss_cat="large",4,5))) -> N/A | M48: =$B$42&" - "&$B$47&" - "&B48 -> Vaults - Pressure Reducing Valve - Concrete | N48: 1 | O48: 1 | P48: 1 | Q48: 1 | R48: 1 | S48: 1 | T48: 1 | U48: 1 | V48: 1 | W48: =IF(ISERROR(K48*L48),0,IF(K48<1,0,L48)) -> 0 | X48: =IF(W48,J48/K48,0) -> 0
A49: 2.2.2 | B49: Excavation | C49: =prv_vault_exc_volume -> 0 | D49: cy | E49: NA | G49: NA | I49: =IF(C49=0,"NA",VLOOKUP(0,excavate_cost_cl,3)) -> NA | J49: =IF(OR(I49="contact vendor",I49="NA"),0,C49*I49) -> 0 | K49: =IF(I49="NA","N/A",VLOOKUP(0,conc_basin_cost_cl,IF(ss_cat="large",4,5))) -> N/A | M49: =$B$42&" - "&$B$47&" - "&B49 -> Vaults - Pressure Reducing Valve - Excavation | N49: 1 | O49: 1 | P49: 1 | Q49: 1 | R49: 1 | S49: 1 | T49: 1 | U49: 1 | V49: 1 | W49: 0 | X49: 0
A50: 2.2.3 | B50: Backfill and Compaction | C50: =prv_vault_backfill_volume -> 0 | D50: cy | E50: NA | G50: NA | I50: =IF(C50=0,"NA",VLOOKUP(0,backfill_cost_cl,3)) -> NA | J50: =IF(OR(I50="contact vendor",I50="NA"),0,C50*I50) -> 0 | K50: =IF(I50="NA","N/A",VLOOKUP(0,conc_basin_cost_cl,IF(ss_cat="large",4,5))) -> N/A | M50: =$B$42&" - "&$B$47&" - "&B50 -> Vaults - Pressure Reducing Valve - Backfill and Compaction | N50: 1 | O50: 1 | P50: 1 | Q50: 1 | R50: 1 | S50: 1 | T50: 1 | U50: 1 | V50: 1 | W50: 0 | X50: 0
A51: 3 | B51: Piping | W51: 0 | X51: 0
A52: 3.1 | B52: Interconnect | W52: 0 | X52: 0
A53: 3.1.1 | B53: Ductile Iron | C53: =interconnect_pipe_length -> 10000 | D53: lf | E53: =IF(C53=0,"NA",interconnect_pipe_diameter) -> 4 | F53: =IF(C53=0,"","in. diam") -> in. diam | G53: =IF(C53=0,"NA",IF(curve=1,interconnect_pipe_diameter,VLOOKUP(interconnect_pipe_diameter,di_pipe_cost_cl,2))) -> 4 | H53: =IF(C53=0,"","in. diam") -> in. diam | I53: =IF(C53=0,"NA",IF(curve=1,di_pipe_eq_interconnect,VLOOKUP(interconnect_pipe_diameter,di_pipe_cost_cl,3))) -> 74.28278757 | J53: =IF(OR(I53="contact vendor",I53="NA"),0,C53*I53) -> 742827.8757 | K53: =IF(I53="NA","N/A",VLOOKUP(interconnect_pipe_diameter,di_pipe_cost_cl,IF(ss_cat="large",4,5))) -> 35 | L53: 0 | M53: =$B$51&" - "&$B$52&" - "&B53 -> Piping - Interconnect - Ductile Iron | N53: 2 | O53: 2 | P53: 1 | Q53: 2 | R53: 2 | S53: 1 | T53: 2 | U53: 2 | V53: 1 | W53: 0 | X53: 0 | Y53: =IF(W53=1,K53,0) -> 0
A54: 3.1.1 | B54: PVC | C54: =interconnect_pipe_length -> 10000 | D54: lf | E54: =IF(C54=0,"NA",interconnect_pipe_diameter) -> 4 | F54: =IF(C54=0,"","in. diam") -> in. diam | G54: =IF(C54=0,"NA",IF(curve=1,interconnect_pipe_diameter,VLOOKUP(interconnect_pipe_diameter,pvc_pipe_cost_cl,2))) -> 4 | H54: =IF(C54=0,"","in. diam") -> in. diam | I54: =IF(C54=0,"NA",IF(curve=1,pvc_pipe_eq_interconnect,VLOOKUP(interconnect_pipe_diameter,pvc_pipe_cost_cl,3))) -> 6.185340873 | J54: =IF(OR(I54="contact vendor",I54="NA"),0,C54*I54) -> 61853.40873 | K54: =IF(I54="NA","N/A",VLOOKUP(interconnect_pipe_diameter,pvc_pipe_cost_cl,IF(ss_cat="large",4,5))) -> 17 | L54: 1 | M54: =$B$51&" - "&$B$52&" - "&B54 -> Piping - Interconnect - PVC | N54: 1 | O54: 1 | P54: 2 | Q54: 1 | R54: 1 | S54: 2 | T54: 1 | U54: 1 | V54: 2 | W54: 1 | X54: 3638.435808 | Y54: =IF(W54=1,K54,0) -> 17
A55: 3.1.2 | B55: Excavation | C55: =interconnect_trench_vol -> 2736.625514 | D55: cy | E55: NA | G55: NA | I55: =IF(C55=0,"NA",VLOOKUP(0,excavate_cost_cl,3)) -> 30.88 | J55: =IF(OR(I55="contact vendor",I55="NA"),0,C55*I55) -> 84506.99588 | K55: =IF(I55="NA","N/A",IF(L53=1,K53,IF(L54=1,K54,"N/A"))) -> 17 | L55: 1 | M55: =$B$51&" - "&$B$52&" - "&B55 -> Piping - Interconnect - Excavation | N55: 1 | O55: 1 | P55: 1 | Q55: 1 | R55: 1 | S55: 1 | T55: 1 | U55: 1 | V55: 1 | W55: 1 | X55: 4970.999758
A56: 3.1.3 | B56: Backfill and Compaction | C56: =interconnect_trench_vol -> 2736.625514 | D56: cy | E56: NA | G56: NA | I56: =IF(C56=0,"NA",VLOOKUP(0,backfill_cost_cl,3)) -> 18.65 | J56: =IF(OR(I56="contact vendor",I56="NA"),0,C56*I56) -> 51038.06584 | K56: =IF(I56="NA","N/A",IF(L53=1,K53,IF(L54=1,K54,"N/A"))) -> 17 | L56: 1 | M56: =$B$51&" - "&$B$52&" - "&B56 -> Piping - Interconnect - Backfill and Compaction | N56: 1 | O56: 1 | P56: 1 | Q56: 1 | R56: 1 | S56: 1 | T56: 1 | U56: 1 | V56: 1 | W56: 1 | X56: 3002.239167
A57: 3.1.4 | B57: Asphalt Patch | C57: =asphalt_patch_area -> 864.1975309 | D57: sy | E57: =IF(C57=0,"NA",asphalt_thickness) -> 4 | F57: =IF(C57=0,"","in. thick") -> in. thick | G57: =IF(C57=0,"NA",VLOOKUP(asphalt_thickness,asphalt_patch_cost_cl,2)) -> 4 | H57: =IF(C57=0,"","in. diam") -> in. diam | I57: =IF(C57=0,"NA",VLOOKUP(asphalt_thickness,asphalt_patch_cost_cl,3)) -> 101 | J57: =IF(OR(I57="contact vendor",I57="NA"),0,C57*I57) -> 87283.95062 | K57: =IF(I57="NA","N/A",IF(L53=1,K53,IF(L54=1,K54,"N/A"))) -> 17 | L57: 1 | M57: =$B$51&" - "&$B$52&" - "&B57 -> Piping - Interconnect - Asphalt Patch | N57: 1 | O57: 1 | P57: 1 | Q57: 1 | R57: 1 | S57: 1 | T57: 1 | U57: 1 | V57: 1 | W57: 1 | X57: 5134.350036
A58: 3.2 | B58: Well | W58: 0 | X58: 0
A59: 3.2.1 | B59: Ductile Iron | C59: =total_well_pipe_length -> 0 | D59: lf | E59: =IF(C59=0,"NA",well_pipe_diameter) -> NA | F59: =IF(C59=0,"","in. diam") ->  | G59: =IF(C59=0,"NA",IF(curve=1,well_pipe_diameter,VLOOKUP(well_pipe_diameter,di_pipe_cost_cl,2))) -> NA | H59: =IF(C59=0,"","in. diam") ->  | I59: =IF(C59=0,"NA",IF(curve=1,di_pipe_eq_well,VLOOKUP(well_pipe_diameter,di_pipe_cost_cl,3))) -> NA | J59: =IF(OR(I59="contact vendor",I59="NA"),0,C59*I59) -> 0 | K59: =IF(I59="NA","N/A",VLOOKUP(well_pipe_diameter,di_pipe_cost_cl,IF(ss_cat="large",4,5))) -> N/A | M59: =$B$51&" - "&$B$58&" - "&B59 -> Piping - Well - Ductile Iron | N59: 2 | O59: 2 | P59: 1 | Q59: 2 | R59: 2 | S59: 1 | T59: 2 | U59: 2 | V59: 1 | W59: 0 | X59: 0
A60: 3.2.1 | B60: PVC | C60: =total_well_pipe_length -> 0 | D60: lf | E60: =IF(C60=0,"NA",well_pipe_diameter) -> NA | F60: =IF(C60=0,"","in. diam") ->  | G60: =IF(C60=0,"NA",IF(curve=1,well_pipe_diameter,VLOOKUP(well_pipe_diameter,pvc_pipe_cost_cl,2))) -> NA | H60: =IF(C60=0,"","in. diam") ->  | I60: =IF(C60=0,"NA",IF(curve=1,pvc_pipe_eq_well,VLOOKUP(well_pipe_diameter,pvc_pipe_cost_cl,3))) -> NA | J60: 0 | K60: =IF(I60="NA","N/A",VLOOKUP(well_pipe_diameter,pvc_pipe_cost_cl,IF(ss_cat="large",4,5))) -> N/A | M60: =$B$51&" - "&$B$58&" - "&B60 -> Piping - Well - PVC | N60: 1 | O60: 1 | P60: 2 | Q60: 1 | R60: 1 | S60: 2 | T60: 1 | U60: 1 | V60: 2 | W60: 0 | X60: 0
A61: 3.2.2 | B61: Excavation | C61: =well_trench_vol -> 0 | D61: cy | E61: NA | G61: NA | I61: =IF(C61=0,"NA",VLOOKUP(0,excavate_cost_cl,3)) -> NA | J61: 0 | K61: =IF(I61="NA","N/A",IF(L59=1,K59,IF(L60=1,K60,"N/A"))) -> N/A | M61: =$B$51&" - "&$B$58&" - "&B61 -> Piping - Well - Excavation | N61: 1 | O61: 1 | P61: 1 | Q61: 1 | R61: 1 | S61: 1 | T61: 1 | U61: 1 | V61: 1 | W61: 0 | X61: 0
A62: 3.2.3 | B62: Backfill and Compaction | C62: =well_trench_vol -> 0 | D62: cy | E62: NA | G62: NA | I62: =IF(C62=0,"NA",VLOOKUP(0,backfill_cost_cl,3)) -> NA | J62: 0 | K62: =IF(I62="NA","N/A",IF(L59=1,K59,IF(L60=1,K60,"N/A"))) -> N/A | M62: =$B$51&" - "&$B$58&" - "&B62 -> Piping - Well - Backfill and Compaction | N62: 1 | O62: 1 | P62: 1 | Q62: 1 | R62: 1 | S62: 1 | T62: 1 | U62: 1 | V62: 1 | W62: 0 | X62: 0
A63: 4 | B63: Valves | N63: 1 | O63: 1 | P63: 1 | Q63: 1 | R63: 1 | S63: 1 | T63: 1 | U63: 1 | V63: 1 | W63: 0 | X63: 0
A64: 4.1 | B64: Isolation and Street | W64: 0 | X64: 0
A65: 4.1.1 | B65: Ductile Iron | C65: =num_valves -> 11 | D65: =IF( C65=0,"", "units") -> units | E65: =IF(C65=0,"NA",valve_size) -> 4 | F65: =IF(C65=0,"","in. diam") -> in. diam | G65: =IF(C65=0,"NA",IF(curve=1,valve_size,VLOOKUP(valve_size,street_valve_cost_cl,2))) -> 4 | H65: =IF(C65=0,"","in. diam") -> in. diam | I65: =IF(C65=0,"NA",IF(curve=1,street_valve_eq,VLOOKUP(valve_size,street_valve_cost_cl,3))) -> 1339.469108 | J65: =IF(OR(I65="contact vendor",I65="NA"),0,C65*I65) -> 14734.16019 | K65: =IF(I65="NA","N/A",VLOOKUP(valve_size,street_valve_cost_cl,IF(ss_cat="large",4,5))) -> 20 | L65: 1 | M65: =$B$63&" - "&$B$64&" - "&B65 -> Valves - Isolation and Street - Ductile Iron | N65: 1 | O65: 1 | P65: 1 | Q65: 1 | R65: 1 | S65: 1 | T65: 1 | U65: 1 | V65: 1 | W65: 1 | X65: 736.7080095
A66: 4.2 | B66: Motor/Air Operated (on/off) | W66: 0 | X66: 0
A67: 4.2.1 | B67: Booster Pump - Polypropylene/PVC | C67: =total_booster_MOV -> 0 | D67: =IF( C67=0,"", "units") ->  | E67: =IF( C67=0,"NA",valve_size) -> NA | F67: =IF(C67=0,"","in. diam") ->  | G67: =IF(C67=0,"NA",IF(curve=1,E67,VLOOKUP(E67,pp_mov_cost_cl,2))) -> NA | H67: =IF(C67=0,"","in. diam") ->  | I67: =IF(C67=0,"NA",IF(curve=1,pp_mov_eq_booster_pump,VLOOKUP(G67,pp_mov_cost_cl,3))) -> NA | J67: =IF(OR(I67="contact vendor",I67="NA"),0,C67*I67) -> 0 | K67: =IF(I67="NA","N/A",VLOOKUP(G67,pp_mov_cost_cl,IF(ss_cat="large",4,5))) -> N/A | M67: =$B$63&" - "&$B$66&" - "&B67 -> Valves - Motor/Air Operated (on/off) - Booster Pump - Polypropylene/PVC | N67: 1 | O67: 2 | P67: 3 | Q67: 1 | R67: 2 | S67: 3 | T67: 1 | U67: 2 | V67: 3 | W67: 0 | X67: 0
A68: 4.2.1 | B68: Booster Pump - Stainless Steel | C68: =total_booster_MOV -> 0 | E68: NA | G68: =IF(C68=0,"NA",IF(curve=1,E68,VLOOKUP(E68,ss_mov_cost_cl,2))) -> NA | I68: =IF(C68=0,"NA",IF(curve=1,ss_mov_eq_booster_pump,VLOOKUP(G68,ss_mov_cost_cl,3))) -> NA | J68: 0 | K68: =IF(I68="NA","N/A",VLOOKUP(G68,ss_mov_cost_cl,IF(ss_cat="large",4,5))) -> N/A | M68: Valves - Motor/Air Operated (on/off) - Booster Pump - Stainless Steel | N68: 3 | O68: 3 | P68: 1 | Q68: 3 | R68: 3 | S68: 1 | T68: 3 | U68: 3 | V68: 1 | W68: 0 | X68: 0
A69: 4.2.1 | B69: Booster Pump - Cast Iron | C69: =total_booster_MOV -> 0 | E69: NA | G69: =IF(C69=0,"NA",IF(curve=1,E69,VLOOKUP(E69,ci_mov_cost_cl,2))) -> NA | I69: =IF(C69=0,"NA",IF(curve=1,ci_mov_eq_booster_pump,VLOOKUP(G69,ci_mov_cost_cl,3))) -> NA | J69: 0 | K69: =IF(I69="NA","N/A",VLOOKUP(G69,ci_mov_cost_cl,IF(ss_cat="large",4,5))) -> N/A | M69: Valves - Motor/Air Operated (on/off) - Booster Pump - Cast Iron | N69: 2 | O69: 1 | P69: 2 | Q69: 2 | R69: 1 | S69: 2 | T69: 2 | U69: 1 | V69: 2 | W69: 0 | X69: 0
A70: 4.2.2 | B70: Well Pump - Polypropylene/PVC | C70: =total_well_MOV -> 0 | E70: NA | G70: =IF(C70=0,"NA",IF(curve=1,E70,VLOOKUP(E70,pp_mov_cost_cl,2))) -> NA | I70: =IF(C70=0,"NA",IF(curve=1,pp_mov_eq_well_pump,VLOOKUP(G70,pp_mov_cost_cl,3))) -> NA | J70: 0 | K70: =IF(I70="NA","N/A",VLOOKUP(G70,pp_mov_cost_cl,IF(ss_cat="large",4,5))) -> N/A | M70: Valves - Motor/Air Operated (on/off) - Well Pump - Polypropylene/PVC | N70: 1 | O70: 2 | P70: 3 | Q70: 1 | R70: 2 | S70: 3 | T70: 1 | U70: 2 | V70: 3 | W70: 0 | X70: 0
A71: 4.2.2 | B71: Well Pump - Stainless Steel | C71: =total_well_MOV -> 0 | E71: NA | G71: =IF(C71=0,"NA",IF(curve=1,E71,VLOOKUP(E71,ss_mov_cost_cl,2))) -> NA | I71: =IF(C71=0,"NA",IF(curve=1,ss_mov_eq_well_pump,VLOOKUP(G71,ss_mov_cost_cl,3))) -> NA | J71: 0 | K71: =IF(I71="NA","N/A",VLOOKUP(G71,ss_mov_cost_cl,IF(ss_cat="large",4,5))) -> N/A | M71: Valves - Motor/Air Operated (on/off) - Well Pump - Stainless Steel | N71: 3 | O71: 3 | P71: 1 | Q71: 3 | R71: 3 | S71: 1 | T71: 3 | U71: 3 | V71: 1 | W71: 0 | X71: 0
A72: 4.2.2 | B72: Well Pump - Cast Iron | C72: =total_well_MOV -> 0 | E72: NA | G72: =IF(C72=0,"NA",IF(curve=1,E72,VLOOKUP(E72,ci_mov_cost_cl,2))) -> NA | I72: =IF(C72=0,"NA",IF(curve=1,ci_mov_eq_well_pump,VLOOKUP(G72,ci_mov_cost_cl,3))) -> NA | J72: 0 | K72: =IF(I72="NA","N/A",VLOOKUP(G72,ci_mov_cost_cl,IF(ss_cat="large",4,5))) -> N/A | M72: Valves - Motor/Air Operated (on/off) - Well Pump - Cast Iron | N72: 2 | O72: 1 | P72: 2 | Q72: 2 | R72: 1 | S72: 2 | T72: 2 | U72: 1 | V72: 2 | W72: 0 | X72: 0
A73: 4.3 | B73: Manual | W73: 0 | X73: 0
A74: 4.3.1 | B74: Booster Pump - Polypropylene/PVC | C74: =total_booster_man -> 0 | D74: =IF( C74=0,"", "units") ->  | E74: =IF( C74=0,"NA",valve_size) -> NA | F74: =IF(C74=0,"","in. diam") ->  | G74: =IF(C74=0,"NA",IF(curve=1,E74,VLOOKUP(E74,pp_man_cost_cl,2))) -> NA | H74: =IF(C74=0,"","in. diam") ->  | I74: =IF(C74=0,"NA",IF(curve=1,pp_man_eq_booster_pump,VLOOKUP(G74,pp_man_cost_cl,3))) -> NA | J74: =IF(OR(I74="contact vendor",I74="NA"),0,C74*I74) -> 0 | K74: =IF(I74="NA","N/A",VLOOKUP(G74,pp_man_cost_cl,IF(ss_cat="large",4,5))) -> N/A | M74: =$B$63&" - "&$B$73&" - "&B74 -> Valves - Manual - Booster Pump - Polypropylene/PVC | N74: 1 | O74: 2 | P74: 3 | Q74: 1 | R74: 2 | S74: 3 | T74: 1 | U74: 2 | V74: 3 | W74: 0 | X74: 0
A75: 4.3.1 | B75: Booster Pump - Stainless Steel | C75: =total_booster_man -> 0 | E75: NA | G75: =IF(C75=0,"NA",IF(curve=1,E75,VLOOKUP(E75,ss_man_cost_cl,2))) -> NA | I75: =IF(C75=0,"NA",IF(curve=1,ss_man_eq_booster_pump,VLOOKUP(G75,ss_man_cost_cl,3))) -> NA | J75: 0 | K75: =IF(I75="NA","N/A",VLOOKUP(G75,ss_man_cost_cl,IF(ss_cat="large",4,5))) -> N/A | M75: Valves - Manual - Booster Pump - Stainless Steel | N75: 3 | O75: 3 | P75: 1 | Q75: 3 | R75: 3 | S75: 1 | T75: 3 | U75: 3 | V75: 1 | W75: 0 | X75: 0
A76: 4.3.1 | B76: Booster Pump - Cast Iron | C76: =total_booster_man -> 0 | E76: NA | G76: =IF(C76=0,"NA",IF(curve=1,E76,VLOOKUP(E76,ci_bfv_cost_cl,2))) -> NA | I76: =IF(C76=0,"NA",IF(curve=1,ci_man_eq_booster_pump,VLOOKUP(G76,ci_bfv_cost_cl,3))) -> NA | J76: 0 | K76: =IF(I76="NA","N/A",VLOOKUP(G76,ci_bfv_cost_cl,IF(ss_cat="large",4,5))) -> N/A | M76: Valves - Manual - Booster Pump - Cast Iron | N76: 2 | O76: 1 | P76: 2 | Q76: 2 | R76: 1 | S76: 2 | T76: 2 | U76: 1 | V76: 2 | W76: 0 | X76: 0
A77: 4.3.2 | B77: Well Pump - Polypropylene/PVC | C77: =total_well_man -> 0 | E77: NA | G77: =IF(C77=0,"NA",IF(curve=1,E77,VLOOKUP(E77,pp_man_cost_cl,2))) -> NA | I77: =IF(C77=0,"NA",IF(curve=1,pp_man_eq_well_pump,VLOOKUP(G77,pp_man_cost_cl,3))) -> NA | J77: 0 | K77: =IF(I77="NA","N/A",VLOOKUP(G77,pp_man_cost_cl,IF(ss_cat="large",4,5))) -> N/A | M77: Valves - Manual - Well Pump - Polypropylene/PVC | N77: 1 | O77: 2 | P77: 3 | Q77: 1 | R77: 2 | S77: 3 | T77: 1 | U77: 2 | V77: 3 | W77: 0 | X77: 0
A78: 4.3.2 | B78: Well Pump - Stainless Steel | C78: =total_well_man -> 0 | E78: NA | G78: =IF(C78=0,"NA",IF(curve=1,E78,VLOOKUP(E78,ss_man_cost_cl,2))) -> NA | I78: =IF(C78=0,"NA",IF(curve=1,ss_man_eq_well_pump,VLOOKUP(G78,ss_man_cost_cl,3))) -> NA | J78: 0 | K78: =IF(I78="NA","N/A",VLOOKUP(G78,ss_man_cost_cl,IF(ss_cat="large",4,5))) -> N/A | M78: Valves - Manual - Well Pump - Stainless Steel | N78: 3 | O78: 3 | P78: 1 | Q78: 3 | R78: 3 | S78: 1 | T78: 3 | U78: 3 | V78: 1 | W78: 0 | X78: 0
A79: 4.3.2 | B79: Well Pump - Cast Iron | C79: =total_well_man -> 0 | E79: NA | G79: =IF(C79=0,"NA",IF(curve=1,E79,VLOOKUP(E79,ci_bfv_cost_cl,2))) -> NA | I79: =IF(C79=0,"NA",IF(curve=1,ci_man_eq_well_pump,VLOOKUP(G79,ci_bfv_cost_cl,3))) -> NA | J79: 0 | K79: =IF(I79="NA","N/A",VLOOKUP(G79,ci_bfv_cost_cl,IF(ss_cat="large",4,5))) -> N/A | M79: Valves - Manual - Well Pump - Cast Iron | N79: 2 | O79: 1 | P79: 2 | Q79: 2 | R79: 1 | S79: 2 | T79: 2 | U79: 1 | V79: 2 | W79: 0 | X79: 0
A80: 4.4 | B80: Control | W80: 0 | X80: 0
A81: 4.4.1 | B81: Pressure Reducing | C81: =num_PRVs -> 0 | D81: units | E81: =IF(C81=0,"NA",PRV_size) -> NA | F81: =IF(C81=0,"","in. diam") ->  | G81: =IF(C81=0,"NA",IF(curve=1,PRV_size,VLOOKUP(PRV_size,PRV_cost_cl,2))) -> NA | H81: =IF(C81=0,"","in. diam") ->  | I81: =IF(C81=0,"NA",IF(curve=1,prv_eq,VLOOKUP(PRV_size,PRV_cost_cl,3))) -> NA | J81: =IF(OR(I81="contact vendor",I81="NA"),0,C81*I81) -> 0 | K81: =IF(I81="NA","N/A",VLOOKUP(PRV_size,PRV_cost_cl,IF(ss_cat="large",4,5))) -> N/A | M81: =$B$63&" - "&$B$80&" - "&B81 -> Valves - Control - Pressure Reducing | N81: 1 | O81: 1 | P81: 1 | Q81: 1 | R81: 1 | S81: 1 | T81: 1 | U81: 1 | V81: 1 | W81: 0 | X81: 0
A82: 5 | B82: Pumps | W82: 0 | X82: 0
A83: 5.1 | B83: Interconnect Booster Pump | C83: =total_booster_pumps -> 0 | D83: units | E83: =IF(C83=0,"NA",booster_pump_rating) -> NA | F83: =IF(C83=0,"","gpm") ->  | G83: =IF(C83=0,"NA",IF(curve=1,booster_pump_rating,booster_pump_size_used)) -> NA | H83: =IF(C83=0,"","gpm") ->  | I83: =IF(C83=0,"NA",IF(booster_pump_rating=0,"-",IF(curve=1,int_booster_pump_eq,booster_pump_cost))) -> NA | J83: =IF(OR(I83="contact vendor",I83="NA"),0,C83*I83) -> 0 | K83: =IF(C83=0,"N/A",VLOOKUP(booster_pump_rating,pump_cost_cl,IF(ss_cat="large",4,5))) -> N/A | M83: =$B$82&" - "&B83 -> Pumps - Interconnect Booster Pump | N83: 1 | O83: 1 | P83: 1 | Q83: 1 | R83: 1 | S83: 1 | T83: 1 | U83: 1 | V83: 1 | W83: 0 | X83: 0
A84: 5.2 | B84: Well Pump | C84: =well_pumps -> 0 | D84: units | E84: =IF(C84=0,"NA",well_pump_hp) -> NA | F84: =IF(C84=0,"","hp") ->  | G84: =IF(C84=0,"NA",VLOOKUP(E84,well_pump_cost_cl,2)) -> NA | H84: =IF(C84=0,"","hp") ->  | I84: =IF(C84=0,"NA",VLOOKUP(G84,well_pump_cost_cl,3)) -> NA | J84: 0 | K84: =IF(I84="NA","N/A",VLOOKUP(G84,well_pump_cost_cl,IF(ss_cat="large",4,5))) -> N/A | M84: =$B$82&" - "&B84 -> Pumps - Well Pump | N84: 1 | O84: 1 | P84: 1 | Q84: 1 | R84: 1 | S84: 1 | T84: 1 | U84: 1 | V84: 1 | W84: 0 | X84: 0
A85: 6 | B85: Instrumentation | W85: 0 | X85: 0
A86: 6.1 | B86: Flow Meters - Interconnect | W86: 0 | X86: 0
A87: 6.1.1 | B87: Orifice Plate | C87: =IF( interconnect_meter_size=0,0,1) -> 1 | D87: units | E87: =IF(C87=0,"NA",interconnect_meter_size) -> 4 | F87: =IF(C87=0,"","in. diam") -> in. diam | G87: =IF(curve=1,E87,VLOOKUP(E87,op_fm_cost_cl,2)) -> 4 | H87: =IF(C87=0,"","in. diam") -> in. diam | I87: =IF(C87=0,"NA", IF(curve=1,op_fm_eq_innterconnect,VLOOKUP(G87,op_fm_cost_cl,3))) -> 2640.989934 | J87: =IF(OR(I87="contact vendor",I87="NA"),0,C87*I87) -> 2640.989934 | K87: =IF( I87="NA","NA",VLOOKUP(G87,op_fm_cost_cl,IF(ss_cat="large",4,5))) -> 14 | L87: 0 | M87: =$B$85&" - "&$B$86&" - "&B87 -> Instrumentation - Flow Meters - Interconnect - Orifice Plate | N87: 3 | O87: 4 | P87: 4 | Q87: 3 | R87: 4 | S87: 4 | T87: 3 | U87: 3 | V87: 4 | W87: 0 | X87: 0
A88: 6.1.1 | B88: Propeller | C88: =IF( interconnect_meter_size=0,0,1) -> 1 | D88: units | E88: =IF(C88=0,"NA",interconnect_meter_size) -> 4 | F88: =IF(C88=0,"","in. diam") -> in. diam | G88: =IF(curve=1,E88,VLOOKUP(E88,prop_fm_cost_cl,2)) -> 4 | H88: =IF(C88=0,"","in. diam") -> in. diam | I88: =IF(C88=0,"NA", IF(curve=1,prop_fm_eq_innterconnect,VLOOKUP(G88,prop_fm_cost_cl,3))) -> 3600.376351 | J88: =IF(OR(I88="contact vendor",I88="NA"),0,C88*I88) -> 3600.376351 | K88: =IF(I88="NA","NA",VLOOKUP(G88,prop_fm_cost_cl,IF(ss_cat="large",4,5))) -> 14 | L88: 1 | M88: =$B$85&" - "&$B$86&" - "&B88 -> Instrumentation - Flow Meters - Interconnect - Propeller | N88: 1 | O88: 2 | P88: 3 | Q88: 1 | R88: 2 | S88: 3 | T88: 4 | U88: 4 | V88: 2 | W88: 1 | X88: 257.1697394
A89: 6.1.1 | B89: Venturi | C89: =IF( interconnect_meter_size=0,0,1) -> 1 | D89: units | E89: =IF(C89=0,"NA",interconnect_meter_size) -> 4 | F89: =IF(C89=0,"","in. diam") -> in. diam | G89: =IF(curve=1,E89,VLOOKUP(E89,ven_fm_cost_cl,2)) -> 4 | H89: =IF(C89=0,"","in. diam") -> in. diam | I89: =IF(C89=0,"NA", IF(curve=1,ven_fm_eq_innterconnect,VLOOKUP(G89,ven_fm_cost_cl,3))) -> 2664.461708 | J89: =IF(OR(I89="contact vendor",I89="NA"),0,C89*I89) -> 2664.461708 | K89: =IF(I89="NA","NA",VLOOKUP(G89,ven_fm_cost_cl,IF(ss_cat="large",4,5))) -> 14 | L89: 0 | M89: =$B$85&" - "&$B$86&" - "&B89 -> Instrumentation - Flow Meters - Interconnect - Venturi | N89: 2 | O89: 1 | P89: 2 | Q89: 2 | R89: 1 | S89: 2 | T89: 1 | U89: 2 | V89: 3 | W89: 0 | X89: 0
A90: 6.1.1 | B90: Magnetic | C90: =IF( interconnect_meter_size=0,0,1) -> 1 | D90: units | E90: =IF(C90=0,"NA",interconnect_meter_size) -> 4 | F90: =IF(C90=0,"","in. diam") -> in. diam | G90: =IF(curve=1,E90,VLOOKUP(E90,mag_fm_cost_cl,2)) -> 4 | H90: =IF(C90=0,"","in. diam") -> in. diam | I90: =IF(C90=0,"NA", IF(curve=1,mag_fm_eq_innterconnect,VLOOKUP(G90,mag_fm_cost_cl,3))) -> 5121.66113 | J90: =IF(OR(I90="contact vendor",I90="NA"),0,C90*I90) -> 5121.66113 | K90: =IF(I90="NA","NA",VLOOKUP(G90,mag_fm_cost_cl,IF(ss_cat="large",4,5))) -> 14 | L90: 0 | M90: =$B$85&" - "&$B$86&" - "&B90 -> Instrumentation - Flow Meters - Interconnect - Magnetic | N90: 4 | O90: 3 | P90: 1 | Q90: 4 | R90: 3 | S90: 1 | T90: 2 | U90: 1 | V90: 1 | W90: 0 | X90: 0
A91: 6.2 | B91: Flow Meters - Well
A92: 6.2.1 | B92: Orifice Plate | C92: =IF( well_meter_size=0,0,1) -> 0 | D92: units | E92: =IF(C92=0,"NA",well_meter_size) -> NA | F92: =IF(C92=0,"","in. diam") ->  | G92: =IF(curve=1,E92,VLOOKUP(E92,op_fm_cost_cl,2)) -> NA | H92: =IF(C92=0,"","in. diam") ->  | I92: =IF(C92=0,"NA", IF(curve=1,op_fm_eq_well,VLOOKUP(G92,op_fm_cost_cl,3))) -> NA | J92: =IF(OR(I92="contact vendor",I92="NA"),0,C92*I92) -> 0 | K92: =IF( I92="NA","NA",VLOOKUP(G92,op_fm_cost_cl,IF(ss_cat="large",4,5))) -> NA | M92: =$B$85&" - "&$B$91&" - "&B92 -> Instrumentation - Flow Meters - Well - Orifice Plate | N92: 3 | O92: 4 | P92: 4 | Q92: 3 | R92: 4 | S92: 4 | T92: 3 | U92: 3 | V92: 4 | W92: =IF(ISERROR(K92*L92),0,IF(K92<1,0,L92)) -> 0 | X92: =IF(W92,J92/K92,0) -> 0
A93: 6.2.1 | B93: Propeller | C93: =IF( well_meter_size=0,0,1) -> 0 | D93: units | E93: =IF(C93=0,"NA",well_meter_size) -> NA | F93: =IF(C93=0,"","in. diam") ->  | G93: =IF(curve=1,E93,VLOOKUP(E93,prop_fm_cost_cl,2)) -> NA | H93: =IF(C93=0,"","in. diam") ->  | I93: =IF(C93=0,"NA", IF(curve=1,prop_fm_eq_well,VLOOKUP(G93,prop_fm_cost_cl,3))) -> NA | J93: 0 | K93: =IF(I93="NA","NA",VLOOKUP(G93,prop_fm_cost_cl,IF(ss_cat="large",4,5))) -> NA | M93: =$B$85&" - "&$B$91&" - "&B93 -> Instrumentation - Flow Meters - Well - Propeller | N93: 1 | O93: 2 | P93: 3 | Q93: 1 | R93: 2 | S93: 3 | T93: 4 | U93: 4 | V93: 2 | W93: 0 | X93: 0
A94: 6.2.1 | B94: Venturi | C94: =IF( well_meter_size=0,0,1) -> 0 | D94: units | E94: =IF(C94=0,"NA",well_meter_size) -> NA | F94: =IF(C94=0,"","in. diam") ->  | G94: =IF(curve=1,E94,VLOOKUP(E94,ven_fm_cost_cl,2)) -> NA | H94: =IF(C94=0,"","in. diam") ->  | I94: =IF(C94=0,"NA", IF(curve=1,ven_fm_eq_well,VLOOKUP(G94,ven_fm_cost_cl,3))) -> NA | J94: 0 | K94: =IF(I94="NA","NA",VLOOKUP(G94,ven_fm_cost_cl,IF(ss_cat="large",4,5))) -> NA | M94: =$B$85&" - "&$B$91&" - "&B94 -> Instrumentation - Flow Meters - Well - Venturi | N94: 2 | O94: 1 | P94: 2 | Q94: 2 | R94: 1 | S94: 2 | T94: 1 | U94: 2 | V94: 3 | W94: 0 | X94: 0
A95: 6.2.1 | B95: Magnetic | C95: =IF( well_meter_size=0,0,1) -> 0 | D95: units | E95: =IF(C95=0,"NA",well_meter_size) -> NA | F95: =IF(C95=0,"","in. diam") ->  | G95: =IF(curve=1,E95,VLOOKUP(E95,mag_fm_cost_cl,2)) -> NA | H95: =IF(C95=0,"","in. diam") ->  | I95: =IF(C95=0,"NA", IF(curve=1,mag_fm_eq_well,VLOOKUP(G95,mag_fm_cost_cl,3))) -> NA | J95: 0 | K95: =IF(I95="NA","NA",VLOOKUP(G95,mag_fm_cost_cl,IF(ss_cat="large",4,5))) -> NA | M95: =$B$85&" - "&$B$91&" - "&B95 -> Instrumentation - Flow Meters - Well - Magnetic | N95: 4 | O95: 3 | P95: 1 | Q95: 4 | R95: 3 | S95: 1 | T95: 2 | U95: 1 | V95: 1 | W95: 0 | X95: 0
A96: 7 | B96: System Controls | W96: 0 | X96: 0
A97: 7.1 | B97: Remote Telemetry Units (RTUs) | C97: =total_RTU -> 1 | D97: units | E97: NA | G97: NA | I97: =IF(C97=0,"NA",VLOOKUP(0,RTU_cost_cl,3)) -> 1215 | J97: =IF(OR(I97="contact vendor",I97="NA"),0,C97*I97) -> 1215 | K97: =IF(I97="NA","N/A",VLOOKUP(0,RTU_cost_cl,IF(ss_cat="large",4,5))) -> 8 | L97: 1 | M97: =$B$96&" - "&B97 -> System Controls - Remote Telemetry Units (RTUs) | N97: 1 | O97: 1 | P97: 1 | Q97: 1 | R97: 1 | S97: 1 | T97: 1 | U97: 1 | V97: 1 | W97: 1 | X97: 151.875
A98: 7.2 | B98: Well Pump - Soft Start Control | C98: =tot_soft_start -> 0 | D98: units | E98: NA | G98: NA | I98: =IF(C98=0,"NA",VLOOKUP(0,soft_start_cost_cl,3)) -> NA | J98: 0 | K98: =IF(I98="NA","N/A",VLOOKUP(0,soft_start_cost_cl,IF(ss_cat="large",4,5))) -> N/A | M98: =$B$96&" - "&B98 -> System Controls - Well Pump - Soft Start Control | N98: 1 | O98: 1 | P98: 1 | Q98: 1 | R98: 1 | S98: 1 | T98: 1 | U98: 1 | V98: 1 | W98: =IF(ISERROR(K98*L98),0,IF(K98<1,0,L98)) -> 0 | X98: =IF(W98,J98/K98,0) -> 0
A99: 8 | B99: Building Structures | W99: 0 | X99: 0
A100: 8.1 | B100: Building 1 | W100: 0 | X100: 0
A101: 8.1.1 | B101: Small Low Cost Shed | C101: =IF(AND(build1_fp>0,build1_fp<500),1,0) -> 0 | D101: units | E101: =IF(C101=0,"NA",build1_fp) -> NA | F101: =IF(C101=0,"","sf") ->  | G101: =IF(C101=0,"NA",build1_fp) -> NA | H101: =IF(C101=0,"","sf") ->  | I101: =IF(C101=0,"NA",VLOOKUP(build1_fp,bldg_shed_cost_cl,3)) -> NA | J101: =IF(OR(I101="contact vendor",I101="NA"),0,G101*I101) -> 0 | K101: =IF($C101=0,"N/A",VLOOKUP(build1_fp,bldg_shed_cost_cl,IF(ss_cat="large",4,5))) -> N/A | M101: =$B$99&" - "&$B$100&" - "&B101 -> Building Structures - Building 1 - Small Low Cost Shed | N101: =IF(include_buildings=1,1,0) -> 0 | O101: 0 | P101: 0 | Q101: 0 | R101: 0 | S101: 0 | T101: 0 | U101: 0 | V101: 0 | W101: 0 | X101: 0 | Y101: =IF(W101,K101,0) -> 0
A102: 8.1.1 | B102: Low Quality | C102: =IF(build1_fp>=500,1,0) -> 0 | D102: units | E102: =build1_fp -> 0 | F102: sf | G102: =build1_fp -> 0 | H102: sf | I102: =IF(C102=0,"NA",IF(curve=1,bldg_lo_eq_1,VLOOKUP(build1_fp, bldg_lo_cost_cl,3))) -> NA | J102: =IF(OR(I102="NA",I102="contact vendor"),0,G102*I102) -> 0 | K102: =IF($C102=0,"N/A",VLOOKUP(build1_fp,bldg_lo_cost_cl,IF(ss_cat="large",4,5))) -> N/A | M102: =$B$99&" - "&$B$100&" - "&B102 -> Building Structures - Building 1 - Low Quality | N102: 0 | O102: 0 | P102: 0 | Q102: 0 | R102: 0 | S102: 0 | T102: 0 | U102: 0 | V102: 0 | W102: 0 | X102: 0 | Y102: =IF(W102,K102,0) -> 0
W103: direct_for_UL | X103: total_direct_depreciation | Y103: build_UL
A104: Total of direct line items above: | W104: =SUMPRODUCT(W29:W102,J29:J102) -> 304231.9576 | X104: =SUM(X29:X102) -> 17891.77752 | Y104: =MAX(Y36:Y37,Y53:Y54,Y32:Y34,Y29:Y30) -> 17
B105: Direct cost category | C105: Total | D105: Guidance
B106: Process costs | C106: =SUMPRODUCT(J28:J97,L28:L97) -> 304231.9576 | D106: Excludes components in italics (which are alternate costs for comparison). Includes installation, transportation, and O&P
B107: Building costs | C107: =SUMPRODUCT(J101:J102,L101:L102) -> 0 | D107: See indirect assumptions sheet to exclude buildings
B108: Total direct capital cost | C108: =process_cost+building_cost -> 304231.9576 | D108: Total of process costs
A110: Add-on Cost Details (See indirect assumptions sheet to exclude individual add-on items)
B111: Add-on Line Item | C111: Total | D111: Guidance
B112: Permits | C112: =permit_cost -> 0 | D112: For building permits
B113: Pilot Study | C113: 0 | D113: No pilot study needed for this technology
B114: Land Cost | C114: =include_land*land_required*land_cost -> 0 | D114: ="For "&TEXT(land_required,"#0.000")&" acres" -> For 0.000 acres
B115: Total add-on costs | C115: =SUM(C112:C114) -> 0
A117: Indirect Capital Cost Details (See indirect assumptions sheet to exclude individual indirect items)
B118: Indirect Line Item | C118: Total | D118: Percent | E118: Guidance
B119: Mobilization and Demobilization | C119: =(direct_cost+C121+C122+C123+C124+C125+C126+C127+C130)*D119 -> 16732.75767 | D119: =CHOOSE(ss_cat2,mob_pct_small,mob_pct_medium,mob_pct_large) -> 0.05
B120: Architectural Fees for Treatment Building | C120: =IF(ss_cat2=1,include_arch_small,include_arch)*D120*building_cost -> 0 | D120: =VLOOKUP(building_cost,architectural_table_cl,3) -> 0.09 | E120: Excluded by default for small systems
B121: Installation, Transportation, and O&P | C121: =direct_cost*D121 -> 0 | D121: =inst_pct -> 0
B122: Site Work | C122: =include_sitework*sitework_cost -> 0 | E122: Calculated based on system requirements.
B123: Yard Piping | C123: =0 -> 0 | E123: Not included in this technology
B124: Geotechnical | C124: =IF(component_level="",include_geo_low,IF(component_level=1,include_geo_medium,include_geo_high)) *geotech_cost -> 0 | E124: Calculated based on system requirements.
B125: Standby Power | C125: =IF(ss_cat2=1,include_standby_small,include_standby)*std_power_cost -> 0 | E125: Calculated based on system requirements. Excluded by default for small systems
B126: Electrical (including yard wiring) | C126: =IF(OR(C83>0,C84>0),process_cost*D126,0) -> 0 | D126: =elect_pct -> 0.1 | E126: Percentage is applied only to process cost. Building direct costs include electrical components.
B127: Instrumentation and Control | C127: =direct_cost*D127 -> 0 | D127: =i_c_pct -> 0
B128: Contingency | C128: =IF(component_level="",include_conting_low,IF(component_level=1,include_conting_medium,include_conting_high))*(direct_cost+addon_cost+SUM(C119:C127,C129:C134))*D128 -> 0 | D128: =IF(component_level="",include_conting_low,IF(component_level=1,include_conting_medium,include_conting_high))*VLOOKUP(direct_cost,contingency_table_cl,3)*complexity -> 0 | E128: Included for high cost systems only.
B129: Process Engineering | C129: =direct_cost*D129 -> 60846.39152 | D129: =CHOOSE(ss_cat2,eng_pct_small,eng_pct_medium,eng_pct_large) -> 0.2
B130: Miscellaneous Allowance | C130: =direct_cost*D130 -> 30423.19576 | D130: =misc_pct -> 0.1 | E130: =IF(design=1, "Includes interconnection pipe fittings","") -> Includes interconnection pipe fittings
B131: Legal, Fiscal, and Administrative | C131: =direct_cost*D131 -> 6084.639152 | D131: =legal_pct -> 0.02
B132: Sales Tax | C132: =direct_cost*D132 -> 0 | D132: =tax_pct -> 0
B133: Financing during Construction | C133: =direct_cost*D133 -> 0 | D133: =IF(ss_cat2=1,finance_pct_small,finance_pct) -> 0
B134: Construction Management and GC Overhead | C134: =cm_cost -> 24851.78548
B135: Total indirect capital cost | C135: =indirect_cost_mult*direct_cost+indirect_cost_add -> 138938.7696 | E135: Total of indirect line items
A137: TOTAL CAPITAL COST DETAILS
B138: Assumption | C138: Value | D138: Guidance
B139: City Index for Total Capital Cost | C139: 1 | D139: User adjustable. Can be used to adjust estimated costs to be more reflective of a specific geographical location
B141: Total Direct Capital Cost (from above) | C141: =direct_cost -> 304231.9576
B142: Total Add-on Cost (from above) | C142: =addon_cost -> 0
B143: Total Indirect Cost (from above) | C143: =C135 -> 138938.7696
B144: Grand total capital cost (incorporating city index) | C144: =(direct_cost*(1+SUM(cul_indir_mult_table))+SUM(cul_indir_add_table))*city_index -> 443170.7272
A146: Annual Operating and Maintenance Cost Details (items in italics, without a 1 in the "Use?" column, represent alternate costs and are excluded from total)
B147: Assumption | C147: Value | D147: Guidance
B148: City Index for Total O&M Cost | C148: 1 | D148: User adjustable. Can be used to adjust estimated costs to be more reflective of a specific geographical location
B150: Item | C150: Quantity | E150: Unit Cost | G150: Total Cost | H150: Use? | I150: Guidance
B151: Labor
B152: Manager | C152: =Manager_LOE -> 0.09166666667 | D152: hrs/yr | E152: =VLOOKUP(design_flow,labor_table_cl,5) -> 50.6486631 | F152: /hr | G152: =E152*C152 -> 4.642794118 | H152: =IF(C152=0,0,1) -> 1
B153: Administrative | C153: =Clerical_LOE -> 0.09166666667 | D153: hrs/yr | E153: =VLOOKUP(design_flow,labor_table_cl,4) -> 34.16157754 | F153: /hr | G153: =E153*C153 -> 3.131477941 | H153: =IF(C153=0,0,1) -> 1
B154: Operator | C154: =Operator_LOE -> 0.9166666667 | D154: hrs/yr | E154: =VLOOKUP(design_flow,labor_table_cl,6) -> 32.90061497 | F154: /hr | G154: =E154*C154 -> 30.15889706 | H154: =IF(C154=0,0,1) -> 1 | I154: Includes labor for regular operations, maintenance, regeneration, etc.
B155: Materials
B156: Building maintenance (materials and labor) | C156: =total_fp -> 0 | D156: sf | E156: =IF(C156=0,0,G156/C156) -> 0 | F156: /sf/yr | G156: =bldg_maint_cost -> 0 | H156: =IF(G156=0,0,1) -> 0
B157: Purchased Water | C157: =IF(design=1, average_flow,0)* day_per_year *1000 -> 2555 | D157: K gal | E157: =water_cost -> 3.059529078 | F157: K gal | G157: =C157 * E157 -> 7817.096795 | H157: =IF(C157>0,1,0) -> 1
B158: Booster pump | C158: calculated as a percentage of capital | G158: =pump_materials -> 0 | H158: =IF(C158>0,1,0) -> 1
B159: Well pump | C159: calculated as a percentage of capital | G159: =well_pump_materials -> 0 | H159: =IF(C159>0,1,0) -> 1
B160: Energy
B161: Energy for booster pumps | C161: =booster_pump_energy -> 0 | D161: Mwh/yr | E161: =energy_cost_cl -> 0.1100175092 | F161: /kwh | G161: =E161*C161*1000 -> 0 | H161: =IF(C161=0,0,1) -> 0
B162: Energy for well pumps | C162: =well_pump_energy -> 0 | D162: Mwh/yr | E162: =energy_cost_cl -> 0.1100175092 | F162: /kwh | G162: =E162*C162*1000 -> 0 | H162: =IF(C162=0,0,1) -> 0
B163: Miscellaneous Allowance | C163: =misc_pct -> 0.1 | G163: =SUMPRODUCT(G152:G162,H152:H162)*C163 -> 785.5029965 | H163: 1
B164: Total Annual O&M Cost (incorporating city index) | G164: =SUMPRODUCT(G152:G163,H152:H163)*OM_City_Index -> 8640.532961
A166: ANNUALIZED COSTS
B167: Assumption | C167: Value | D167: Guidance
B168: Discount rate | C168: 0.07 | D168: User adjustable
B169: Calculate households based on: | C169: ground water | D169: User adjustable
B170: Household size (people per household) | C170: 2.53 | D170: User adjustable
B172: Calculation | C172: Value | D172: Units
B173: Useful Life (Reciprocal Weighted Average) | C173: =ROUND((direct_for_UL+IF(build_UL=0,0,addon_cost+indirect_cost))/(total_direct_depreciation+IF(build_UL=0,0,(addon_cost+indirect_cost)/build_UL)),1) -> 17 | D173: years
B174: Number of households served | C174: =IF(source_select="ground water",(average_flow*1000/0.08558)^(1/1.0584),(average_flow*1000/0.14004)^(1/0.99703))/hh_size -> 25.35511409 | D174: households
B175: Annualized Capital Cost | C175: =-PMT(Discount_rate,useful_life,system_cost) -> 45391.84729 | D175: /year
B176: Annual O&M Cost | C176: =om_cost -> 8640.532961 | D176: /year
B177: Total Annualized Cost | C177: =C175+C176 -> 54032.38025 | D177: /year | E177: =IF(ISERROR(OR(TAC_pct_cap,TAC_pct_OM)),"",TEXT(TAC_pct_cap,"0%")&" annualized capital, "&TEXT(TAC_pct_OM,"0%")&" annual O&M") -> 84% annualized capital, 16% annual O&M
B178: Annualized cost per 1,000 gallons average flow | C178: =Annualized_Cost/(average_flow*365*1000) -> 21.14770264 | D178: /kgal
B179: Annualized cost per household | C179: =Annualized_Cost/households -> 2131.024931 | D179: /household/year
A181: Internal use
B182: Mobilization and Demobilization | C182: =C119 -> 16732.75767
B183: Architectural Fees for Treatment Building | C183: =C120 -> 0
B184: Installation, Transportation, and O&P | C184: =D121 -> 0
B185: Site Work | C185: =C122 -> 0
B186: Yard Piping | C186: =C123 -> 0
B187: Geotechnical | C187: =C124 -> 0
B188: Standby Power | C188: =C125 -> 0
B189: Electrical (including yard wiring) | C189: =C126 -> 0
B190: Instrumentation and Control | C190: =D127 -> 0
B191: Contingency | C191: =C128 -> 0
B192: Process Engineering | C192: =C129 -> 60846.39152
B193: Miscellaneous Allowance | C193: =D130 -> 0.1
B194: Legal, Fiscal, and Administrative | C194: =D131 -> 0.02
B195: Sales Tax | C195: =D132 -> 0
B196: Financing during Construction | C196: =D133 -> 0
B197: Construction Management and GC Overhead | C197: =C134 -> 24851.78548
B198: Indirect cost multiplier | C198: =SUM(cul_indir_mult_table) -> 0.12
B199: Indirect costs added | C199: =SUM(cul_indir_add_table)-addon_cost -> 102430.9347
B200: Subtotal indirect and add-on cost | C200: =C135+addon_cost -> 138938.7696
B202: Validity Checks | C202: =INPUT!$C$28 -> TRUE | D202: =INPUT!$C$36 -> TRUE | E202: =INPUT!$C$43 -> TRUE | F202: =INPUT!$C$44 -> TRUE | G202: =INPUT!$C$53 -> TRUE
B203: Missing Cost?: | C203: =IF(COUNTIF(use_column,"x")>0,TRUE,FALSE) -> FALSE
B204: Buildup Error? | C204: =IF(COUNTIF(use_column,"ec")+COUNTIF(use_column,"ep")>0,TRUE,FALSE) -> FALSE

Sheet Critical Design Assumptions
A1: Default Critical Design Assumptions
A2: Users may change any of the cells in the Value column; cells in gold are most important and may vary based on contaminant treated and site-specific conditions
A4: Assumption | B4: Range Name | C4: Value | D4: Units | E4: Guidance
A5: Cost estimating method | B5: curve | C5: 1 | D5: <-- enter 1 to use cost equations, leave blank to use lookup tables for component costs | E5: Keeping this assumption with a value of 1 is strongly recommended; the cost equations method is more appropriate for national cost estimating and will be more accurate for nearly all user-specified designs
A7: Minimum pipe size for new wells | B7: min_pipe_size | C7: 2 | D7: in. diam
A8: Minimum pipe size for interconnection | B8: min_pipe_size_interconnect | C8: 4 | D8: in. diam
A9: Minimum average flow as percentage of design | B9: min_avg_flow | C9: 0.1 | E9: The minimum ratio of average flow to design flow. If the ratio falls below this value, it will trigger a warning on the INPUT sheet. If this value is zero, no minimum is enforced.
A11: Minimum number of valves (isolation PRV, street) | B11: min_valves | C11: 2 | D11: each
A12: Spacing for valves | B12: valve_spacing | C12: 1000 | D12: ft
A13: Valves per pump (booster and well) | B13: valve_per_pump | C13: 2 | D13: each
A14: Valves per PRV | B14: valve_per_PRV | C14: 2 | D14: each
A16: Safety factor for pumps | B16: pump_safety_factor | C16: 0.25
A17: Number of redundant booster pumps | B17: NRD_booster_pumps | C17: 0
A18: Access space for pumps and PRVs | B18: space_pumps | C18: 4 | D18: feet | E18: Provide a minimum of 3 ft (1 m) of clear space around each item of equipment (American Water Works Association and American Society of Civil Engineers. Water Treatment Plant Design. Third Edition. New York: McGraw Hill, 1998. Pp. 695).
A19: Number of redundant PRVs | B19: NRD_PRVs | C19: 0
A20: Minimum number of PRVs | B20: min_num_PRVs | C20: 1 | E20: If pressure reduction is required
A21: Include well pump soft start? | B21: soft_start | C21: 1 | E21: 1 for yes, 0 for no
A23: Well Design
A24: Thickness of gravel pack | B24: gravel_thickness | C24: 3 | D24: inches
A25: Thickness of grout seal | B25: grout_thickness | C25: 4 | D25: inches
A26: Depth of grout seal | B26: seal_depth | C26: 30 | D26: feet | E26: typically 30-50 ft depending on local regulations
A27: Screen length to casing length ratio | B27: screen_ration | C27: 0.5 | E27: accounts for small sections of blank casing below and above well screen
A28: water pressure at top of well (for distribution) | B28: supply_head | C28: 69 | D28: feet | E28: 2.31 ft of water per 1 psi
A29: Footprint per well | B29: well_footprint | C29: 200 | D29: sqft
A31: Interconnection Trenching
A32: Frost depth | B32: frost | C32: 38 | D32: inches
A33: Minimum trench depth to top of pipe | B33: min_trench_depth | C33: 36 | D33: inches
A34: Minimum trench width on each side of pipe | B34: min_trench_width | C34: 12 | D34: inches
A35: Asphalt thickness | B35: asphalt_thickness | C35: 4 | D35: inches
A36: Include asphalt patch | B36: asphalt_patch_include | C36: 1 | E36: 1 for yes, 0 for no
A38: Flow meters for interconnect line | B38: fm_interconnect | C38: 1 | D38: units
A39: Flow meters for each well | B39: fm_well | C39: 1 | D39: units
A41: Non fire Buffer for buildings | B41: non_fire_buffer | C41: 100 | D41: feet | E41: 100 feet to account for sanitary control area around wellhead
A42: Fire Buffer for Buildings | B42: fire_buffer | C42: 100 | D42: feet | E42: 100 feet to account for sanitary control area around wellhead
A44: Vault
A45: Vault concrete thickness | B45: vault_concrete_thickness | C45: 6 | D45: inches
A46: Interior hight of vault | B46: vault_interior_height | C46: 8 | D46: ft
A47: Minimum vault cover | B47: vault_min_cover | C47: 1 | D47: ft
A49: I/O Port Table
A50: Full automation includes all inputs and outputs, semi-automated uses inputs only, manual control uses neither
A51: To change the degree of automation, the user may replace the numbers in each of the blue columns.
A52: I/O Ports needed per…. | B52: Lookup name | C52: Discrete Inputs | D52: Discrete Outputs | E52: Analog Inputs | F52: Analog Outputs
A53: Magnetic flow meter | B53: flow_mag | C53: 0 | D53: 0 | E53: 1 | F53: 0
A54: Orifice plate flow meter | B54: flow_op | C54: 0 | D54: 0 | E54: 2 | F54: 1 | G54: Additional analog input because flow meters include pressure gauges
A55: Propeller flow meter | B55: flow_prop | C55: 0 | D55: 0 | E55: 1 | F55: 0
A56: Venturi flow meter | B56: flow_ven | C56: 0 | D56: 0 | E56: 2 | F56: 1 | G56: Additional analog input because flow meters include pressure gauges
A57: Drive Controllers (to operate pump motors, mixers, valves, etc) | B57: switch | C57: 3 | D57: 1 | E57: 0 | F57: 0
A58: Motor/air operated valve | B58: valve | C58: 0 | D58: 0 | E58: 1 | F58: 1

Sheet O&M Assumptions
A1: Default O&M Assumptions
A2: Users may change any of the cells in the Value column
A4: Assumption | B4: Range Name | C4: Value | D4: Units | E4: Guidance
A5: Labor
A6: Mangerial LOE as a percent of average technical labor | B6: Manager_percent | C6: 0.1 | D6: fraction
A7: Administrative LOE as a percent of average technical labor | B7: Clerical_percent | C7: 0.1 | D7: fraction
A9: Operating LOE assumptions
A10: Minutes per valve per week | B10: uloe_valve | C10: 5 | D10: min/week | E10: For manual and semiautomated systems
A11: Minutes per pump per day | B11: uloe_pump | C11: 5 | D11: min/day | E11: For manual and semiautomated systems
A12: Minutes per 100 sf per day | B12: uloe_fp | C12: 1 | D12: min/100 sf/day
A14: Maintenance LOE assumptions
A15: For valves | B15: uloe_valve_maint | C15: 5 | D15: min/year | E15: Applied to main process valves only
A16: For pumps | B16: uloe_pump_maint | C16: 30.25 | D16: hours/year | E16: Based on vendor recommended maintenance activities; applied to large, frequently operated pumps only
A18: Pumping
A19: Pump efficiency for booster pumps | B19: booster_pump_efficiency | C19: 0.75
A20: Cost for parts & maintenance for booster pumps | B20: booster_pump_maintenance | C20: 0.01 | D20: of installed cost | E20: For calculating cost of actual maintenance materials; not to be confused with depreciation. Initial proposed estimate of 5% seems high (Richard E. Hubel, Peter Keenan, American Water Works Service Company, Inc)
A21: Cost for parts & maintenance for well pumps | B21: well_pump_maintenance | C21: 0.01 | D21: of installed cost

Sheet Indirect Assumptions
A1: Default Assumptions for Indirect and Add-On Costs
A2: Users may change any of the cells in the Value column
A4: Assumption | B4: Range Name | C4: Value | D4: Units | E4: Guidance
A5: Mobilization and Demobilization
A6: Mobilization percentage for small systems | B6: mob_pct_small | C6: 0.05 | D6: of direct capital cost | E6: Typically 2-5% of the estimated construction cost. Enter 0% to exclude.
A7: Mobilization percentage for medium systems | B7: mob_pct_medium | C7: 0.04 | D7: of direct capital cost
A8: Mobilization percentage for large systems | B8: mob_pct_large | C8: 0.02 | D8: of direct capital cost
A10: Architectural Fees for Treatment Building
A11: Include architectural fee? | B11: include_arch | C11: 1 | D11: <--- enter 1 for yes, 0 for no | E11: Must be added to building cost. Change for special considerations. Includes structural, mechanical, and electrical engineering for building only.
A12: Include architectural fee for small systems? | B12: include_arch_small | C12: 0 | D12: <--- enter 1 for yes, 0 for no
A14: Installation, Transportatation, and O&P
A15: Installation, Transportatation, and O&P percentage | B15: inst_pct | C15: 0 | D15: of direct capital cost | E15: Included in line item unit costs. Add a percentage for special considerations such as a remote site or high cost location.
A17: Sitework
A18: Include sitework costs? | B18: include_sitework | C18: 1 | D18: <--- enter 1 for yes, 0 for no
A20: Electrical (including yard wiring)
A21: Electrical percentage | B21: elect_pct | C21: 0.1 | D21: of direct cost
A23: Geotechnical
A24: Include geotechnical costs for low cost systems? | B24: include_geo_low | C24: 1 | D24: <--- enter 1 for yes, 0 for no
A25: Include geotechnical costs for medium cost systems? | B25: include_geo_medium | C25: 1 | D25: <--- enter 1 for yes, 0 for no
A26: Include geotechnical costs for high cost systems? | B26: include_geo_high | C26: 1 | D26: <--- enter 1 for yes, 0 for no
A28: Instrumentation and Control
A29: Instrumentation and control percentage | B29: i_c_pct | C29: 0 | D29: of direct cost | E29: Included as a direct cost line item.
A31: Contingency
A32: Include contingency costs for low cost systems? | B32: include_conting_low | C32: 0 | D32: <--- enter 1 for yes, 0 for no
A33: Include contingency costs for medium cost systems? | B33: include_conting_medium | C33: 0 | D33: <--- enter 1 for yes, 0 for no
A34: Include contingency costs for high cost systems? | B34: include_conting_high | C34: 1 | D34: <--- enter 1 for yes, 0 for no
A35: Technology complexity factor | B35: complexity | C35: 0.5 | E35: Technology-specific factor. See Appendices for details. Low complexity = 0.5; Average complexity = 1.0; High complexity = 1.5; Very high complexity = 2.0.
A37: Process Engineering
A38: Engineering percentage for small systems | B38: eng_pct_small | C38: 0.2 | D38: of direct capital cost | E38: Enter 0% to exclude.
A39: Engineering percentage for medium systems | B39: eng_pct_medium | C39: 0.12 | D39: of direct capital cost
A40: Engineering percentage for large systems | B40: eng_pct_large | C40: 0.08 | D40: of direct capital cost
A42: Standby Power
A43: Include standby power costs? | B43: include_standby | C43: 1 | D43: <--- enter 1 for yes, 0 for no
A44: Include standby power costs for small systems? | B44: include_standby_small | C44: 0 | D44: <--- enter 1 for yes, 0 for no
A45: Design safety factor for standby power | B45: std_safety_factor | C45: 0 | E45: Default 0%. Apply a percentage to increase standby power requirements.
A46: Minimum standby power generator size | B46: min_standby | C46: 1.5 | D46: kW | E46: Minimum size for full standby generators
A48: Miscellaneous Allowance
A49: Miscellaneous allowance percentage | B49: misc_pct | C49: 0.1 | D49: of direct capital cost | E49: Enter 0% to exclude.
A51: Legal, Fiscal, and Administrative
A52: Legal percentage | B52: legal_pct | C52: 0.02 | D52: of direct capital cost | E52: Enter 0% to exclude. Highly site-specific. Can range from 2-5% of equipment, installation, construction, electrical, and standby power. To estimate, add 5% to total estimated construction cost.
A54: Sales Tax
A55: Sales tax percentage | B55: tax_pct | C55: 0 | D55: of direct capital cost | E55: May be exempt if constructed with public funds. May be as high as 7.25% of equipment and construction, with national average 4.75%.
A57: Financing during Construction
A58: Financing percentage | B58: finance_pct | C58: 0.05 | D58: of direct capital cost | E58: Enter 0% to exclude. Typically assumed to be one year's interest on capital cost.
A59: Financing percentage for small systems | B59: finance_pct_small | C59: 0 | D59: of direct capital cost | E59: Small system construction assumed to take less than one year
A61: Construction Management and General Contractor Overhead
A62: Builder's risk insurance percentage | B62: br_ins_pct | C62: 0.0034 | E62: Enter 0% to exclude. 0.34% is national average rate. RSMeans Building Construction Cost Data 2009, reference section R01100-070
A63: Include performance bond cost? | B63: include_bond | C63: 1 | D63: <--- enter 1 for yes, 0 for no
A64: Include construction management cost? | B64: include_cm | C64: 1 | D64: <--- enter 1 for yes, 0 for no

Sheet Well Design
A1: Well Design Module
A3: Calculation | B3: Range Name | C3: Value | D3: Units | E3: Guidance
A4: From Inputs
A5: Design Type | B5: design | C5: 1 | D5: 1 for interconnection, 2 for new well construction
A6: Design Flow | B6: design_flow | C6: =IF(df_units="gpm",design_flow_I*24*60/1000000,design_flow_I) -> 0.03 | D6: MGD
A7: Average Flow | B7: average_flow | C7: =IF(af_units="gpm",average_flow_I*24*60/1000000,IF(af_units="fraction of design flow",average_flow_I*design_flow,average_flow_I)) -> 0.007 | D7: MGD
A8: Design Flow Rate | B8: design_flow_rate | C8: =design_flow*1000000/(24*60) -> 20.83333333 | D8: gpm | E8: Design flow expressed in gpm
A9: Average Flow Rate | B9: average_flow_rate | C9: =average_flow*1000000/(24*60) -> 4.861111111 | D9: gpm | E9: Average flow expressed in gpm
A11: Number of wells | B11: wells | C11: =IF(design=1,0,ROUNDUP(design_flow_rate/wells_I,0)) -> 0
A12: Well Depth | B12: well_depth | C12: =well_depth_I -> 0 | D12: feet
A13: Maxiumum well pump horsepower | B13: well_pump_hp_max | C13: =MAX('Lookup Tables'!B7:B9) -> 250 | D13: hp
A15: Well Design
A16: Casing Diameter | B16: casing_diam | C16: =IF(design=1,0,pump_diam+3) -> 0 | D16: inches | E16: Casing diameter 3 inches larger than largest pump componenent
A17: Casing Length | B17: casing_len | C17: =well_depth -> 0 | D17: feet
A18: Gravel Pack Length | B18: gravel_len | C18: =IF(design=1,0,casing_len-seal_depth) -> 0 | D18: feet | E18: Casing length minus grout seal length
A19: Grout Seal Cross Sectional Area | B19: grout_area | C19: =IF(design=1,0,(PI()*(casing_diam/2+grout_thickness)^2)-(PI()*(casing_diam/2)^2)) -> 0 | D19: square inches
A20: Grout Seal Volume per Well | B20: grout_vol_well | C20: =grout_area/144*seal_depth -> 0 | D20: cubic feet
A21: Total Grout Seal Volume | B21: grout_vol | C21: =grout_vol_well*wells -> 0 | D21: cubic feet
A22: Screen Diamater | B22: screen_diam | C22: =casing_diam -> 0 | D22: inches
A23: Screen Length | B23: screen_len | C23: =casing_len*screen_ration -> 0 | D23: feet
A24: Borehole Diameter | B24: borehole_diam | C24: =IF(design=1,0,2*pump_diam+gravel_thickness) -> 0 | D24: inches | E24: 2*pump diameter diameter plus gravel pack thickness
A25: Plug diameter | B25: plug_diam | C25: =screen_diam -> 0 | D25: inches
A27: Well drilling unit cost, 8" borehole diameter | C27: =VLOOKUP(well_depth,drill_8_cost_cl,3) -> 122.0818644 | D27: per linear foot
A28: Well drilling unit cost, 10" borehole diameter | C28: =VLOOKUP(well_depth,drill_10_cost_cl,3) -> 166.6441284 | D28: per linear foot
A29: Well drilling unit cost, 12" borehole diameter | C29: =VLOOKUP(well_depth,drill_12_cost_cl,3) -> 193.7825636 | D29: per linear foot
A30: Well drilling unit cost, 15" borehole diameter | C30: =VLOOKUP(well_depth,drill_15_cost_cl,3) -> 263.543629 | D30: per linear foot
A31: Well drilling unit cost | B31: well_drill_cost | C31: =IF(design=1,"na",IF(borehole_diam<=8,C27,IF(borehole_diam<=10,C28,IF(borehole_diam<=12,C29,C30)))) -> na | D31: per linear foot

Sheet Pumps Pipe Structure
A1: Pumps, Piping, and Structure Calculations
A3: Calculation | B3: Range Name | C3: Value | D3: Units | E3: Guidance
A4: Interconnection Booster Pump Design
A5: Pressure at Supply Source (from inputs) | B5: buyer_pressure | C5: =IF(buyer_pressure_I="correct pressure",0,IF(buyer_pressure_I="pressure greater than required",1,2)) -> 0 | E5: 0 for correct pressure, 1 for excess pressure, 2 for insufficient pressure
A6: Elevation Difference from Supply Source | B6: elevation_head | C6: =elevation_diff_I -> 0 | D6: head in feet | E6: From Inputs, Booster pump pressure must account for this difference
A7: Hazen-Williams friction loss | B7: HW_friction_loss | C7: =IF(design=2,"",0.2083*(100/IF(OUTPUT!L54=1,130,140))^1.852*design_flow_rate^1.852/interconnect_pipe_diameter^4.8655) -> 0.04175269587 | D7: head loss in feet per 100 ft pipe
A8: Total pressure needed to overcome friction losses | B8: friction_head | C8: =IF(design=2,"",interconnect_pipe_length/100*HW_friction_loss) -> 4.175269587 | D8: head loss in feet
A9: Total head needed for booster pump | B9: booster_additional_head | C9: =IF(design=2,"",elevation_head+friction_head) -> 4.175269587 | D9: head in feet
A10: Booster pump pressure rating | B10: booster_psi | C10: =IF(design=2,0,0.434*booster_additional_head) -> 1.812067001 | D10: psi | E10: 0.434 converts head in feet to psi
A12: Maximum pump size, 25 psi | C12: =VLOOKUP(10^6,pump_cost_cl,1)-1 -> 10000 | D12: gpm
A13: Maximum pump size, 75 psi | C13: =VLOOKUP(10^6,dis75_pump_cost_cl,1)-1 -> 10000 | D13: gpm
A14: Maximum pump size, 150 psi | C14: =VLOOKUP(10^6,ro150_pump_cost_cl,1)-0.1 -> 2000 | D14: gpm
A15: Maximum pump size, 200 psi | C15: =VLOOKUP(10^6,ro200_pump_cost_cl,1)-0.1 -> 2000 | D15: gpm
A16: Maximum pump size, 250 psi | C16: =VLOOKUP(10^6,ro250_pump_cost_cl,1)-0.1 -> 2000 | D16: gpm
A17: Maximum pump size, 300 psi | C17: =VLOOKUP(10^6,ro300_pump_cost_cl,1)-0.1 -> 250 | D17: gpm
A18: Maximum pump size, 350 psi | C18: =VLOOKUP(10^6,ro350_pump_cost_cl,1)-0.1 -> 225 | D18: gpm
A19: Maximum pump size, 500 psi | C19: =VLOOKUP(10^6,ro500_pump_cost_cl,1)-0.1 -> 75 | D19: gpm
A20: Maximum pump size | B20: max_pump_size | C20: =IF(booster_psi<=25,C12,IF(booster_psi<=75,C13,IF(booster_psi<=150,C14,IF(booster_psi<=200,C15,IF(booster_psi<=250,C16,IF(booster_psi<=300,C17,IF(booster_psi<=350,C18,C19))))))) -> 10000 | D20: gpm | E20: The largest pump size for which costs are available.
A21: Booster pump rating | B21: booster_pump_rating | C21: =IF( OR( design<> 1,buyer_pressure<>2),0,MAX(design_flow_rate*(1+pump_safety_factor),max_pump_size)) -> 0 | D21: gpm
A22: Number of booster pumps | B22: booster_pumps | C22: =IF( OR( design<> 1,buyer_pressure<>2), 0, IF(booster_pump_rating=0,0,ROUNDUP(MIN(design_flow_rate/max_pump_size,(design_flow_rate)*(1+pump_safety_factor)/booster_pump_rating ),0))) -> 0 | E22: Pumps from seller to buyer
A23: Total number of booster pumps | B23: total_booster_pumps | C23: =IF( OR( design<> 1,buyer_pressure<>2), 0,(booster_pumps +NRD_booster_pumps)) -> 0 | D23: units
A25: Pump length and width, 25 and 75 psi | C25: =VLOOKUP(booster_pump_rating,pump_dim_table_cl,4) -> 2.5 | D25: feet
A26: Pump length and width, high pressure | C26: =SQRT(VLOOKUP(booster_pump_rating*60*24/10^6,inf_dim_table_cl,3)) -> 6 | D26: feet
A27: Pump length and width | B27: booster_pump_L&W | C27: =IF(booster_psi<=75,C25,C26) -> 2.5 | D27: feet
A29: Booster pump cost, 25 psi | C29: =VLOOKUP(booster_pump_rating,pump_cost_cl,3) -> 3765.081741
A30: Booster pump cost, 75 psi | C30: =VLOOKUP(booster_pump_rating,dis75_pump_cost_cl,3) -> 3653.393978
A31: Booster pump cost, 150 psi | C31: =VLOOKUP(booster_pump_rating,ro150_pump_cost_cl,3) -> 4107.783874
A32: Booster pump cost, 200 psi | C32: =VLOOKUP(booster_pump_rating,ro200_pump_cost_cl,3) -> 4463.825847
A33: Booster pump cost, 250 psi | C33: =VLOOKUP(booster_pump_rating,ro250_pump_cost_cl,3) -> 4985.084159
A34: Booster pump cost, 300 psi | C34: =VLOOKUP(booster_pump_rating,ro300_pump_cost_cl,3) -> 5200.65447
A35: Booster pump cost, 350 psi | C35: =VLOOKUP(booster_pump_rating,ro350_pump_cost_cl,3) -> 5200.65447
A36: Booster pump cost, 500 psi | C36: =VLOOKUP(booster_pump_rating,ro500_pump_cost_cl,3) -> 6603.298853
A37: Booster pump cost | B37: booster_pump_cost | C37: =IF(booster_psi<=25,C29,IF(booster_psi<=75,C30,IF(booster_psi<=150,C31,IF(booster_psi<=200,C32,IF(booster_psi<=250,C33,IF(booster_psi<=300,C34,IF(booster_psi<=350,C35,C36))))))) -> 3765.081741 | E37: This value used with the lookup table cost estimating method (i.e., when the critical design assumption curve <> 1). See the cost equations page when curve = 1
A39: Booster pump size used in estimate, 25 psi | C39: =VLOOKUP(booster_pump_rating,pump_cost_cl,2) -> 10
A40: Booster pump size used in estimate, 75 psi | C40: =VLOOKUP(booster_pump_rating,dis75_pump_cost_cl,2) -> 4
A41: Booster pump size used in estimate, 150 psi | C41: =VLOOKUP(booster_pump_rating,ro150_pump_cost_cl,2) -> 5
A42: Booster pump size used in estimate, 200 psi | C42: =VLOOKUP(booster_pump_rating,ro200_pump_cost_cl,2) -> 5
A43: Booster pump size used in estimate, 250 psi | C43: =VLOOKUP(booster_pump_rating,ro250_pump_cost_cl,2) -> 5
A44: Booster pump size used in estimate, 300 psi | C44: =VLOOKUP(booster_pump_rating,ro300_pump_cost_cl,2) -> 5
A45: Booster pump size used in estimate, 350 psi | C45: =VLOOKUP(booster_pump_rating,ro350_pump_cost_cl,2) -> 5
A46: Booster pump size used in estimate, 500 psi | C46: =VLOOKUP(booster_pump_rating,ro500_pump_cost_cl,2) -> 5
A47: Booster pump size used in estimate | B47: booster_pump_size_used | C47: =IF(booster_psi<=25,C39,IF(booster_psi<=75,C40,IF(booster_psi<=150,C41,IF(booster_psi<=200,C42,IF(booster_psi<=250,C43,IF(booster_psi<=300,C44,IF(booster_psi<=350,C45,C46))))))) -> 10 | E47: This value used with the lookup table cost estimating method (i.e., when the critical design assumption curve <> 1). The cost equations method uses exact size
A49: Well Pump Design
A50: Number of well pumps | B50: well_pumps | C50: =IF(design=1,0,wells) -> 0 | D50: units
A51: Well pump rating | B51: well_pump_rating | C51: =IF(design=1,0,design_flow_rate/well_pumps) -> 0 | D51: gpm
A52: Well pump pressure requirements | B52: well_pump_head | C52: =IF(design=1,0,well_depth+supply_head) -> 0 | D52: feet
A53: Well pump horsepower | B53: well_pump_hp | C53: =IF(design<>2,"NA",well_pump_head*well_pump_rating*(1+pump_safety_factor)/3960) -> NA | D53: hp
A54: Well pump diameter | B54: pump_diam | C54: =IF(design<>2,0,VLOOKUP(well_pump_hp,pump_hp_table,3)) -> 0 | D54: inches
A56: Interconnection piping
A57: Interconnect pipe length | B57: interconnect_pipe_length | C57: =IF(design=1,pipe_length_I,0) -> 10000 | D57: ft
A58: Interconnect pipe diameter | B58: interconnect_pipe_diameter | C58: =IF( OR( design_flow_rate=0, design<>1 ),0, MAX(min_pipe_size_interconnect, VLOOKUP((design_flow_rate),pipe_size_table_cl,2))) -> 4 | D58: in
A60: InterconnectionTrench Calculations
A61: Interconnect pipe trench depth to top of pipe | B61: interconnect_trn_depth | C61: =IF(design=2,0,MAX(frost,min_trench_depth)) -> 38 | D61: inches
A62: Interconnect pipe trench cross-section area | B62: interconnect_trench_area | C62: =IF(interconnect_pipe_diameter=0,0,(interconnect_pipe_diameter/12+2*min_trench_width/12)*interconnect_trn_depth/12) -> 7.388888889 | D62: square ft
A63: Interconnect pipe trench volume total | B63: interconnect_trench_vol | C63: =interconnect_trench_area*interconnect_pipe_length/27 -> 2736.625514 | D63: cy
A64: Asphalt patch area | B64: asphalt_patch_area | C64: =IF( asphalt_patch_include=1,( interconnect_pipe_length * (interconnect_pipe_diameter/12 + 2*min_trench_width/12))/sqft_per_sqyd,0) -> 864.1975309 | D64: square yards
A66: Well piping
A67: Single well pipe length | B67: well_pipe_length | C67: =IF( design=2,well_distance_I,0) -> 0 | D67: ft | E67: Pipe to connect new well to existing distribution system
A68: Well pipe diameter | B68: well pipe diameter | C68: =IF( OR( design_flow_rate=0,design=1 ),0, MAX( min_pipe_size, VLOOKUP((design_flow_rate/wells),pipe_size_table_cl,2))) -> 0 | D68: in
A69: Total well piping length | B69: total_well_pipe_length | C69: =well_pipe_length*wells -> 0 | D69: ft
A71: Well to Distribution Trench Calculations
A72: Well pipe trench depth to top of pipe | B72: well_trn_depth | C72: =MAX(frost,min_trench_depth) -> 38 | D72: inches
A73: Well pipe trench cross-section area | B73: well_trench_area | C73: =IF(well_pipe_diameter=0,0,(well_pipe_diameter/12+2*min_trench_width/12)*well_trn_depth/12) -> 0 | D73: square ft
A74: Well pipe trench volume total | B74: well_trench_vol | C74: =well_trench_area*total_well_pipe_length/27 -> 0 | D74: cy
A76: Pump Vault Design
A77: Interior length | B77: pump_vault_int_length | C77: =IF( OR( design<> 1,buyer_pressure<>2), 0, 2 * space_pumps + booster_pump_L_W) -> 0 | D77: ft | E77: .
A78: Interior width | B78: pump_vault_int_width | C78: =IF( OR( design<> 1,buyer_pressure<>2), 0, 2 * space_pumps + booster_pump_L_W + ( (total_booster_pumps-1) * space_pumps ) ) -> 0 | D78: ft
A79: Pump vault length concrete volume | B79: pump_vault_length_conc_vol | C79: =IF( OR( design<> 1,buyer_pressure<>2), 0,( (pump_vault_int_length + 2 * vault_concrete_thickness / in_per_ft)* (vault_interior_height + 2 * vault_concrete_thickness / in_per_ft )) * vault_concrete_thickness / in_per_ft /cuft_per_cuyd ) -> 0 | D79: cy
A80: Pump vault floor concrete volume | B80: pump_vault_floor conc_vol | C80: =IF( OR( design<> 1,buyer_pressure<>2), 0, (pump_vault_int_width * pump_vault_int_length* vault_concrete_thickness / in_per_ft )/cuft_per_cuyd ) -> 0 | D80: cy
A81: Pump vault width concrete volume | B81: pump_vault_width_conc_vol | C81: =IF( OR( design<> 1,buyer_pressure<>2), 0, pump_vault_int_width * (vault_interior_height + 2 * vault_concrete_thickness / in_per_ft ) * vault_concrete_thickness / in_per_ft / cuft_per_cuyd ) -> 0 | D81: cy
A82: Pump vault total concrete volume | B82: pump_vault_total_conc_vol | C82: =IF( OR( design<> 1,buyer_pressure<>2), 0, SUM(C79:C81) ) -> 0 | D82: cy
A83: Pump vault excavation depth | B83: pump_vault_exc_depth | C83: =IF( OR( design<> 1,buyer_pressure<>2), 0, vault_concrete_thickness * 2 /in_per_ft + vault_interior_height + vault_min_cover ) -> 0 | D83: ft
A84: Pump vault excavation volume | B84: pump_vault_exc_volume | C84: =IF( OR( design<> 1,buyer_pressure<>2), 0,( ( (pump_vault_int_width + vault_concrete_thickness/ in_per_ft * 2 + pump_vault_exc_depth) * (pump_vault_int_length + pump_vault_exc_depth + vault_concrete_thickness/ in_per_ft ) * (pump_vault_exc_depth ) )/cuft_per_cuyd ) ) -> 0 | D84: cy
A85: Pump vault backfill volume | B85: pump_vault_backfill_volume | C85: =IF( OR( design<> 1,buyer_pressure<>2), 0, (pump_vault_exc_volume - ( ( (pump_vault_int_width + 2 * vault_concrete_thickness/ in_per_ft ) * (pump_vault_int_length + 2 * vault_concrete_thickness/ in_per_ft) *(pump_vault_exc_depth +vault_concrete_thickness/ in_per_ft) ) / cuft_per_cuyd ))) -> 0 | D85: cy
A87: Vault for PRVs
A88: Interior length | B88: prv_vault_int_length | C88: =IF( OR( design<> 1,buyer_pressure<>1), 0, 2 * space_pumps +PRV_length / in_per_ft) -> 0 | D88: ft
A89: Interior width | B89: prv_vault_int_width | C89: =IF( OR( design<> 1,buyer_pressure<>1), 0, 2 * space_pumps + PRV_width / in_per_ft + ( (num_PRVs-1) * space_pumps ) ) -> 0 | D89: ft
A90: PRV vault length concrete volume | B90: prv_vault_length_conc_vol | C90: =IF( OR( design<> 1,buyer_pressure<>1), 0,( (prv_vault_int_length + 2 * vault_concrete_thickness / in_per_ft)* (vault_interior_height + 2 * vault_concrete_thickness / in_per_ft )) * vault_concrete_thickness / in_per_ft /cuft_per_cuyd ) -> 0 | D90: cy
A91: PRV vault floor concrete volume | B91: prv_vault_floor conc_vol | C91: =IF( OR( design<> 1,buyer_pressure<>1), 0, (prv_vault_int_width * prv_vault_int_length* vault_concrete_thickness / in_per_ft )/cuft_per_cuyd ) -> 0 | D91: cy
A92: PRV vault width concrete volume | B92: prv_vault_width_conc_vol | C92: =IF( OR( design<> 1,buyer_pressure<>1), 0, prv_vault_int_width * (vault_interior_height + 2 * vault_concrete_thickness / in_per_ft ) * vault_concrete_thickness / in_per_ft / cuft_per_cuyd ) -> 0 | D92: cy
A93: PRV vault total concrete volume | B93: prv_vault_total_conc_vol | C93: =IF( OR( design<> 1,buyer_pressure<>1), 0, SUM(C90:C92) ) -> 0 | D93: cy
A94: PRV vault excavation depth | B94: prv_vault_exc_depth | C94: =IF( OR( design<> 1,buyer_pressure<>1), 0, vault_concrete_thickness * 2 /in_per_ft + vault_interior_height + vault_min_cover ) -> 0 | D94: ft
A95: PRV vault excavation volume | B95: prv_vault_exc_volume | C95: =IF( OR( design<> 1,buyer_pressure<>1), 0,( ( (prv_vault_int_width + vault_concrete_thickness/ in_per_ft * 2 + prv_vault_exc_depth) * (prv_vault_int_length + prv_vault_exc_depth + vault_concrete_thickness/ in_per_ft ) * (prv_vault_exc_depth ) )/cuft_per_cuyd ) ) -> 0 | D95: cy
A96: PRV vault backfill volume | B96: prv_vault_backfill_volume | C96: =IF( OR( design<> 1,buyer_pressure<>1), 0, (prv_vault_exc_volume - ( ( (prv_vault_int_width + 2 * vault_concrete_thickness/ in_per_ft ) * (prv_vault_int_length + 2 * vault_concrete_thickness/ in_per_ft) *(prv_vault_exc_depth +vault_concrete_thickness/ in_per_ft) ) / cuft_per_cuyd ))) -> 0 | D96: cy
A98: Footprint
A99: Well footprint | B99: well_fp | C99: =IF(design=1,0,wells*well_footprint) -> 0 | D99: square feet
A100: Footprint of building 1 | B100: build1_fp | C100: =IF(design<>2,0,well_fp) -> 0 | D100: square feet
A101: Total footprint | B101: total_fp | C101: =build1_fp -> 0 | D101: square feet
A103: Land acquisition required | B103: land_required | C103: =IF(design<>2,0, ((build1_fp)^0.5+(2*non_fire_buffer))*((build1_fp)^0.5 + (non_fire_buffer+fire_buffer)) /43560) -> 0 | D103: acres
A104: Land acquisition cost | B104: land_cost | C104: =VLOOKUP(design_flow,land_cost_cl,3) -> 21165.71325 | D104: /acre

Sheet Instrumentation and Control
A1: Instrumentation and Control Calculations
A3: Calculation | B3: Range Name | C3: Value | D3: Units | E3: Guidance
A4: From Inputs
A5: Component level | B5: component_level | C5: =IF(component_level_I="high cost",2,IF(component_level_I="mid cost",1,"")) ->  | D5: blank = low cost, 1 = mid cost, 2 = high cost
A6: Manual system controls | B6: manual | C6: =IF(manual_I="manual",1,IF(manual_I="semi-automated",2,IF(manual_I="fully automated",3,IF(component_level="",1,IF(component_level=2,3,CHOOSE(ss_cat2,1,3,3)))))) -> 3 | D6: 1 = fully manual system, 2 = semi-automated system, 3 = fully automated system. | E6: Based on system size and component level (see cell comment), unless user overrides on input sheet
A8: Valves and Instrumentation
A9: Valve size | B9: valve_size | C9: =IF( design_flow_rate=0, 0, IF( design=2, well_pipe_diameter,interconnect_pipe_diameter)) -> 4 | D9: in
A10: Number of valves (isolation, street) | B10: num_valves | C10: =IF(design= 2, 0, min_valves+ num_PRVs* valve_per_PRV + ROUND(interconnect_pipe_length/valve_spacing,0)-1) -> 11 | D10: units
A12: Number of MOVs for isolating booster pumps | B12: total_booster_MOV | C12: =IF( manual =3, total_booster_pumps * valve_per_pump, 0) -> 0 | D12: units
A13: Number of MOVs for well pump | B13: total_well_MOV | C13: =IF( manual =3, well_pumps * valve_per_pump, 0) -> 0 | D13: units
A15: Number of manual valves for isolating booster pumps | B15: total_booster_man | C15: =IF( manual <> 3, total_booster_pumps * valve_per_pump, 0) -> 0 | D15: units
A16: Number of manual valves for well pump | B16: total_well_man | C16: =IF( manual <> 3, well_pumps * valve_per_pump, 0) -> 0 | D16: units
A18: Pressure Reducing Valve size | B18: PRV_size | C18: =IF( OR( design_flow_rate=0, design<>1, buyer_pressure<>1 ),0,VLOOKUP((interconnect_pipe_diameter),prv_table,2)) -> 0 | D18: in
A19: Number of Pressure Reducing Valves | B19: num_PRVs | C19: =IF( OR( design_flow_rate=0, design<>1, buyer_pressure<>1 ),0,min_num_PRVs + NRD_PRVs) -> 0 | D19: units
A20: Length of PRV | B20: PRV_length | C20: =IF( OR( design_flow_rate=0, design<>1, buyer_pressure<>1 ),0, VLOOKUP((interconnect_pipe_diameter),prv_table,3)) -> 0 | D20: in
A21: Width of PRV | B21: PRV_width | C21: =IF( OR( design_flow_rate=0, design<>1, buyer_pressure<>1 ),0,VLOOKUP((interconnect_pipe_diameter),prv_table,4) ) -> 0 | D21: in
A23: Total flow meters for interconnect line | B23: tot_fm_interconnect | C23: =IF( design=1,fm_interconnect,0) -> 1 | D23: units
A24: Flow meters for each well | B24: tot_fm_well | C24: =IF( design=2,fm_well*wells,0) -> 0 | D24: units
A25: Size of flow meters interconnect | B25: interconnect_meter_size | C25: =IF( design=1, interconnect_pipe_diameter,0) -> 4 | D25: in
A26: Size of flow meters well | B26: well_meter_size | C26: =IF( design=2,well_pipe_diameter,0) -> 0 | D26: in
A27: Number of remote telemetry units (RTUs) | B27: total_RTU | C27: =tot_fm_interconnect+tot_fm_well -> 1 | D27: units
A28: Number of well pump soft start controls | B28: tot_soft_start | C28: =soft_start*wells -> 0 | D28: units

Sheet O&M
A1: Operation and Maintenance Calculations
A3: Calculation | B3: Range Name | C3: Value | D3: Units | E3: Guidance
A4: Labor and Materials
A5: Cost of Purchased Water | B5: water_cost | C5: =IF(water_cost_I="",wholesale_water_cost_cl,water_cost_I) -> 3.059529078 | D5: $/1000 gal
A7: Maintenance Materials
A8: Materials for booster pumps | B8: pump_materials | C8: =IF( ISNUMBER(OUTPUT!J83), booster_pump_maintenance * OUTPUT!J83,0) -> 0 | D8: /yr
A9: Materials for well pumps | B9: well_pump_materials | C9: =IF( ISNUMBER(OUTPUT!J84), well_pump_maintenance * OUTPUT!J84,) -> 0
A10: Materials for PRVs
A12: General Labor
A13: Number of booster pumps for operation | B13: tot_pumps | C13: =booster_pumps -> 0 | D13: units | E13: Pumps requiring daily observation/adjustment
A14: Total number of booster pumps for maintenance | B14: tot_pumps_maint | C14: =booster_pumps -> 0 | D14: units | E14: Large, frequently operated pumps require preventative maintenance
A15: Number of well pumps for operation | B15: tot_well_pumps | C15: =well_pumps -> 0 | D15: units | E15: Pumps requiring daily observation/adjustment
A16: Total number of well pumps for maintenance | B16: tot_well_pumps_maint | C16: =well_pumps -> 0 | D16: units | E16: Large, frequently operated pumps require preventative maintenance
A17: Number of valves | B17: tot_valves | C17: =num_valves + total_booster_MOV + total_well_MOV+ total_booster_man -> 11 | D17: units | E17: Main process valves require frequent operation and preventative maintenance
A18: Number of PRVs | B18: tot_PRVs | C18: =num_PRVs -> 0 | D18: units
A20: Verify/adjust booster pump operating parameters | C20: =IF(OR(manual=1,manual=2),tot_pumps*uloe_pump*365/60,0) -> 0 | D20: hr/yr
A21: Preventative maintenance of booster pumps | C21: =tot_pumps_maint*uloe_pump_maint -> 0 | D21: hr/yr
A22: Verify/adjust valve positions | C22: =IF(OR(manual=1,manual=2),tot_valves*uloe_valve*52/60,0) -> 0 | D22: hr/yr
A23: Preventative maintenance and inspection of valves | C23: =tot_valves*uloe_valve_maint/60 -> 0.9166666667 | D23: hr/yr
A24: Visual inspection of facility | C24: =total_fp/100*uloe_fp*365/60 -> 0 | D24: hr/yr
A25: Preventative maintenance and inspection of PRVs | C25: =tot_PRVs*uloe_valve_maint/60 -> 0 | D25: hr/yr
A26: Verify/adjust well pump operating parameters | C26: =IF(OR(manual=1,manual=2),tot_well_pumps*uloe_pump*365/60,0) -> 0 | D26: hr/yr
A27: Preventative maintenance of well pumps | C27: =tot_well_pumps_maint*uloe_pump_maint -> 0 | D27: hr/yr
A29: General Operator Labor | B29: General_oper_labor | C29: =SUM(C20:C27) -> 0.9166666667 | D29: hr/yr
A31: Annual Operator LOE | B31: Operator_LOE | C31: =General_oper_labor -> 0.9166666667 | D31: hr/yr
A32: Annual Manager LOE | B32: Manager_LOE | C32: =Operator_LOE*Manager_percent -> 0.09166666667 | D32: hr/yr
A33: Annual Administrative LOE | B33: Clerical_LOE | C33: =Operator_LOE*Clerical_percent -> 0.09166666667 | D33: hr/yr
A36: Building Maintenance
A37: Cost for all buildings | C37: =IF(include_buildings=0,0,building_matl_rate_cl*total_fp) -> 0 | D37: /yr
A38: Annual maintenance for all buildings | B38: bldg_maint_cost | C38: =C37 -> 0 | D38: /yr
A40: Energy
A41: Booster pumps
A42: Pump operating horsepower | C42: =IF(booster_pumps=0,0,average_flow_rate*booster_psi/booster_pumps/booster_pump_efficiency/14.7*33.9*8.34/550/60) -> 0 | D42: hp
A43: Energy per pump | C43: =C42*0.7457/1000*24*day_per_year -> 0 | D43: MWh/yr
A44: Energy for all active booster pumps | B44: booster_pump_energy | C44: =C43*booster_pumps -> 0 | D44: MWh/yr
A46: Well pumps
A47: Pump operating horsepower | C47: =IF(design<>2,0,well_pump_head*average_flow_rate/well_pumps*(1+pump_safety_factor)/3960) -> 0 | D47: hp
A48: Energy per pump | C48: =C47*0.7457/1000*24*day_per_year -> 0 | D48: MWh/yr
A49: Energy for all active well pumps | B49: well_pump_energy | C49: =C48*tot_well_pumps -> 0 | D49: MWh/yr
A51: System Size | B51: ss_cat2 | C51: =IF(design_flow<1,1,IF(design_flow<10,2,3)) -> 1 | D51: 1 indicates small system, 2 indicates medium, 3 indicates large

Sheet Indirect
A1: Indirect and Add-on Cost Calculations
A3: Calculation | B3: Range Name | C3: Value | D3: Units | E3: Guidance
A4: Buildings & Land
A5: Include buildings in total capital cost? | B5: include_buildings | C5: =IF(OR(design=1,include_buildings_I="no"),0,1) -> 0 | D5: 1 = yes, 0 = no
A6: Include land costs? | B6: include_land | C6: =IF(OR(design=1,include_land_I="no"),0,1) -> 0 | D6: 1 = yes, 0 = no
A8: Standby Power
A9: Booster pumps | C9: =booster_pump_energy*design_flow/average_flow/day_per_year/24*1000 -> 0 | D9: kW
A10: Well pumps | C10: =well_pump_energy*design_flow/average_flow/day_per_year/24*1000 -> 0 | D10: kW
A11: Total base standby power requirement | B11: std_base | C11: =IF((C9+C10)=0,0,ROUNDUP(2*MAX(min_standby,(C9+C10)*(1+std_safety_factor)),0)/2) -> 0 | D11: kW
A12: Total standby power cost | B12: std_power_cost | C12: =VLOOKUP(std_base,std_gen_cost_cl,3)*std_base -> 0
A14: Geotechnical & Sitework
A15: Total sitework cost | B15: sitework_cost | C15: =total_fp*sitework_sf_cl -> 0
A17: Construction Management and General Contractor Job Overhead
A18: Builder's risk insurance percentage | C18: =br_ins_pct*direct_cost -> 1034.388656
A19: Performance bond cost | C19: =include_bond*(VLOOKUP(direct_cost,performance_bond_table_cl,3)+VLOOKUP(direct_cost,performance_bond_table_cl,4)*(direct_cost-VLOOKUP(direct_cost,performance_bond_table_cl,5))) -> 5563.479364 | E19: Bracket determined from direct capital cost
A20: Construction management percentage | C20: =VLOOKUP(direct_cost,construction_mgt_table_cl,3) -> 0.06 | E20: Looked up from direct capital cost
A21: Construction management fee | C21: =include_cm*C20*direct_cost -> 18253.91746
A22: Total construction management/job overhead cost | B22: cm_cost | C22: =SUM(C18:C19,C21) -> 24851.78548
A24: Borings, initial field stake out & determination of elevations | C24: =wells*VLOOKUP(0,stake_out_cost_cl,3) -> 0
A25: Borings, drawings showing boring details | C25: =wells*VLOOKUP(0,bore_draw_cost_cl,3) -> 0
A26: Borings, report and recommendations from P.E. | C26: =wells*VLOOKUP(0,bore_report_cost_cl,3) -> 0
A27: Borings, mobilization and demobilization, minimum | C27: =wells*VLOOKUP(0,bore_mob_cost_cl,3) -> 0
A28: Borings, drill rig and crew with truck mounted auger | C28: =wells*VLOOKUP(0,bore_rig_cost_cl,3) -> 0
A29: Borings, cased borings in earth, w/samples, 2.5" dia | C29: =wells*well_depth*VLOOKUP(0,bore_cost_cl,3) -> 0
A30: Total geotechnical cost | B30: geotech_cost | C30: =SUM(C24:C29) -> 0
A33: Permits
A34: Building #1 value | C34: =IF(OUTPUT!C102>0,SUMPRODUCT(OUTPUT!J102:J102,OUTPUT!L102:L102),0) -> 0 | E34: Determined using Use? Column of output sheet
A35: Building permit cost | C35: =VLOOKUP(design_flow,UBC_mult_table_cl,3)*(BPCost_UBC97(C34)) -> 0 | E35: Uses custom function to apply formula and multiplier documented in Abt Associates, 2020, Permitting Requirement Costs for Drinking Water Treatment Cost Models. Prepared for USEPA. October.
A36: Total permit cost | B36: permit_cost | C36: =C35 -> 0
A38: Percent Contributions to Annualized Cost
A39: Total annualized cost percent capital | B39: TAC_pct_cap | C39: =Annualized_Capital_Cost/Annualized_Cost -> 0.8400860203
A40: Total annualized cost percent O&M | B40: TAC_pct_OM | C40: =om_cost/Annualized_Cost -> 0.1599139797

Sheet Standard Inputs
A1: Standard Designs
A2: Default inputs represent typical options used to generate national average compliance costs.
A6: Design Indices | C6: System Size | G6: Interconnection | L6: Well Inputs | N6: Optional
A7: Design Type | B7: Design # | C7: Design flow | D7: Design Flow Units | E7: Average Flow | F7: Average flow units | G7: Distance to Water Supply | H7: Pressure at Supply Source | I7: Elevation Difference from Supply Source | J7: Cost of Purchased Water | K7: Flow per Well | L7: Well Depth | M7: Distance to Distribution System | N7: Component level | O7: System Automation | P7: Include Buildings? | Q7: Include Land? | S7: Internal Use
C8: design_flow_I | D8: df_units | E8: average_flow_I | F8: af_units | G8: pipe_length_I | H8: buyer_pressure_I | I8: elevation_diff_I | J8: water_cost_I | K8: wells_I | L8: well_depth_I | M8: well_distance_I | N8: component_level_I | O8: manual_I | P8: include_buildings_I | Q8: include_land_I
A9: 1 | B9: 1 | C9: 0.03 | D9: MGD | E9: 0.007 | F9: MGD | G9: 10000 | H9: correct pressure | I9: 0 | O9: fully automated | S9: =AND(C9:Q9=inp_used,A9=inp_used_usersel) -> TRUE | T9: =AND(C9:F9=inp_used_minimal,A9=inp_used_usersel) -> TRUE
A10: 1 | B10: 2 | C10: 0.124 | D10: MGD | E10: 0.035 | F10: MGD | G10: 10000 | H10: correct pressure | I10: 0 | O10: fully automated | S10: =AND(C10:Q10=inp_used,A10=inp_used_usersel) -> FALSE | T10: =AND(C10:F10=inp_used_minimal,A10=inp_used_usersel) -> FALSE
A11: 1 | B11: 3 | C11: 0.305 | D11: MGD | E11: 0.094 | F11: MGD | G11: 10000 | H11: correct pressure | I11: 0 | O11: fully automated | S11: =AND(C11:Q11=inp_used,A11=inp_used_usersel) -> FALSE | T11: =AND(C11:F11=inp_used_minimal,A11=inp_used_usersel) -> FALSE
A12: 1 | B12: 4 | C12: 0.74 | D12: MGD | E12: 0.251 | F12: MGD | G12: 10000 | H12: correct pressure | I12: 0 | O12: fully automated | S12: =AND(C12:Q12=inp_used,A12=inp_used_usersel) -> FALSE | T12: =AND(C12:F12=inp_used_minimal,A12=inp_used_usersel) -> FALSE
A13: 1 | B13: 5 | C13: 2.152 | D13: MGD | E13: 0.819 | F13: MGD | G13: 10000 | H13: correct pressure | I13: 0 | O13: fully automated | S13: =AND(C13:Q13=inp_used,A13=inp_used_usersel) -> FALSE | T13: =AND(C13:F13=inp_used_minimal,A13=inp_used_usersel) -> FALSE
A14: 2 | B14: 1 | C14: 0.03 | D14: MGD | E14: 0.007 | F14: MGD | K14: 500 | L14: 250 | M14: 500 | O14: fully automated | S14: =AND(C14:Q14=inp_used,A14=inp_used_usersel) -> FALSE | T14: =AND(C14:F14=inp_used_minimal,A14=inp_used_usersel) -> FALSE
A15: 2 | B15: 2 | C15: 0.124 | D15: MGD | E15: 0.035 | F15: MGD | K15: 500 | L15: 250 | M15: 500 | O15: fully automated | S15: =AND(C15:Q15=inp_used,A15=inp_used_usersel) -> FALSE | T15: =AND(C15:F15=inp_used_minimal,A15=inp_used_usersel) -> FALSE
A16: 2 | B16: 3 | C16: 0.305 | D16: MGD | E16: 0.094 | F16: MGD | K16: 500 | L16: 250 | M16: 500 | O16: fully automated | S16: =AND(C16:Q16=inp_used,A16=inp_used_usersel) -> FALSE | T16: =AND(C16:F16=inp_used_minimal,A16=inp_used_usersel) -> FALSE
A17: 2 | B17: 4 | C17: 0.74 | D17: MGD | E17: 0.251 | F17: MGD | K17: 500 | L17: 250 | M17: 500 | O17: fully automated | S17: =AND(C17:Q17=inp_used,A17=inp_used_usersel) -> FALSE | T17: =AND(C17:F17=inp_used_minimal,A17=inp_used_usersel) -> FALSE
A18: 2 | B18: 5 | C18: 2.152 | D18: MGD | E18: 0.819 | F18: MGD | K18: 500 | L18: 250 | M18: 500 | O18: fully automated | S18: =AND(C18:Q18=inp_used,A18=inp_used_usersel) -> FALSE | T18: =AND(C18:F18=inp_used_minimal,A18=inp_used_usersel) -> FALSE
A20: =IF(LEN(design)=0,"",design) -> 1 | C20: =IF(LEN(design_flow_I)=0,"",design_flow_I) -> 0.03 | D20: =IF(LEN(df_units)=0,"",df_units) -> MGD | E20: =IF(LEN(average_flow_I)=0,"",average_flow_I) -> 0.007 | F20: =IF(LEN(af_units)=0,"",af_units) -> MGD | G20: =IF(LEN(pipe_length_I)=0,"",pipe_length_I) -> 10000 | H20: =IF(LEN(buyer_pressure_I)=0,"",buyer_pressure_I) -> correct pressure | I20: =IF(LEN(elevation_diff_I)=0,"",elevation_diff_I) -> 0 | J20: =IF(LEN(water_cost_I)=0,"",water_cost_I) ->  | K20: =IF(LEN(wells_I)=0,"",wells_I) ->  | L20: =IF(LEN(well_depth_I)=0,"",well_depth_I) ->  | M20: =IF(LEN(well_distance_I)=0,"",well_distance_I) ->  | N20: =IF(LEN(component_level_I)=0,"",component_level_I) ->  | O20: =IF(LEN(manual_I)=0,"",manual_I) -> fully automated | P20: =IF(LEN(include_buildings_I)=0,"",include_buildings_I) ->  | Q20: =IF(LEN(include_land_I)=0,"",include_land_I) ->  | R20: <--current inputs
C21: 0.03 | D21: MGD | E21: 0.007 | F21: MGD | G21: 10000 | H21: correct pressure | I21: 0 | O21: fully automated | R21: <--inputs used at last "Generate Results" | S21: =AND(C21:Q21=inp_used) -> TRUE

Sheet Cost Equations
A1: Cost Equations
A2: This sheet is used internally to calculate component costs using the cost equations method; see model documentation for more details on the development of cost equations
A4: Component | B4: Equation Name | C4: Result | D4: Variable | E4: Equation Lookup Name | F4: 2 | G4: 3 | H4: 4 | I4: 5 | J4: 6 | K4: 7 | L4: 8 | M4: 9 | N4: 10 | O4: 11 | P4: 16 | Q4: 17
A5: Well Items
A6: Well Casing
A7: PVC | B7: casing_pvc_eq | C7: =IF(D7=0,0,IF(OR(D7>P7,D7<Q7),"contact vendor",F7*D7^G7+H7*LN(D7)+I7+J7*EXP(K7*D7)+L7*D7^3+M7*D7^2+N7*D7+O7)) -> 0 | D7: =casing_diam -> 0 | E7: casing_pvc_eq | F7: =VLOOKUP($E7,eq_table_cl,F$4,FALSE) -> 0 | G7: 0 | H7: 0 | I7: 0 | J7: 0 | K7: 0 | L7: -0.046884323 | M7: 1.202903939 | N7: -2.537097312 | O7: 13.47425517 | P7: 12.00001 | Q7: 0
A8: Stainless Steel | B8: casing_ss_eq | C8: 0 | D8: =casing_diam -> 0 | E8: casing_ss_eq | F8: 13.98207774 | G8: 1.760932625 | H8: 0 | I8: 0 | J8: 0 | K8: 0 | L8: 0 | M8: 0 | N8: 0 | O8: 0 | P8: 12.00001 | Q8: 2
A9: Well screen
A10: PVC Schedule 40 | B10: screen_pvc40_eq | C10: =IF(D10=0,0,IF(OR(D10>P10,D10<Q10),"contact vendor",F10*D10^G10+H10*LN(D10)+I10+J10*EXP(K10*D10)+L10*D10^3+M10*D10^2+N10*D10+O10)) -> 0 | D10: =screen_diam -> 0 | E10: screen_pvc40_eq | F10: =VLOOKUP($E10,eq_table_cl,F$4,FALSE) -> 0 | G10: 0 | H10: 0 | I10: 0 | J10: 0 | K10: 0 | L10: -0.038992712 | M10: 0.461733535 | N10: 8.579004885 | O10: 15.69610085 | P10: 12.00001 | Q10: 0
A11: PVC Schedule 80 | B11: screen_pvc80_eq | C11: 0 | D11: =screen_diam -> 0 | E11: screen_pvc80_eq | F11: 0 | G11: 0 | H11: 0 | I11: 0 | J11: 0 | K11: 0 | L11: -0.186768741 | M11: 3.452799739 | N11: -5.9343944 | O11: 27.11904691 | P11: 12.00001 | Q11: 0
A12: Stainless Steel | B12: screen_ss_eq | C12: 0 | D12: =screen_diam -> 0 | E12: screen_ss_eq | F12: 0 | G12: 0 | H12: 0 | I12: 0 | J12: 0 | K12: 0 | L12: 0.40461481 | M12: -7.895513334 | N12: 76.80664709 | O12: -0.753166847 | P12: 12.00001 | Q12: 2
A13: Plugs
A14: PVC | B14: plug_pvc_eq | C14: =IF(D14=0,0,IF(OR(D14>P14,D14<Q14),"contact vendor",F14*D14^G14+H14*LN(D14)+I14+J14*EXP(K14*D14)+L14*D14^3+M14*D14^2+N14*D14+O14)) -> 0 | D14: =plug_diam -> 0 | E14: plug_pvc_eq | F14: =VLOOKUP($E14,eq_table_cl,F$4,FALSE) -> 0 | G14: 0 | H14: 0 | I14: 0 | J14: 0 | K14: 0 | L14: -0.254653706 | M14: 4.833758123 | N14: 6.253481666 | O14: 14.26059206 | P14: 12.00001 | Q14: 0
A15: Stainless Steel | B15: plug_ss_eq | C15: =IF(D15=0,0,IF(OR(D15>P15,D15<Q15),"contact vendor",F15*D15^G15+H15*LN(D15)+I15+J15*EXP(K15*D15)+L15*D15^3+M15*D15^2+N15*D15+O15)) -> 0 | D15: =plug_diam -> 0 | E15: plug_ss_eq | F15: 0 | G15: 0 | H15: 0 | I15: 0 | J15: 0 | K15: 0 | L15: 0.42194984 | M15: 2.669283576 | N15: 4.469566905 | O15: 121.6900163 | P15: 10.00001 | Q15: 0
A16: Well Drilling | B16: no equation
A17: Gravel Pack | B17: gravel_pack_eq | C17: =IF(D17=0,0,IF(OR(D17>P17,D17<Q17),"contact vendor",F17*D17^G17+H17*LN(D17)+I17+J17*EXP(K17*D17)+L17*D17^3+M17*D17^2+N17*D17+O17)) -> 0 | D17: =casing_diam -> 0 | E17: gravel_pack_eq | F17: =VLOOKUP($E17,eq_table_cl,F$4,FALSE) -> 0 | G17: 0 | H17: 0 | I17: 0 | J17: 0 | K17: 0 | L17: -0.002456785 | M17: 0.123224508 | N17: 6.046649607 | O17: -16.04448424 | P17: 36.001 | Q17: 0
A18: Well Development | B18: no equation
A19: Grout Seal | B19: no equation
A20: Vaults | B20: no equations
A21: Piping
A22: Interconnect
A23: Ductile Iron | B23: di_pipe_eq_interconnect | C23: =IF(D23=0,0,IF(OR(D23>P23,D23<Q23),"contact vendor",F23*D23^G23+H23*LN(D23)+I23+J23*EXP(K23*D23)+L23*D23^3+M23*D23^2+N23*D23+O23)) -> 74.28278757 | D23: =interconnect_pipe_diameter -> 4 | E23: di_pipe_eq | F23: =VLOOKUP($E23,eq_table_cl,F$4,FALSE) -> 0 | G23: 0 | H23: 0 | I23: 0 | J23: 0 | K23: 0 | L23: 0.013009082 | M23: -0.638535671 | N23: 18.15254247 | O23: 11.05660719 | P23: 48.1 | Q23: 4
A24: PVC | B24: pvc_pipe_eq_interconnect | C24: 6.185340873 | D24: =interconnect_pipe_diameter -> 4 | E24: pvc_pipe_eq | F24: 0 | G24: 0 | H24: 0 | I24: 0 | J24: 0 | K24: 0 | L24: 0 | M24: 0.097106987 | N24: 0.800977414 | O24: 1.427719425 | P24: 48.1 | Q24: 0
A25: Excavation | B25: no equation
A26: Backfill and Compaction | B26: no equation
A27: Asphalt Patch
A28: Well
A29: Ductile Iron | B29: di_pipe_eq_well | C29: =IF(D29=0,0,IF(OR(D29>P29,D29<Q29),"contact vendor",F29*D29^G29+H29*LN(D29)+I29+J29*EXP(K29*D29)+L29*D29^3+M29*D29^2+N29*D29+O29)) -> 0 | D29: =well_pipe_diameter -> 0 | E29: di_pipe_eq | F29: =VLOOKUP($E29,eq_table_cl,F$4,FALSE) -> 0 | G29: 0 | H29: 0 | I29: 0 | J29: 0 | K29: 0 | L29: 0.013009082 | M29: -0.638535671 | N29: 18.15254247 | O29: 11.05660719 | P29: 48.1 | Q29: 4
A30: PVC | B30: pvc_pipe_eq_well | C30: 0 | D30: =well_pipe_diameter -> 0 | E30: pvc_pipe_eq | F30: 0 | G30: 0 | H30: 0 | I30: 0 | J30: 0 | K30: 0 | L30: 0 | M30: 0.097106987 | N30: 0.800977414 | O30: 1.427719425 | P30: 48.1 | Q30: 0
A31: Excavation | B31: no equation
A32: Backfill and Compaction | B32: no equation
A33: Valves
A34: Isolation and Street
A35: Ductile Iron | B35: street_valve_eq | C35: =IF(D35=0,0,IF(OR(D35>P35,D35<Q35),"contact vendor",F35*D35^G35+H35*LN(D35)+I35+J35*EXP(K35*D35)+L35*D35^3+M35*D35^2+N35*D35+O35)) -> 1339.469108 | D35: =valve_size -> 4 | E35: street_valve_eq | F35: =VLOOKUP($E35,eq_table_cl,F$4,FALSE) -> 0 | G35: 0 | H35: 0 | I35: 0 | J35: 0 | K35: 0 | L35: 9.642516064 | M35: -109.6007209 | N35: 728.4091185 | O35: -437.6768604 | P35: 12.1 | Q35: 0
A36: Motor/Air Operated (on/off)
A37: Booster Pump - Polypropylene/PVC | B37: pp_mov_eq_booster_pump | C37: 487.1135423 | D37: =valve_size -> 4 | E37: =IF(D37>12,"pp_man_eq_large","pp_man_eq_small") -> pp_man_eq_small | F37: =VLOOKUP($E37,eq_table_cl,F$4,FALSE) -> 0 | G37: 0 | H37: 0 | I37: 0 | J37: 0 | K37: 0 | L37: 0 | M37: 12.11782352 | N37: 45.057729 | O37: 112.9974499 | P37: 12 | Q37: 0
A38: Booster Pump - Stainless Steel | B38: ss_mov_eq_booster_pump | C38: 2066.200889 | D38: 4 | E38: ss_mov_eq | F38: 0 | G38: 0 | H38: 0 | I38: 0 | J38: 0 | K38: 0 | L38: 1.481345126 | M38: 44.57582587 | N38: -42.85092445 | O38: 1429.585285 | P38: 48.1 | Q38: 0
A39: Booster Pump - Cast Iron | B39: ci_mov_eq_booster_pump | C39: 4053.399765 | D39: 4 | E39: ci_mov_eq | F39: 0 | G39: 0 | H39: 0 | I39: 0 | J39: 0 | K39: 0 | L39: 0 | M39: 0 | N39: 1304.612083 | O39: -1165.048568 | P39: 48.1 | Q39: 1
A40: Well Pump - Polypropylene/PVC | B40: pp_mov_eq_well_pump | C40: 487.1135423 | D40: 4 | E40: =IF(D40>12,"pp_man_eq_large","pp_man_eq_small") -> pp_man_eq_small | F40: 0 | G40: 0 | H40: 0 | I40: 0 | J40: 0 | K40: 0 | L40: 0 | M40: 12.11782352 | N40: 45.057729 | O40: 112.9974499 | P40: 12 | Q40: 0
A41: Well Pump - Stainless Steel | B41: ss_mov_eq_well_pump | C41: 2066.200889 | D41: 4 | E41: ss_mov_eq | F41: 0 | G41: 0 | H41: 0 | I41: 0 | J41: 0 | K41: 0 | L41: 1.481345126 | M41: 44.57582587 | N41: -42.85092445 | O41: 1429.585285 | P41: 48.1 | Q41: 0
A42: Well Pump - Cast Iron | B42: ci_mov_eq_well_pump | C42: 4053.399765 | D42: 4 | E42: ci_mov_eq | F42: 0 | G42: 0 | H42: 0 | I42: 0 | J42: 0 | K42: 0 | L42: 0 | M42: 0 | N42: 1304.612083 | O42: -1165.048568 | P42: 48.1 | Q42: 1
A43: Manual
A44: Booster Pump - Polypropylene/PVC | B44: pp_man_eq_booster_pump | C44: =IF(D44=0,0,IF(OR(D44>P44,D44<Q44),"contact vendor",F44*D44^G44+H44*LN(D44)+I44+J44*EXP(K44*D44)+L44*D44^3+M44*D44^2+N44*D44+O44)) -> 487.1135423 | D44: =valve_size -> 4 | E44: =IF(D44>12,"pp_man_eq_large","pp_man_eq_small") -> pp_man_eq_small | F44: =VLOOKUP($E44,eq_table_cl,F$4,FALSE) -> 0 | G44: 0 | H44: 0 | I44: 0 | J44: 0 | K44: 0 | L44: 0 | M44: 12.11782352 | N44: 45.057729 | O44: 112.9974499 | P44: 12 | Q44: 0
A45: Booster Pump - Stainless Steel | B45: ss_man_eq_booster_pump | C45: 981.5662587 | D45: 4 | E45: ss_man_eq | F45: 271.9831646 | G45: 0.925784152 | H45: 0 | I45: 0 | J45: 0 | K45: 0 | L45: 0 | M45: 0 | N45: 0 | O45: 0 | P45: 12.1 | Q45: 0
A46: Booster Pump - Cast Iron | B46: ci_man_eq_booster_pump | C46: 946.0056363 | D46: 4 | E46: =IF(D46>12,"ci_bfv_eq_large","ci_bfv_eq_small") -> ci_bfv_eq_small | F46: 221.7765322 | G46: 1.046371034 | H46: 0 | I46: 0 | J46: 0 | K46: 0 | L46: 0 | M46: 0 | N46: 0 | O46: 0 | P46: 12 | Q46: 1
A47: Well Pump - Polypropylene/PVC | B47: pp_man_eq_well_pump | C47: 487.1135423 | D47: 4 | E47: =IF(D47>12,"pp_man_eq_large","pp_man_eq_small") -> pp_man_eq_small | F47: 0 | G47: 0 | H47: 0 | I47: 0 | J47: 0 | K47: 0 | L47: 0 | M47: 12.11782352 | N47: 45.057729 | O47: 112.9974499 | P47: 12 | Q47: 0
A48: Well Pump - Stainless Steel | B48: ss_man_eq_well_pump | C48: 981.5662587 | D48: 4 | E48: ss_man_eq | F48: 271.9831646 | G48: 0.925784152 | H48: 0 | I48: 0 | J48: 0 | K48: 0 | L48: 0 | M48: 0 | N48: 0 | O48: 0 | P48: 12.1 | Q48: 0
A49: Well Pump - Cast Iron | B49: ci_man_eq_well_pump | C49: 946.0056363 | D49: 4 | E49: =IF(D49>12,"ci_bfv_eq_large","ci_bfv_eq_small") -> ci_bfv_eq_small | F49: 221.7765322 | G49: 1.046371034 | H49: 0 | I49: 0 | J49: 0 | K49: 0 | L49: 0 | M49: 0 | N49: 0 | O49: 0 | P49: 12 | Q49: 1
A50: Control
A51: Pressure Reducing | B51: prv_eq | C51: =IF(D51=0,0,IF(OR(D51>P51,D51<Q51),"contact vendor",F51*D51^G51+H51*LN(D51)+I51+J51*EXP(K51*D51)+L51*D51^3+M51*D51^2+N51*D51+O51)) -> 0 | D51: =PRV_size -> 0 | E51: prv_eq | F51: =VLOOKUP($E51,eq_table_cl,F$4,FALSE) -> 0 | G51: 0 | H51: 0 | I51: 0 | J51: 0 | K51: 0 | L51: 9.043115437 | M51: 42.90874116 | N51: 617.3183616 | O51: 1458.208772 | P51: 12.1 | Q51: 0
A52: Pumps
A53: Booster pump cost, 25 psi | C53: =IF(D53=0,0,IF(OR(D53>P53,D53<Q53),"contact vendor",F53*D53^G53+H53*LN(D53)+I53+J53*EXP(K53*D53)+L53*D53^3+M53*D53^2+N53*D53+O53)) -> 0 | D53: =booster_pump_rating -> 0 | E53: pump_eq | F53: =VLOOKUP($E53,eq_table_cl,F$4,FALSE) -> 0 | G53: 0 | H53: 0 | I53: 0 | J53: 0 | K53: 0 | L53: 0 | M53: -0.00067003 | N53: 14.80901498 | O53: 4093.494685 | P53: 10001 | Q53: 0
A54: Booster pump cost, 75 psi | C54: 0 | D54: 0 | E54: dis75_pump_eq | F54: 0 | G54: 0 | H54: 0 | I54: 0 | J54: 0 | K54: 0 | L54: 0 | M54: -0.000945834 | N54: 21.70765363 | O54: 4216.658192 | P54: 10001 | Q54: 0
A55: Booster pump cost, 150 psi | C55: 0 | D55: 0 | E55: ro150_pump_eq | F55: 1976.635575 | G55: 0.417235438 | H55: 0 | I55: 0 | J55: 0 | K55: 0 | L55: 0 | M55: 0 | N55: 0 | O55: 0 | P55: 2000.1 | Q55: 0
A56: Booster pump cost, 200 psi | C56: 0 | D56: 0 | E56: ro200_pump_eq | F56: 0 | G56: 0 | H56: 0 | I56: 0 | J56: 0 | K56: 0 | L56: 0 | M56: 0 | N56: 72.10757877 | O56: 4668.935081 | P56: 2000.1 | Q56: 0
A57: Booster pump cost, 250 psi | C57: 0 | D57: 0 | E57: ro250_pump_eq | F57: 0 | G57: 0 | H57: 0 | I57: 0 | J57: 0 | K57: 0 | L57: 0 | M57: -0.02811187 | N57: 138.4976376 | O57: 3440.503341 | P57: 2000.1 | Q57: 0
A58: Booster pump cost, 300 psi | C58: 0 | D58: 0 | E58: ro300_pump_eq | F58: 0 | G58: 0 | H58: 0 | I58: 0 | J58: 0 | K58: 0 | L58: 0 | M58: -0.327977166 | N58: 232.5632022 | O58: 3389.301563 | P58: 250.1 | Q58: 0
A59: Booster pump cost, 350 psi | C59: 0 | D59: 0 | E59: ro350_pump_eq | F59: 1526.907357 | G59: 0.61024054 | H59: 0 | I59: 0 | J59: 0 | K59: 0 | L59: 0 | M59: 0 | N59: 0 | O59: 0 | P59: 225.1 | Q59: 0
A60: Booster pump cost, 500 psi | C60: 0 | D60: 0 | E60: ro500_pump_eq | F60: 3021.437203 | G60: 0.513267873 | H60: 0 | I60: 0 | J60: 0 | K60: 0 | L60: 0 | M60: 0 | N60: 0 | O60: 0 | P60: 185.1 | Q60: 0
A61: Interconnect Booster Pump | B61: int_booster_pump_eq | C61: =IF(booster_psi<=25,C53,IF(booster_psi<=75,C54,IF(booster_psi<=150,C55,IF(booster_psi<=200,C56,IF(booster_psi<=250,C57,IF(booster_psi<=300,C58,IF(booster_psi<=350,C59,C60))))))) -> 0
A62: Well Pump | B62: no equation
A63: Instrumentation
A64: Flow meters Interconnect
A65: Orifice Plate | B65: op_fm_eq_innterconnect | C65: =IF(D65=0,0,IF(OR(D65>P65,D65<Q65),"contact vendor",F65*D65^G65+H65*LN(D65)+I65+J65*EXP(K65*D65)+L65*D65^3+M65*D65^2+N65*D65+O65)) -> 2640.989934 | D65: =OUTPUT!G87 -> 4 | E65: op_fm_eq | F65: =VLOOKUP($E65,eq_table_cl,F$4,FALSE) -> 0 | G65: 0 | H65: 0 | I65: 0 | J65: 0 | K65: 0 | L65: 0.290528801 | M65: -20.14101884 | N65: 567.6228055 | O65: 674.1611697 | P65: 60.1 | Q65: 0
A66: Propeller | B66: prop_fm_eq_innterconnect | C66: =IF(D66=0,0,IF(OR(D66>P66,D66<Q66),"contact vendor",F66*D66^G66+H66*LN(D66)+I66+J66*EXP(K66*D66)+L66*D66^3+M66*D66^2+N66*D66+O66)) -> 3600.376351 | D66: =OUTPUT!G88 -> 4 | E66: prop_fm_eq | F66: 0 | G66: 0 | H66: 0 | I66: 0 | J66: 0 | K66: 0 | L66: 0.486674373 | M66: -19.17737565 | N66: 593.8803516 | O66: 1500.545795 | P66: 36.1 | Q66: 0
A67: Venturi | B67: ven_fm_eq_innterconnect | C67: =IF(D67=0,0,IF(OR(D67>P67,D67<Q67),"contact vendor",F67*D67^G67+H67*LN(D67)+I67+J67*EXP(K67*D67)+L67*D67^3+M67*D67^2+N67*D67+O67)) -> 2664.461708 | D67: =OUTPUT!G89 -> 4 | E67: ven_fm_eq | F67: 0 | G67: 0 | H67: 0 | I67: 0 | J67: 0 | K67: 0 | L67: -0.089659137 | M67: 7.381419291 | N67: 135.4087789 | O67: 2010.462069 | P67: 48.1 | Q67: 0
A68: Magnetic | B68: mag_fm_eq_innterconnect | C68: =IF(D68=0,0,IF(OR(D68>P68,D68<Q68),"contact vendor",F68*D68^G68+H68*LN(D68)+I68+J68*EXP(K68*D68)+L68*D68^3+M68*D68^2+N68*D68+O68)) -> 5121.66113 | D68: =OUTPUT!G90 -> 4 | E68: mag_fm_eq | F68: 0 | G68: 0 | H68: 0 | I68: 0 | J68: 0 | K68: 0 | L68: 0.087416773 | M68: 3.727367106 | N68: 488.1940921 | O68: 3103.652215 | P68: 36.1 | Q68: 0
A69: Flow meters well
A70: Orifice Plate | B70: op_fm_eq_well | C70: =IF(D70=0,0,IF(OR(D70>P70,D70<Q70),"contact vendor",F70*D70^G70+H70*LN(D70)+I70+J70*EXP(K70*D70)+L70*D70^3+M70*D70^2+N70*D70+O70)) -> contact vendor | D70: =OUTPUT!G92 -> NA | E70: op_fm_eq | F70: =VLOOKUP($E70,eq_table_cl,F$4,FALSE) -> 0 | G70: 0 | H70: 0 | I70: 0 | J70: 0 | K70: 0 | L70: 0.290528801 | M70: -20.14101884 | N70: 567.6228055 | O70: 674.1611697 | P70: 60.1 | Q70: 0
A71: Propeller | B71: prop_fm_eq_well | C71: =IF(D71=0,0,IF(OR(D71>P71,D71<Q71),"contact vendor",F71*D71^G71+H71*LN(D71)+I71+J71*EXP(K71*D71)+L71*D71^3+M71*D71^2+N71*D71+O71)) -> contact vendor | D71: =OUTPUT!G93 -> NA | E71: prop_fm_eq | F71: 0 | G71: 0 | H71: 0 | I71: 0 | J71: 0 | K71: 0 | L71: 0.486674373 | M71: -19.17737565 | N71: 593.8803516 | O71: 1500.545795 | P71: 36.1 | Q71: 0
A72: Venturi | B72: ven_fm_eq_well | C72: =IF(D72=0,0,IF(OR(D72>P72,D72<Q72),"contact vendor",F72*D72^G72+H72*LN(D72)+I72+J72*EXP(K72*D72)+L72*D72^3+M72*D72^2+N72*D72+O72)) -> contact vendor | D72: =OUTPUT!G94 -> NA | E72: ven_fm_eq | F72: 0 | G72: 0 | H72: 0 | I72: 0 | J72: 0 | K72: 0 | L72: -0.089659137 | M72: 7.381419291 | N72: 135.4087789 | O72: 2010.462069 | P72: 48.1 | Q72: 0
A73: Magnetic | B73: mag_fm_eq_well | C73: =IF(D73=0,0,IF(OR(D73>P73,D73<Q73),"contact vendor",F73*D73^G73+H73*LN(D73)+I73+J73*EXP(K73*D73)+L73*D73^3+M73*D73^2+N73*D73+O73)) -> contact vendor | D73: =OUTPUT!G95 -> NA | E73: mag_fm_eq | F73: 0 | G73: 0 | H73: 0 | I73: 0 | J73: 0 | K73: 0 | L73: 0.087416773 | M73: 3.727367106 | N73: 488.1940921 | O73: 3103.652215 | P73: 36.1 | Q73: 0
A74: System Controls
A75: RTU Units | B75: no equation
A76: Well Pump - Soft Start Control | B76: no equation
A77: Building Structures
A78: Building 1
A79: Small Low Cost Shed | B79: no equation
A80: Low Quality | B80: bldg_lo_eq_1 | C80: =IF(LEN($E80)=0,"",IF(OR(D80>P80,D80<=Q80),"contact vendor",F80*D80^G80+H80*LN(D80)+I80+J80*EXP(K80*D80)+L80*D80^3+M80*D80^2+N80*D80+O80)) -> contact vendor | D80: =build1_fp -> 0 | E80: bldg_lo_eq | F80: =VLOOKUP($E80,eq_table_cl,F$4,FALSE) -> 163.7208726 | G80: -0.095204622 | H80: 0 | I80: 0 | J80: 0 | K80: 0 | L80: 0 | M80: 0 | N80: 0 | O80: 0 | P80: 200000.1 | Q80: 0

Sheet Cost Coefficients
A1: Coefficients for Component Cost Equations
A2: This sheet is used internally to calculate component costs using the cost equations method; see model documentation for more details on the development of cost equations
B4: Power: C1*x^C2 | D4: Logarithmic: C3*Ln(x) + C4 | F4: Exponential: C5*e^(C6*x) | H4: Polynomial: C7*x^3 + C8*x^2 + C9*x + C10 | L4: NOTES
A5: Equation Lookup Name | B5: C1 | C5: C2 | D5: C3 | E5: C4 | F5: C5 | G5: C6 | H5: C7 | I5: C8 | J5: C9 | K5: C10 | L5: Pct deviation of fit equation | M5: Modified by | N5: Last modified | O5: Rsq of fit equation | P5: max size used to gen curve | Q5: min size for which curve fits are valid
A6: bldg_lo_eq | B6: 163.7208726 | C6: -0.095204622 | D6: 0 | E6: 0 | F6: 0 | G6: 0 | H6: 0 | I6: 0 | J6: 0 | K6: 0 | L6: 0.02487130985 | N6: 1/25/2023 5:10:26 PM | O6: 0.9670083031 | P6: 200000.1 | Q6: 0
A7: casing_pvc_eq | B7: 0 | C7: 0 | D7: 0 | E7: 0 | F7: 0 | G7: 0 | H7: -0.046884323 | I7: 1.202903939 | J7: -2.537097312 | K7: 13.47425517 | L7: 0.02938960423 | N7: 1/25/2023 4:47:05 PM | O7: 0.99579652 | P7: 12.00001 | Q7: 0
A8: casing_ss_eq | B8: 13.98207774 | C8: 1.760932625 | D8: 0 | E8: 0 | F8: 0 | G8: 0 | H8: 0 | I8: 0 | J8: 0 | K8: 0 | L8: 0.4153921287 | N8: 1/25/2023 4:47:24 PM | O8: 0.7888742543 | P8: 12.00001 | Q8: 2
A9: ci_bfv_eq_large | B9: 0 | C9: 0 | D9: 0 | E9: 0 | F9: 0 | G9: 0 | H9: 1.500986001 | I9: -137.1114495 | J9: 4591.243583 | K9: -36246.27218 | L9: 0.1011895663 | N9: 1/17/2023 10:13:27 AM | O9: 0.9492203075 | P9: 48.1 | Q9: 14
A10: ci_bfv_eq_small | B10: 221.7765322 | C10: 1.046371034 | D10: 0 | E10: 0 | F10: 0 | G10: 0 | H10: 0 | I10: 0 | J10: 0 | K10: 0 | L10: 0.1994013415 | N10: 1/17/2023 11:28:24 AM | O10: 0.9495422445 | P10: 12 | Q10: 1
A11: ci_mov_eq | B11: 0 | C11: 0 | D11: 0 | E11: 0 | F11: 0 | G11: 0 | H11: 0 | I11: 0 | J11: 1304.612083 | K11: -1165.048568 | L11: 0.349481045 | N11: 1/17/2023 11:27:00 AM | O11: 0.942418396 | P11: 48.1 | Q11: 1
A12: di_pipe_eq | B12: 0 | C12: 0 | D12: 0 | E12: 0 | F12: 0 | G12: 0 | H12: 0.013009082 | I12: -0.638535671 | J12: 18.15254247 | K12: 11.05660719 | L12: 0.08283894927 | N12: 1/13/2023 3:31:40 PM | O12: 0.9925721373 | P12: 48.1 | Q12: 4
A13: dis75_pump_eq | B13: 0 | C13: 0 | D13: 0 | E13: 0 | F13: 0 | G13: 0 | H13: 0 | I13: -0.000945834 | J13: 21.70765363 | K13: 4216.658192 | L13: 0.243832908 | N13: 1/19/2023 2:31:04 PM | O13: 0.9431124087 | P13: 10001 | Q13: 0
A14: gravel_pack_eq | B14: 0 | C14: 0 | D14: 0 | E14: 0 | F14: 0 | G14: 0 | H14: -0.002456785 | I14: 0.123224508 | J14: 6.046649607 | K14: -16.04448424 | L14: 0.02818746854 | N14: 1/25/2023 4:52:26 PM | O14: 0.9970612243 | P14: 36.001 | Q14: 0
A15: mag_fm_eq | B15: 0 | C15: 0 | D15: 0 | E15: 0 | F15: 0 | G15: 0 | H15: 0.087416773 | I15: 3.727367106 | J15: 488.1940921 | K15: 3103.652215 | L15: 0.1542085576 | N15: 1/23/2023 12:59:50 PM | O15: 0.9597401903 | P15: 36.1 | Q15: 0
A16: op_fm_eq | B16: 0 | C16: 0 | D16: 0 | E16: 0 | F16: 0 | G16: 0 | H16: 0.290528801 | I16: -20.14101884 | J16: 567.6228055 | K16: 674.1611697 | L16: 0.08792657166 | N16: 1/23/2023 12:59:03 PM | O16: 0.9958859179 | P16: 60.1 | Q16: 0
A17: plug_pvc_eq | B17: 0 | C17: 0 | D17: 0 | E17: 0 | F17: 0 | G17: 0 | H17: -0.254653706 | I17: 4.833758123 | J17: 6.253481666 | K17: 14.26059206 | L17: 0.07840752645 | N17: 1/25/2023 4:51:45 PM | O17: 0.9739620969 | P17: 12.00001 | Q17: 0
A18: plug_ss_eq | B18: 0 | C18: 0 | D18: 0 | E18: 0 | F18: 0 | G18: 0 | H18: 0.42194984 | I18: 2.669283576 | J18: 4.469566905 | K18: 121.6900163 | L18: 0.02470882926 | N18: 1/25/2023 4:51:56 PM | O18: 0.9979333663 | P18: 10.00001 | Q18: 0
A19: pp_man_eq_large | B19: 0 | C19: 0 | D19: 0 | E19: 0 | F19: 0 | G19: 0 | H19: 0 | I19: 0 | J19: 2553.34436 | K19: -25690.34754 | L19: 0.1288535088 | N19: 1/17/2023 10:02:52 AM | O19: 0.8113765781 | P19: 24.1 | Q19: 14
A20: pp_man_eq_small | B20: 0 | C20: 0 | D20: 0 | E20: 0 | F20: 0 | G20: 0 | H20: 0 | I20: 12.11782352 | J20: 45.057729 | K20: 112.9974499 | L20: 0.2556628805 | N20: 1/17/2023 9:54:09 AM | O20: 0.8631768407 | P20: 12 | Q20: 0
A21: prop_fm_eq | B21: 0 | C21: 0 | D21: 0 | E21: 0 | F21: 0 | G21: 0 | H21: 0.486674373 | I21: -19.17737565 | J21: 593.8803516 | K21: 1500.545795 | L21: 0.04521517985 | N21: 1/23/2023 12:59:37 PM | O21: 0.9957840083 | P21: 36.1 | Q21: 0
A22: PRV_eq | B22: 0 | C22: 0 | D22: 0 | E22: 0 | F22: 0 | G22: 0 | H22: 9.043115437 | I22: 42.90874116 | J22: 617.3183616 | K22: 1458.208772 | L22: 0.06361492112 | N22: 1/25/2023 4:56:55 PM | O22: 0.9987591334 | P22: 12.1 | Q22: 0
A23: pump_eq | B23: 0 | C23: 0 | D23: 0 | E23: 0 | F23: 0 | G23: 0 | H23: 0 | I23: -0.00067003 | J23: 14.80901498 | K23: 4093.494685 | L23: 0.1678772056 | N23: 1/17/2023 11:35:59 AM | O23: 0.9581243118 | P23: 10001 | Q23: 0
A24: pvc_pipe_eq | B24: 0 | C24: 0 | D24: 0 | E24: 0 | F24: 0 | G24: 0 | H24: 0 | I24: 0.097106987 | J24: 0.800977414 | K24: 1.427719425 | L24: 0.1946947517 | N24: 1/13/2023 3:33:26 PM | O24: 0.9975021896 | P24: 48.1 | Q24: 0
A25: ro150_pump_eq | B25: 1976.635575 | C25: 0.417235438 | D25: 0 | E25: 0 | F25: 0 | G25: 0 | H25: 0 | I25: 0 | J25: 0 | K25: 0 | L25: 0.2393085698 | N25: 1/19/2023 2:31:34 PM | O25: 0.7731321842 | P25: 2000.1 | Q25: 0
A26: ro200_pump_eq | B26: 0 | C26: 0 | D26: 0 | E26: 0 | F26: 0 | G26: 0 | H26: 0 | I26: 0 | J26: 72.10757877 | K26: 4668.935081 | L26: 0.2728634749 | N26: 1/19/2023 2:31:45 PM | O26: 0.9709500836 | P26: 2000.1 | Q26: 0
A27: ro250_pump_eq | B27: 0 | C27: 0 | D27: 0 | E27: 0 | F27: 0 | G27: 0 | H27: 0 | I27: -0.02811187 | J27: 138.4976376 | K27: 3440.503341 | L27: 0.2193741679 | N27: 1/19/2023 2:32:00 PM | O27: 0.9896624628 | P27: 2000.1 | Q27: 0
A28: ro300_pump_eq | B28: 0 | C28: 0 | D28: 0 | E28: 0 | F28: 0 | G28: 0 | H28: 0 | I28: -0.327977166 | J28: 232.5632022 | K28: 3389.301563 | L28: 0.2111777663 | N28: 1/19/2023 2:32:15 PM | O28: 0.8581871003 | P28: 250.1 | Q28: 0
A29: ro350_pump_eq | B29: 1526.907357 | C29: 0.61024054 | D29: 0 | E29: 0 | F29: 0 | G29: 0 | H29: 0 | I29: 0 | J29: 0 | K29: 0 | L29: 0.299134524 | N29: 1/19/2023 2:32:32 PM | O29: 0.908919634 | P29: 225.1 | Q29: 0
A30: ro500_pump_eq | B30: 3021.437203 | C30: 0.513267873 | D30: 0 | E30: 0 | F30: 0 | G30: 0 | H30: 0 | I30: 0 | J30: 0 | K30: 0 | L30: 0.1031727638 | N30: 1/19/2023 2:32:46 PM | O30: 0.9179342512 | P30: 185.1 | Q30: 0
A31: screen_pvc40_eq | B31: 0 | C31: 0 | D31: 0 | E31: 0 | F31: 0 | G31: 0 | H31: -0.038992712 | I31: 0.461733535 | J31: 8.579004885 | K31: 15.69610085 | L31: 0.02900896028 | N31: 1/25/2023 4:51:08 PM | O31: 0.9946810964 | P31: 12.00001 | Q31: 0
A32: screen_pvc80_eq | B32: 0 | C32: 0 | D32: 0 | E32: 0 | F32: 0 | G32: 0 | H32: -0.186768741 | I32: 3.452799739 | J32: -5.9343944 | K32: 27.11904691 | L32: 0.01647487229 | N32: 1/25/2023 4:50:26 PM | O32: 0.9982594296 | P32: 12.00001 | Q32: 0
A33: screen_ss_eq | B33: 0 | C33: 0 | D33: 0 | E33: 0 | F33: 0 | G33: 0 | H33: 0.40461481 | I33: -7.895513334 | J33: 76.80664709 | K33: -0.753166847 | L33: 0.05437318119 | N33: 1/25/2023 4:51:24 PM | O33: 0.9821291863 | P33: 12.00001 | Q33: 2
A34: ss_man_eq | B34: 271.9831646 | C34: 0.925784152 | D34: 0 | E34: 0 | F34: 0 | G34: 0 | H34: 0 | I34: 0 | J34: 0 | K34: 0 | L34: 0.1937680445 | N34: 1/17/2023 10:07:57 AM | O34: 0.8807162519 | P34: 12.1 | Q34: 0
A35: ss_mov_eq | B35: 0 | C35: 0 | D35: 0 | E35: 0 | F35: 0 | G35: 0 | H35: 1.481345126 | I35: 44.57582587 | J35: -42.85092445 | K35: 1429.585285 | L35: 0.2754835444 | N35: 1/17/2023 9:46:38 AM | O35: 0.9385946585 | P35: 48.1 | Q35: 0
A36: street_valve_eq | B36: 0 | C36: 0 | D36: 0 | E36: 0 | F36: 0 | G36: 0 | H36: 9.642516064 | I36: -109.6007209 | J36: 728.4091185 | K36: -437.6768604 | L36: 0.05118701813 | N36: 1/25/2023 4:56:45 PM | O36: 0.9980925851 | P36: 12.1 | Q36: 0
A37: ven_fm_eq | B37: 0 | C37: 0 | D37: 0 | E37: 0 | F37: 0 | G37: 0 | H37: -0.089659137 | I37: 7.381419291 | J37: 135.4087789 | K37: 2010.462069 | L37: 0.07958903368 | N37: 1/23/2023 12:59:16 PM | O37: 0.9820229976 | P37: 48.1 | Q37: 0

Sheet Cost Data
A1: Cost Data
A2: This sheet is used internally and contains component cost data extracted from the central cost database
A3: To maintain vendor confidentiality, the central cost database itself is not provided here
A5: BCI | B5: Asphalt Patch
A6: 3 | B6: Size needed (in thick) | C6: Size selected (in thick) | D6: Avg. Unit Cost (per sy) | E6: Useful Life (large) | F6: Useful Life (small)
A7: asphalt_patch_cost_cl | B7: 0 | C7: 2 | D7: 74 | E7: 40 | F7: 37
B8: 2.1 | C8: 4 | D8: 101 | E8: 40 | F8: 37
B9: 4.1 | C9: 6 | D9: 134 | E9: 40 | F9: 37
B10: 6.1 | C10: contact vendor | D10: contact vendor | E10: 40 | F10: 37
A13: BCI | B13: Backfill and Compaction
A14: 3 | D14: Avg. Unit Cost (per cy) | E14: Useful Life (large) | F14: Useful Life (small)
A15: backfill_cost_cl | B15: 0 | C15: 0 | D15: 18.65 | E15: N/A | F15: N/A
A18: bore_rig_cost | B18: 0 | C18: 0 | D18: 2650 | E18: N/A | F18: N/A
B19: Borings, cased borings in earth, w/samples, 2.5" dia | D19: Avg. Unit Cost (per lf) | E19: Useful Life (large) | F19: Useful Life (small)
A20: bore_cost_cl | B20: 0 | C20: 0 | D20: 64 | E20: N/A | F20: N/A
A23: stake_out_cost | B23: 0 | C23: 0 | D23: 1475 | E23: N/A | F23: N/A
B24: Borings, drawings showing boring details | D24: Avg. Unit Cost (per job) | E24: Useful Life (large) | F24: Useful Life (small)
A25: bore_draw_cost_cl | B25: 0 | C25: 0 | D25: 425 | E25: N/A | F25: N/A
A28: bore_report_cost | B28: 0 | C28: 0 | D28: 970 | E28: N/A | F28: N/A
B29: Borings, mobilization and demobilization, minimum | D29: Avg. Unit Cost | E29: Useful Life (large) | F29: Useful Life (small)
A30: bore_mob_cost_cl | B30: 0 | C30: 0 | D30: 660 | E30: N/A | F30: N/A
A33: bore_draw_cost | B33: 0 | C33: 0 | D33: 425 | E33: N/A | F33: N/A
B34: Borings, report and recommendations from P.E. | D34: Avg. Unit Cost (per job) | E34: Useful Life (large) | F34: Useful Life (small)
A35: bore_report_cost_cl | B35: 0 | C35: 0 | D35: 970 | E35: N/A | F35: N/A
A38: bore_mob_cost | B38: 0 | C38: 0 | D38: 660 | E38: N/A | F38: N/A
B39: Borings, drill rig and crew with truck mounted auger | D39: Avg. Unit Cost (per day) | E39: Useful Life (large) | F39: Useful Life (small)
A40: bore_rig_cost_cl | B40: 0 | C40: 0 | D40: 2650 | E40: N/A | F40: N/A
A43: BCI | B43: PVC Well Casing
A44: 3 | B44: Size needed (in. diam.) | C44: Size selected (in. diam.) | D44: Avg. Unit Cost (per lf) | E44: Useful Life (large) | F44: Useful Life (small)
A45: casing_pvc_cost_cl | B45: 0 | C45: 2 | D45: 12.85 | E45: 30 | F45: 27
B46: 2.00001 | C46: 4 | D46: 19.4 | E46: 30 | F46: 27
B47: 4.00001 | C47: 6 | D47: 32.5 | E47: 30 | F47: 27
B48: 6.00001 | C48: 8 | D48: 44 | E48: 30 | F48: 27
B49: 8.00001 | C49: 10 | D49: 64 | E49: 30 | F49: 27
B50: 10.00001 | C50: 12 | D50: 74.5 | E50: 30 | F50: 27
B51: 12.00001 | C51: contact vendor | D51: contact vendor | E51: 30 | F51: 27
A54: BCI | B54: Stainless Steel Well Casing
A55: 3 | B55: Size needed (in. diam.) | C55: Size selected (in. diam.) | D55: Avg. Unit Cost (per lf) | E55: Useful Life (large) | F55: Useful Life (small)
A56: casing_ss_cost_cl | B56: 0 | C56: 2 | D56: 54.7864352 | E56: 30 | F56: 27
B57: 2.00001 | C57: 4 | D57: 86.33014031 | E57: 30 | F57: 27
B58: 4.00001 | C58: 6 | D58: 506.9841046 | E58: 30 | F58: 27
B59: 6.00001 | C59: 8 | D59: 730.5022402 | E59: 30 | F59: 27
B60: 8.00001 | C60: 10 | D60: 810.1094126 | E60: 30 | F60: 27
B61: 10.00001 | C61: 12 | D61: 858.1564423 | E61: 30 | F61: 27
B62: 12.00001 | C62: contact vendor | D62: contact vendor | E62: 30 | F62: 27
A65: bls1149 | B65: Cast Iron Manual Valves
A66: 35 | B66: Size needed (in. diam) | C66: Size selected (in. diam) | D66: Avg. Unit Cost | E66: Useful Life (large) | F66: Useful Life (small)
A67: ci_bfv_cost_cl | B67: 0 | C67: 2 | D67: 382.5944324 | E67: 25 | F67: 20
B68: 2.1 | C68: 2.5 | D68: 465.81372 | E68: 25 | F68: 20
B69: 2.6 | C69: 3 | D69: 985.9955527 | E69: 25 | F69: 20
B70: 3.1 | C70: 4 | D70: 1175 | E70: 25 | F70: 20
B71: 4.1 | C71: 8 | D71: 1725 | E71: 25 | F71: 20
B72: 8.1 | C72: 12 | D72: 2875 | E72: 25 | F72: 20
A73: ci_bfv_cost_large | B73: 12.1 | C73: 14 | D73: 5400 | E73: 25 | F73: 20
B74: 14.1 | C74: 18 | D74: 9700 | E74: 25 | F74: 20
B75: 18.1 | C75: 20 | D75: 12700 | E75: 25 | F75: 20
B76: 20.1 | C76: 24 | D76: 20900 | E76: 25 | F76: 20
B77: 24.1 | C77: 30 | D77: 17100 | E77: 25 | F77: 20
B78: 30.1 | C78: 36 | D78: 21100 | E78: 25 | F78: 20
B79: 36.1 | C79: 42 | D79: 26600 | E79: 25 | F79: 20
B80: 42.1 | C80: 48 | D80: 34100 | E80: 25 | F80: 20
B81: 48.1 | C81: contact vendor | D81: contact vendor | E81: 25 | F81: 20
A84: bls1149 | B84: Cast Iron Motor/Air Operated Valves (on/off)
A85: 35 | B85: Size needed (in. diam) | C85: Size selected (in. diam) | D85: Avg. Unit Cost | E85: Useful Life (large) | F85: Useful Life (small)
A86: ci_mov_cost_cl | B86: 0 | C86: 1 | D86: 1344.717407 | E86: 25 | F86: 20
B87: 1.1 | C87: 2 | D87: 863.9097802 | E87: 25 | F87: 20
B88: 2.1 | C88: 3 | D88: 3473.200165 | E88: 25 | F88: 20
B89: 3.1 | C89: 4 | D89: 4185.087897 | E89: 25 | F89: 20
B90: 4.1 | C90: 6 | D90: 6000.734367 | E90: 25 | F90: 20
B91: 6.1 | C91: 8 | D91: 11061.8396 | E91: 25 | F91: 20
B92: 8.1 | C92: 10 | D92: 14396.05061 | E92: 25 | F92: 20
B93: 10.1 | C93: 12 | D93: 16659.50645 | E93: 25 | F93: 20
B94: 12.1 | C94: 14 | D94: 19254.50024 | E94: 25 | F94: 20
B95: 14.1 | C95: 16 | D95: 26647.51229 | E95: 25 | F95: 20
B96: 16.1 | C96: 18 | D96: 33531.18922 | E96: 25 | F96: 20
B97: 18.1 | C97: 30 | D97: 42084.27014 | E97: 25 | F97: 20
B98: 30.1 | C98: 48 | D98: 59227.7799 | E98: 25 | F98: 20
B99: 48.1 | C99: contact vendor | D99: contact vendor | E99: 25 | F99: 20
A102: BCI | B102: Concrete for Basins
A103: 3 | D103: Avg. Unit Cost (per cy) | E103: Useful Life (large) | F103: Useful Life (small)
A104: conc_basin_cost_cl | B104: 0 | C104: 0 | D104: 739.6055887 | E104: 40 | F104: 37
A108: Current Year | B108: current_year_cl | C108: 2021
A111: ECI | B111: Well Development
A112: 4 | D112: Avg. Unit Cost (per well) | E112: Useful Life (large) | F112: Useful Life (small)
A113: develop_well_cost_cl | B113: 0 | C113: 0 | D113: 770 | E113: 30 | F113: 27
A116: bls10150211 | B116: Ductile Iron Piping
A117: 19 | B117: Size needed (in. diam) | C117: Size selected (in. diam) | D117: Avg. Unit Cost ($/lf) | E117: Useful Life (large) | F117: Useful Life (small)
A118: di_pipe_cost_cl | B118: 0 | C118: 4 | D118: 75 | E118: 40 | F118: 35
B119: 4.1 | C119: 6 | D119: 92.5 | E119: 40 | F119: 35
B120: 6.1 | C120: 8 | D120: 126 | E120: 40 | F120: 35
B121: 8.1 | C121: 10 | D121: 161 | E121: 40 | F121: 35
B122: 10.1 | C122: 12 | D122: 197 | E122: 40 | F122: 35
B123: 12.1 | C123: 14 | D123: 157 | E123: 40 | F123: 35
B124: 14.1 | C124: 16 | D124: 169 | E124: 40 | F124: 35
B125: 16.1 | C125: 18 | D125: 216 | E125: 40 | F125: 35
B126: 18.1 | C126: 20 | D126: 225 | E126: 40 | F126: 35
B127: 20.1 | C127: 24 | D127: 254 | E127: 40 | F127: 35
B128: 24.1 | C128: 30 | D128: 345.1377778 | E128: 40 | F128: 35
B129: 30.1 | C129: 36 | D129: 451.2355556 | E129: 40 | F129: 35
B130: 36.1 | C130: 42 | D130: 628.7644444 | E130: 40 | F130: 35
B131: 42.1 | C131: 48 | D131: 816.64 | E131: 40 | F131: 35
B132: 48.1 | C132: contact vendor | D132: contact vendor | E132: 40 | F132: 35
A135: bls1141 | B135: 75 PSI Pumps for Pumping to Distribution
A136: 30 | B136: Size needed in (gpm) | C136: Size Selected (gpm) | D136: Avg. Unit Cost | E136: Useful Life(large) | F136: Useful Life (small)
A137: dis75_pump_cost_cl | B137: 0 | C137: 4 | D137: 3653.393978 | E137: 20 | F137: 17
B138: 5 | C138: 10 | D138: 3845.624809 | E138: 20 | F138: 17
B139: 11 | C139: 30 | D139: 4241.771771 | E139: 20 | F139: 17
B140: 31 | C140: 75 | D140: 7747.360983 | E140: 20 | F140: 17
B141: 76 | C141: 100 | D141: 11871.37415 | E141: 20 | F141: 17
B142: 101 | C142: 250 | D142: 15159.91782 | E142: 20 | F142: 17
B143: 251 | C143: 300 | D143: 17216.56626 | E143: 20 | F143: 17
B144: 301 | C144: 500 | D144: 17834.59697 | E144: 20 | F144: 17
B145: 501 | C145: 750 | D145: 21330.03263 | E145: 20 | F145: 17
B146: 751 | C146: 1000 | D146: 39578.37571 | E146: 20 | F146: 17
B147: 1001 | C147: 1500 | D147: 32412.70892 | E147: 20 | F147: 17
B148: 1501 | C148: 2000 | D148: 37368.82323 | E148: 20 | F148: 17
B149: 2001 | C149: 3000 | D149: 47995.95597 | E149: 20 | F149: 17
B150: 3001 | C150: 3500 | D150: 60559.98008 | E150: 20 | F150: 17
B151: 3501 | C151: 4000 | D151: 62611.58862 | E151: 20 | F151: 17
B152: 4001 | C152: 6000 | D152: 118254.4044 | E152: 20 | F152: 17
B153: 6001 | C153: 10000 | D153: 146237.0814 | E153: 20 | F153: 17
B154: 10001 | C154: Contact Vendor | D154: contact vendor | E154: 20 | F154: 17
A157: BCI | B157: Well Drilling, 10" borehole diameter
A158: 3 | B158: Depth needed (feet) | C158: Depth selected (feet) | D158: Avg. Unit Cost (per lf) | E158: Useful Life (large) | F158: Useful Life (small)
A159: drill_10_cost_cl | B159: 0 | C159: Up to 100 | D159: 166.6441284 | E159: 30 | F159: 27
B160: 100 | C160: 100 to 500 | D160: 153.0831296 | E160: 30 | F160: 27
B161: 500.1 | C161: Deeper | D161: 162.7812985 | E161: 30 | F161: 27
A164: BCI | B164: Well Drilling, 12" borehole diameter
A165: 3 | B165: Depth needed (feet) | C165: Depth selected (feet) | D165: Avg. Unit Cost (per lf) | E165: Useful Life (large) | F165: Useful Life (small)
A166: drill_12_cost_cl | B166: 0 | C166: Up to 100 | D166: 193.7825636 | E166: 30 | F166: 27
B167: 100 | C167: 100 to 500 | D167: 151.1434958 | E167: 30 | F167: 27
B168: 500.1 | C168: Deeper | D168: 162.7812985 | E168: 30 | F168: 27
A171: BCI | B171: Well Drilling, 15" borehole diameter
A172: 3 | B172: Depth needed (feet) | C172: Depth selected (feet) | D172: Avg. Unit Cost (per lf) | E172: Useful Life (large) | F172: Useful Life (small)
A173: drill_15_cost_cl | B173: 0 | C173: Up to 100 | D173: 263.543629 | E173: 30 | F173: 27
B174: 100 | C174: 100 to 500 | D174: 255.7850939 | E174: 30 | F174: 27
B175: 500.1 | C175: Deeper | D175: 267.406459 | E175: 30 | F175: 27
A178: BCI | B178: Well Drilling, 8" borehole diameter
A179: 3 | B179: Depth needed (feet) | C179: Depth selected (feet) | D179: Avg. Unit Cost (per lf) | E179: Useful Life (large) | F179: Useful Life (small)
A180: drill_8_cost_cl | B180: 0 | C180: Up to 100 | D180: 122.0818644 | E180: 30 | F180: 27
B181: 100 | C181: 100 to 500 | D181: 106.5812319 | E181: 30 | F181: 27
B182: 500.1 | C182: Deeper | D182: 114.3233294 | E182: 30 | F182: 27
A185: BCI | B185: Excavation
A186: 3 | D186: Avg. Unit Cost (per cy) | E186: Useful Life (large) | F186: Useful Life (small)
A187: excavate_cost_cl | B187: 0 | C187: 0 | D187: 30.88 | E187: N/A | F187: N/A
A190: BCI | B190: Gravel Pack
A191: 3 | B191: Size needed (in. diam.) | C191: Size selected (in. diam.) | D191: Avg. Unit Cost (per lf) | E191: Useful Life (large) | F191: Useful Life (small)
A192: gravel_pack_cost_cl | B192: 0 | C192: 6 | D192: 24.5 | E192: 30 | F192: 27
B193: 6.001 | C193: 8 | D193: 37.5 | E193: 30 | F193: 27
B194: 8.001 | C194: 10 | D194: 55 | E194: 30 | F194: 27
B195: 10.001 | C195: 12 | D195: 71.5 | E195: 30 | F195: 27
B196: 12.001 | C196: 14 | D196: 83 | E196: 30 | F196: 27
B197: 14.001 | C197: 16 | D197: 104 | E197: 30 | F197: 27
B198: 16.001 | C198: 18 | D198: 120 | E198: 30 | F198: 27
B199: 18.001 | C199: 20 | D199: 142 | E199: 30 | F199: 27
B200: 20.001 | C200: 24 | D200: 164 | E200: 30 | F200: 27
B201: 24.001 | C201: 26 | D201: 173 | E201: 30 | F201: 27
B202: 26.001 | C202: 30 | D202: 210 | E202: 30 | F202: 27
B203: 30.001 | C203: 36 | D203: 250 | E203: 30 | F203: 27
B204: 36.001 | C204: contact vendor | D204: contact vendor | E204: 30 | F204: 27
A207: BCI | B207: Grouting
A208: 3 | D208: Avg. Unit Cost (per cf) | E208: Useful Life (large) | F208: Useful Life (small)
A209: grout_cost_cl | B209: 0 | C209: 0 | D209: 90.25 | E209: 40 | F209: 37
A212: bls118 | B212: Magnetic Flow Meters
A213: 43 | B213: Size needed (in. diam) | C213: Size selected (in. diam) | D213: Avg. Unit Cost | E213: Useful Life (large) | F213: Useful Life (small)
A214: mag_fm_cost_cl | B214: 0 | C214: 0.75 | D214: 5046.211984 | E214: 15 | F214: 14
B215: 0.76 | C215: 1 | D215: 3719.305 | E215: 15 | F215: 14
B216: 1.1 | C216: 1.5 | D216: 3762.373465 | E216: 15 | F216: 14
B217: 1.6 | C217: 2 | D217: 3899.75611 | E217: 15 | F217: 14
B218: 2.1 | C218: 2.5 | D218: 3894.00354 | E218: 15 | F218: 14
B219: 2.6 | C219: 3 | D219: 4108.807738 | E219: 15 | F219: 14
B220: 3.1 | C220: 4 | D220: 4281.420211 | E220: 15 | F220: 14
B221: 4.1 | C221: 6 | D221: 6813.226267 | E221: 15 | F221: 14
B222: 6.1 | C222: 8 | D222: 9089.865529 | E222: 15 | F222: 14
B223: 8.1 | C223: 10 | D223: 12176.34569 | E223: 15 | F223: 14
B224: 10.1 | C224: 12 | D224: 12145.34073 | E224: 15 | F224: 14
B225: 12.1 | C225: 14 | D225: 10284.36088 | E225: 15 | F225: 14
B226: 14.1 | C226: 16 | D226: 12564.60613 | E226: 15 | F226: 14
B227: 16.1 | C227: 18 | D227: 10867.90073 | E227: 15 | F227: 14
B228: 18.1 | C228: 20 | D228: 14743.15445 | E228: 15 | F228: 14
B229: 20.1 | C229: 24 | D229: 19627.05285 | E229: 15 | F229: 14
B230: 24.1 | C230: 30 | D230: 22949.6619 | E230: 15 | F230: 14
B231: 30.1 | C231: 36 | D231: 30908.18803 | E231: 15 | F231: 14
B232: 36.1 | C232: contact vendor | D232: contact vendor | E232: 15 | F232: 14
A235: bls118 | B235: Orifice Plate Flow Meters
A236: 43 | B236: Size needed (in. diam) | C236: Size selected (in. diam) | D236: Avg. Unit Cost | E236: Useful Life (large) | F236: Useful Life (small)
A237: op_fm_cost_cl | B237: 0 | C237: 2 | D237: 1917.913256 | E237: 15 | F237: 14
B238: 2.1 | C238: 3 | D238: 2012.277531 | E238: 15 | F238: 14
B239: 3.1 | C239: 6 | D239: 3229.270354 | E239: 15 | F239: 14
B240: 6.1 | C240: 12 | D240: 5131.300828 | E240: 15 | F240: 14
B241: 12.1 | C241: 16 | D241: 6932.570326 | E241: 15 | F241: 14
B242: 16.1 | C242: 24 | D242: 6272.443126 | E242: 15 | F242: 14
B243: 48.1 | C243: 60 | D243: 25150.90055 | E243: 15 | F243: 14
B244: 60.1 | C244: contact vendor | D244: contact vendor | E244: 15 | F244: 14
A247: BCI | B247: PVC Well Plug
A248: 3 | B248: Size needed (in. diam.) | C248: Size selected (in. diam.) | D248: Avg. Unit Cost (per well) | E248: Useful Life (large) | F248: Useful Life (small)
A249: plug_pvc_cost_cl | B249: 0 | C249: 2 | D249: 44.4800761 | E249: 30 | F249: 27
B250: 2.00001 | C250: 4 | D250: 94.02292509 | E250: 30 | F250: 27
B251: 4.00001 | C251: 6 | D251: 201.2287848 | E251: 30 | F251: 27
B252: 6.00001 | C252: 8 | D252: 238.7393294 | E252: 30 | F252: 27
... 389 more rows

Sheet Engineering Data
A1: Engineering Data
A2: This sheet is used internally and contains engineering reference and indirect cost data extracted from the central cost database
A4: Architectural Fee
A5: Building cost lookup | B5: Corresponds to the range | C5: Architectural fee
A6: 0 | B6: <$250,000 | C6: 0.09
A7: 250000 | B7: $250,000 to $500,000 | C7: 0.08
A8: 500000 | B8: $500,000 to $1,000,000 | C8: 0.07
A9: 1000000 | B9: $1,000,000 to $5,000,000 | C9: 0.062
A10: 5000000 | B10: $5,000,000 to $10,000,000 | C10: 0.053
A11: 10000000 | B11: $10,000,000 to $50,000,000 | C11: 0.049
A12: 50000000 | B12: >$50,000,000 | C12: 0.045
A15: Construction Management Fee
A16: Building cost lookup | B16: Corresponds to the range | C16: Construction management fee
A17: 0 | B17: <$100,000 | C17: 0.1
A18: 100000 | B18: $100,000 to $250,000 | C18: 0.09
A19: 250000 | B19: $250,000 to $1,000,000 | C19: 0.06
A20: 1000000 | B20: $1,000,000 to $5,000,000 | C20: 0.05
A21: 5000000 | B21: $5,000,000 to $10,000,000 | C21: 0.04
A22: 10000000 | B22: >$10,000,000 | C22: 0.032
A25: Contingency Factors
A26: Project direct cost | B26: Corresponds to the range | C26: Default contingency (prior to application of technology complexity factor)
A27: 0 | B27: <$500,000 | C27: 0.067
A28: 500000 | B28: $500,000 to $3,000,000 | C28: 0.058
A29: 3000000 | B29: $3,000,000 to $15,000,000 | C29: 0.049
A30: 15000000 | B30: $15,000,000 to $50,000,000 | C30: 0.041
A31: 50000000 | B31: $50,000,000 to $100,000,000 | C31: 0.032
A32: 100000000 | B32: >$100,000,000 | C32: 0.058
A35: Feed Water Pump Dimensions (for high pressure pumps for reverse osmosis and nanofiltration)
A36: Pump Rating Needed (mgd) | B36: Pump Rating Selected (mgd) | C36: Area w/ piping (sf) | D36: Foundation Depth (ft)
A37: 0 | B37: 0.05 | C37: 36 | D37: 1
A38: 0.06 | B38: 0.1 | C38: 45 | D38: 1.166666667
A39: 0.11 | B39: 0.2 | C39: 54 | D39: 1.166666667
A40: 0.21 | B40: 0.5 | C40: 65 | D40: 1.166666667
A41: 0.51 | B41: 1 | C41: 76 | D41: 1.333333333
A42: 1.01 | B42: 2 | C42: 88 | D42: 1.333333333
A43: 2.01 | B43: 3 | C43: 95 | D43: 1.333333333
A44: 3.01 | B44: 5 | C44: 101 | D44: 1.5
A45: 5.01 | B45: 10 | C45: 144 | D45: 2
A48: Performance Bond
A49: Direct cost lookup | B49: Corresponds to the range | C49: Base cost | D49: Plus fraction | E49: Of amount over
A50: 0 | B50: <$100,000 | C50: 0 | D50: 0.025 | E50: 0
A51: 100000 | B51: $100,000 to $500,000 | C51: 2500 | D51: 0.015 | E51: 100000
A52: 500000 | B52: $500,000 to $2,500,000 | C52: 8500 | D52: 0.01 | E52: 500000
A53: 2500000 | B53: $2,500,000 to $5,000,000 | C53: 28500 | D53: 0.0075 | E53: 2500000
A54: 5000000 | B54: $5,000,000 to $7,500,000 | C54: 47250 | D54: 0.007 | E54: 5000000
A55: 7500000 | B55: >$7,500,000 | C55: 64750 | D55: 0.006 | E55: 7500000
A58: Pipe Size Selection
A59: Pipe Flow to Pipe Diameter
A60: Flow (GPM) | B60: Diameter (inch)
A61: 0 | B61: 0.5
A62: 2.1 | B62: 0.75
A63: 4.1 | B63: 1
A64: 7.1 | B64: 1.5
A65: 21.1 | B65: 2
A66: 41.1 | B66: 2.5
A67: 66.1 | B67: 3
A68: 116.1 | B68: 4
A69: 238.1 | B69: 6
A70: 697.1 | B70: 8
A71: 1435.1 | B71: 10
A72: 2608.1 | B72: 12
A73: 4132.1 | B73: 14
A74: 5299.1 | B74: 16
A75: 7528.1 | B75: 18
A76: 10265.1 | B76: 20
A77: 13643.1 | B77: 24
A78: 22174.1 | B78: 30
A79: 50561.1 | B79: 36
A80: 81777.1 | B80: 42
A81: 122025.1 | B81: 48
A84: Pump Dimensions (for centrifugal pumps)
A85: Pump Rating Needed (gpm) | B85: Pump Rating Selected (gpm) | C85: Length (ft) | D85: Width (ft)
A86: 0 | B86: 350 | C86: 2.5 | D86: 2.5
A87: 351 | B87: 1740 | C87: 3.75 | D87: 3.75
A88: 1741 | B88: 7000 | C88: 5 | D88: 5
A89: 7001 | B89: 35000 | C89: 7.083333333 | D89: 7.083333333

Sheet Lookup Tables
A1: Lookup Tables and Input Validation
A2: This sheet is used internally to perform certain reference calculations and support input sheet data validation
A4: Well Pump Size Lookup
A5: pump_hp_table
A6: Horsepower Needed | B6: Horsepower Selected | C6: Pump Diameter (inches)
A7: 0 | B7: 7.5 | C7: 4
A8: 7.6 | B8: 50 | C8: 6
A9: 51 | B9: 250 | C9: 8
A12: Pressure Reducing Valve Sizes
A13: prv_table
A14: Diameter Needed (inches) | B14: Diameter Selected (inches) | C14: Length (inches) | D14: Width (inches)
A15: 0 | B15: 2 | C15: 9.38 | D15: 18
A16: 2.1 | B16: 2.5 | C16: 11 | D16: 20
A17: 2.6 | B17: 3 | C17: 12 | D17: 22
A18: 3.1 | B18: 4 | C18: 15 | D18: 24
A19: 4.1 | B19: 6 | C19: 20 | D19: 40
A20: 6.1 | B20: 8 | C20: 25.5 | D20: 77
A21: 8.1 | B21: 10 | C21: 29.75 | D21: 48
A22: 10.1 | B22: 12 | C22: 34 | D22: 52
A23: 12.1 | B23: 14 | C23: 39 | D23: 58
A24: 14.1 | B24: 16 | C24: 41.4 | D24: 60
A26: Input Validation
A27: design_type
A28: Interconnection
A29: New Well Construction
A31: comp_level_valid
A32: low cost
A33: mid cost
A34: high cost
A36: system_automation_valid
A37: manual
A38: semi-automated
A39: fully automated
A41: yes_no_valid
A42: =IF(design=2,"yes","") -> 
A43: =IF(design=2,"no","") -> 
A46: Constants
A47: Minutes in a day | B47: min_per_day | C47: 1440 | D47: min/day
A48: Gallons per cubic foot | B48: gal_per_cuft | C48: 7.48 | D48: gal/ft^3
A49: Gallons per million gallons | B49: gal_per_mil_gal | C49: 1000000 | D49: gal/mil gal
A50: Seconds per minites | B50: sec_per_min | C50: 60 | D50: sec/min
A51: Cubic feet per cubic yard | B51: cuft_per_cuyd | C51: 27 | D51: ft^3/Yd^3
A52: Pounds per gal | B52: lbs_per_gal | C52: 8.34 | D52: lbs/gal
A53: Pounds of water per cubic foot | B53: lbs_per_cuft | C53: 62.4 | D53: lbs/ft^3
A54: Days per year | B54: day_per_year | C54: 365 | D54: days/year
A55: Inches per foot | B55: in_per_ft | C55: 12 | D55: in/ft
A56: Square feet per square yard | B56: sqft_per_sqyd | C56: 27 | D56: ft^2/yd^2
